{"text_format":"1","workbook":"xlsx","n_sheets":7,"sheets":["PLAN DE ACCION CONSOLIDACION","INFO_ANÁLISIS DE CONTEXTO","INFO_ESTRATEGIAS","PLAN DE ACCION","GESTION","INVERSION","JURISDICCIONAL"],"not_rendered":{"charts":0,"images":5,"macros":1,"external_links":2,"defined_names":17,"comments":0,"pivot_tables":0},"unopened":[],"bounds":{"document_bytes":16777216,"sheet_cells":100000,"rows_first":2000,"rows_last":500,"rows_between":2000,"halvings":0,"cell_chars":16384,"cell_head_chars":4096},"cells_cut":0,"cells_raw":0,"read":"row_number_cap","date_system":"1900"}

{"sheet":"PLAN DE ACCION CONSOLIDACION","index":0,"n_rows":29,"n_cols":24,"rows_kept":29,"cut":false,"hidden":true,"merged":[[27,0,28,0],[27,1,28,1],[27,3,28,3],[15,0,21,0],[15,1,21,1],[15,3,21,3],[22,0,26,0],[22,1,26,1],[22,3,26,3],[2,22,2,23],[4,0,8,0],[4,1,8,1],[4,3,8,3],[9,0,14,0],[9,1,14,1],[9,3,14,3],[1,2,1,21],[2,0,3,0],[2,1,3,1],[2,2,3,2],[2,3,3,3],[2,4,3,4],[2,5,2,7],[2,8,2,10],[2,11,2,15],[2,16,2,18],[2,19,3,19],[2,20,2,21]]}
[]
[null,null,"CONSEJO SUPERIOR DE LA JUDICATURA \nUNIDADES MISIONALES DEL CONSEJO SUPERIOR DE LA JUDICATURA - \nDIRECCIÓN EJECUTIVA DE ADMINISTRACIÓN JUDICIAL -UNIDADES MISIONALES DE LA DEAJ\nDIRECCIONES SECCIONALES DE ADMINISTRACIÓN JUDICIAL "]
["No. ","OBJETIVOS ESTRATEGICOS PLAN SECTORIAL DE DESARROLLO 2023-2026","OBJETIVOS ESPECIFICOS PLAN SECTORIAL DE DESARROLLO 2023-2026","OBJETIVOS DEL SIGCMA","DESCRIPCIÓN DE LA ACTIVIDAD (INVERSIÓN O DE GESTIÓN) ","MAPA DE PROCESO DEL SIGCMA (RELACIONE  EL PROCESO ESTRATÉGICO, MISIONAL, APOYO y EVALUACIÓN - MEJORA)",null,null,"MEDICIÓN DE LA GESTIÓN ",null,null,"PROYECTOS DE INVERSIÓN DE ACUERDO CON LOS OBJETIVOS DEL PLAN SECTORIAL DE DESARROLLO",null,null,null,null,"MEDICIÓN (INVERSIÓN INDICADORES POAI- GESTIÓN INDICADORES",null,null,"RESPONSABLE POR PROYECTO O ACTIVIDAD","FECHA DEL PROYECTO/ACTIVIDAD",null,"ANÁLISIS DE RESULTADOS"]
[null,null,null,null,null,"NOMBRE DEL PROCESO","CENTRAL","SECCIONAL","ENTREGABLE","INDICADOR","DESCRIBIR EL INDICADOR","PROGRAMA DE INVERSIÓN","NOMBRE DEL PROYECTO DE INVERSIÓN ","CODIGO BPIN (PROYECTO)","CODIGO PRESUPUESTAL","ACTIVIDAD DE INVERSIÓN (POAI)","ENTREGABLE","INDICADOR","DESCRIBIR EL INDICADOR",null,"INICIO \nDÍA/MES/AÑO","FIN\nDÍA/MES/AÑO","CUMPLIMIENTO DEL OBJETIVO (ACUMULADO DE LOS 4 TRIMESTRES)"," ANÁLISIS RESULTADO\nFINAL - ACUMULADO"]
[1,"Acceso a Infraestructura Física"," 1. Ampliar el acceso a justicia para atender las necesidades jurídicas de los \nciudadanos con un enfoque diferencial, de una manera pronta, reduciendo las \ninequidades y las brechas territoriales de acceso.","\n2. Asegurar  el cumplimiento de los objetivos institucionales, la normatividad aplicable,  la mejora del SIGCMA y la satisfacción de los usuarios, revisando de  forma continua y sistemática la planificación de la gestión y fortaleciendo la administración de riesgos y sus controles. (1,2,3 y 5)\n\n4. Hacer un uso racional de los recursos naturales aplicando los principios y fases de la Economía Circular, para prevenir, mitigar y controlar los impactos ambientales. (4)\n\n"]
[null,null,"2. Mejorar los tiempos de respuesta de la Rama Judicial y reducir el inventario de \nprocesos, identificando los retos internos y promoviendo tanto acciones articuladas\nespecíficas para abordarlos como estrategias coordinadas para enfrentar las \nbarreras que dependen de otras entidades."]
[null,null,"3. Coadyuvar en la garantía de la idoneidad en el ejercicio de la profesión jurídica de acuerdo con lo establecido en la Ley 1905 de 2018"]
[null,null,"4. Avanzar en la disposición de una infraestructura óptima para el acceso a la justicia en la Rama Judicial de modo que se fortalezca la presencia territorial, teniendo en cuenta las posibilidades que ofrece la transformación digital y las necesidades que se derivan de ella, y considerando tanto las necesidades de los usuarios como las de los servidores judiciales."]
[null,null,"5. Impulsar el uso de mecanismos alternativos para la solución de conflictos y la \nampliación de la justicia restaurativa y terapéutica y el robustecimiento de las alternativas al encarcelamiento"]
[2,"Servicios digitales y de tecnología, innovación y análisis de la información","1. Ampliar el acceso a la justicia a través de la consolidación del uso de los servicios \ndigitales que conforman el sistema único integrado de gestión judicial en todos los \ndespachos judiciales y dependencias de apoyo y, específicamente, incluyendo el \ndespliegue e implementación del Expediente Judicial Electrónico en todas las \njurisdicciones y especialidades.","6. Proteger, preservar y administrar los activos de información  implementando acciones  para gestionar de forma adecuada los incidentes  , proteger los datos personales y adoptar mecanismos  de ciberseguridad y aseguramiento de la  continuidad del negocio (1, 2, 3, 4, 5 y 6)"]
[null,null,"2. Integrar y hacer compatibles todos los aplicativos de transición con SIUGJ, para que la migración de los expedientes judiciales a dicha plataforma sea real y no suponga afectaciones en la prestación del servicio de justicia."]
[null,null,"\n3. Fortalecer las capacidades institucionales, adecuar el modelo operativo y de \nservicio, bajo un enfoque de Arquitectura Empresarial y de fortalecimiento del \nacceso a la justicia."]
[null,null,"\n4.Consolidar la cultura y apropiación de la transformación digital en los servidores y \nusuarios de los servicios de la Rama Judicial y reducir brechas de acceso y conocimiento, incluyendo la oferta efectiva de información sobre el uso de las nuevas herramientas virtuales implementadas en las diferentes jurisdicciones, con especial énfasis en las zonas del país donde es evidente la brecha digital."]
[null,null,"\n5.Consolidar la infraestructura y los recursos necesarios para la implementación exitosa de la transformación digital, incluyendo la disposición de internet de calidad en el 100% de las sedes en la Rama Judicial y modernizar los servicios tecnológicos de soporte. "]
[null,null,"\n6.Integrar y optimizar los servicios administrativos de la Rama Judicial bajo un enfoque de transformación digital e innovación incluyendo los componentes financiero, administrativo, talento humano, entre otros"]
[3,"Confianza pública, transparencia y rendición de cuentas","1. Incrementar la cantidad, la calidad y pertinencia de los datos sobre el funcionamiento del servicio de justicia bajo un modelo de gobierno de datos y un liderazgo unificado. \n","1. Gestionar el desarrollo de las competencias, la toma de conciencia , la cultura  organizacional  y el compromiso de los  servidores judiciales, contratistas, practicantes y  judicantes de contribuir a generar valor público en la administración de justicia, en el marco de  cumplimiento de los requisitos  aplicables y el comportamiento ético. (3 y 7)\n\n3. Fomentar la transparencia y la participación generando lineamientos y promoviendo la rendición de cuentas ,la consulta, reporte y planteamiento de inquietudes en relación con las decisiones y aspectos del SIGCMA. (3, 4, 5 y 6)\n\n4. Hacer un uso racional de los recursos naturales aplicando los principios y fases de la Economía Circular, para prevenir, mitigar y controlar los impactos ambientales. (1 y 7)\n"]
[null,null,"2. Consolidar la administración de la información entendida como todas las acciones \norientadas a garantizar el acceso, consulta, uso y conservación de la información \nde justicia de manera ágil, flexible e inteligente, bajo un enfoque de innovación."]
[null,null,"3. Fortalecer el Sistema integrado de Gestión de la Rama, orientado a la implementación y certificación de las normas antisoborno."]
[null,null,"4. Aumentar la confianza, la cercanía y acceso a los servicios de la Rama Judicial a \ntravés, entre otros, de una comunicación clara y asertiva con la ciudadanía."]
[null,null,"5. Prevenir fenómenos asociados con actos de corrupción en la Rama Judicial y \nreducir las experiencias de corrupción de usuarios y servidores judiciales."]
[null,null,"6. Promover la rendición de cuentas y la colaboración real con la ciudadanía como \nfundamento para diseñar acciones de mejoramiento del acceso a la justicia."]
[null,null,"7. Continuar la consolidación del SIGCMA, a través de los procesos de formación en \nmodelos de gestión, logrando la implementación y ampliación de este en los esquemas certificados de manera gradual, teniendo en cuenta las capacidades de los diferentes despachos judiciales y dependencias de la Rama Judicial y articulando el enfoque de Arquitectura Empresarial para el desarrollo del PETD a través de la gestión del conocimiento para la gestión del cambio propendiendo por una cultura de la calidad, la transparencia, la rendición de cuentas, la anticorrupción y el antisoborno"]
[4,"Talento Humano","1. Ampliar la cobertura de la carrera judicial optimizando los procesos de los concursos de méritos y propender por mitigar su litigiosidad.","1. Gestionar el desarrollo de las competencias, la toma de conciencia , la cultura  organizacional  y el compromiso de los  servidores judiciales, contratistas, practicantes y  judicantes de contribuir a generar valor público en la administración de justicia, en el marco de  cumplimiento de los requisitos  aplicables y el comportamiento ético. (1, 2, 3 y 4)\n\n5. Generar espacios de trabajo seguros y saludables que contribuyan a minimizar los  incidentes, accidentes y enfermedades laborales derivados de las condiciones y actos  inseguros y fomentar  el autocuidado, los  estilos de vida y el trabajo saludable en los servidores judiciales, contratistas, judicantes y practicantes. (5)\n"]
[null,null,"2. Impactar la función y servicios que presta la Rama Judicial, a través de una\nformación integral desde una visión de gestión del conocimiento, relacionada con \nlos problemas de la justicia y los problemas de gestión de quienes administran los \nrecursos de la justicia, y potenciando el uso de medios virtuales."]
[null,null,"3. Promover la incorporación de la perspectiva de género y el enfoque diferencial en \nlos fallos judiciales y en la atención a los ciudadanos, la administración de la Rama \nJudicial, la administración de la carrera judicial y la elaboración de listas para altas \nCortes. "]
[null,null,"4. Desarrollar en los servidores judiciales y demás grupos de valor relevantes las \ncompetencias necesarias para la efectividad de la transformación digital de modo \nque puedan, entre otros, utilizar con solvencia las herramientas digitales dispuestas \npara sus respectivas funciones. Además, fortalecer y actualizar los conocimientos \ndel personal a cargo de la gestión de proyectos de tecnología."]
[null,null,"5. Promover el bienestar de todos los servidores judiciales a través de la implementación de un sistema que contemple los diferentes niveles de estrategias y acciones necesarios para mejorar el clima laboral, la salud física y mental y la calidad del tiempo de descanso."]
[5,"Gobernanza, planeación estratégica y capacidad de toma de decisiones","1. Implementar un nuevo modelo integrado para la planeación estratégica, el \nseguimiento y la medición del desempeño institucional.","\n2. Asegurar  el cumplimiento de los objetivos institucionales, la normatividad aplicable,  la mejora del SIGCMA y la satisfacción de los usuarios, revisando de  forma continua y sistemática la planificación de la gestión y fortaleciendo la administración de riesgos y sus controles. (1 y 2)"]
[null,null,"2. Definir e implementar el modelo optimizado de formulación, seguimiento y \nevaluación de la política pública judicial."]

{"sheet":"INFO_ANÁLISIS DE CONTEXTO","index":1,"n_rows":81,"n_cols":10,"rows_kept":81,"cut":false,"hidden":false,"merged":[[64,0,65,0],[66,0,67,0],[68,0,75,0],[61,0,63,0],[76,0,80,0],[0,1,0,3],[29,0,29,4],[1,1,1,2],[3,1,3,4],[5,0,6,0],[5,1,5,2],[5,3,5,4],[6,1,6,2],[6,3,6,4],[27,0,28,0],[8,0,8,4],[10,0,11,0],[12,0,14,0],[15,0,21,0],[22,0,25,0],[51,0,60,0],[31,0,37,0],[38,0,41,0],[42,0,47,0],[48,0,50,0]]}
[null,"ANÁLISIS DE CONTEXTO"]
["CONSEJO SECCIONAL/DIRECCIÓN SECCIONAL DE ADMINISTRACIÓN JUDICIAL Y/O DISTRITO JUDICIAL SEGÚN SEA EL CASO","Consejo Seccional de la Judicatura de Còrdoba/Direcciòn Ejecutiva Seccional de Administraciòn Judicial de Monterìa",null,"PROCESO ","Ver Mapa de Procesos"]
[]
["DEPENDENCIA ADMINISTRATIVA O JUDICIAL CERTIFICADA ","Consejo Seccional de la Judicatura de Còrdoba/Direcciòn Ejecutiva Seccional de Administraciòn Judicial de Monterìa"]
[]
["OBJETIVO DEL PROCESO","MAPA DE PROCESOS CONSEJO SUPERIOR DE LA JUDICATURA",null,"PROCESOS DEPENDENCIA JUDICIALES CERTIFICADAS"]
[null,"Ver Caracterizaciòn de Procesos",null,"NA"]
[]
["CONTEXTO EXTERNO "]
["FACTORES TEMÁTICOS","No.","AMENAZAS (Factores específicos) ","No. ","OPORTUNIDADES (Factores específicos) "]
["Político (cambios de gobierno, legislación, políticas públicas, regulación)",1,"Cambios de gerentes públicos",1,"Decreto 806 de 2020 Por el cual se adoptan medidas para implementar las tecnologías de la información y las comunicaciones en las actuaciones judiciales, agilizar los procesos judiciales y flexibilizar la atención a los usuarios del servicio de justicia, en el marco del Estado de Emergencia Económica, Social y Ecológica"]
[null,2,"Cambio de Normatividad y Regulaciones Expedidas por el Gobierno Nacional o el Congreso de la Republica que afecten la administración de Justicia."]
["Económicos y Financieros (disponibilidad de capital, liquidez, mercados financieros, desempleo, competencia)",3,"Presupuesto insuficiente asignado para  la vigencia 2023 de la Rama Judicial",2,"Incremento del PIB que potencialice el crecimiento económico del país y viabilice la asignación suficiente de recursos para la Rama Judicial "]
[null,4,"No contar con el PAC oportunamente para la ejecución de proyectos de inversión"]
[null,5,"Numero deficiente de proveedores inscritos en la plataforma de Colombia Compra Eficiente, para suplir las necesidades de adquisición de bienes y servicios "]
["Sociales  y culturales (cultura, religión, demografía, responsabilidad social, orden público)",6,"Interrupción del servicio público de Administrar Justicia a causa del conflicto armado de la región.",3,"Incremento de la credibilidad y confianza en la administración de justicia al implementar y certificar sus Sistemas de Gestión. \n\n"]
[null,7,"Interrupción del servicio público de Administrar Justicia a causa del pandemias y sus variantes.",4,"Visibilizacion de la Administración de Justicia  entre los actores no formales de la justicia (Grupos y minorías Indígenas, género)"]
[null,8,"Interrupción del servicio público de Administrar Justicia por razones de orden público"]
[null,9,"Limitaciones en  la movilidad asociados a factores del orden público "]
[null,10,"Aumento de la demanda de Justicia a causa de la problemática social"]
[null,11,"Amenazas a servidores judiciales en razón al ejercicio de sus funciones."]
[null,12,"Afectaciones a la infraestructura física de las sedes Judiciales "]
["Tecnológicos (desarrollo digital, avances en tecnología, acceso a sistemas de información externos, gobierno en línea)",13,"Perdida o hackeo de información derivada de ataques cibernéticos",5,"Marco regulatorio del  MINTICS, para la gobernanza, gobernabilidad y transformación digital"]
[null,14,"Indisponibilidad y/o colapso de la infraestructura tecnológica ",6,"Desarrollo de alianzas estratégicas para el fortalecimiento del servicio público de administración de justicia, a través de las TICs"]
[null,15,"Afectación de la prestación del servicio de conectividad ",7,"Generar espacios donde se realicen acuerdo interinstitucionales para poder consultar información que beneficie la administración de justicia"]
[null,16,"Ausencia de portal único de información del Estado (Ramas del poder, órganos autónomos y demás entes especiales), que garantice la consulta de información en línea de toda la información oficial. Gobierno en Línea)"]
["Legales y reglamentarios (estándares nacionales, internacionales, regulación)",17,"Normas expedidas que afecten el desarrollo de las etapas propias de los procesos",8,"Actualización del marco normativo"]
["Ambientales (emisiones y residuos, energía, catástrofes naturales, desarrollo sostenible)",18,"Fenómenos naturales (Inundación, quema de bosques, sismo, vendavales, epidemias y plagas)"]
[null,19,"Aumento de los impactos ambientales negativos por pandemias"]
["CONTEXTO INTERNO "]
["FACTORES TEMÁTICOS","No.","DEBILIDADES  (Factores específicos)  ","No. ","FORTALEZAS(Factores específicos)"]
["Estratégicos (direccionamiento estratégico, planeación institucional, liderazgo, trabajo en equipo)",1,"No realización oportuna del plan de acción, matriz de riesgos y demás documentos del SIGCMA, con su seguimiento correspondiente en los periodos establecidos,  conforme a los lineamientos emitidos desde el despacho de la Magistrada Líder del SIGCMA y la Coordinación Nacional del SIGCMA",1,"Contar con el Plan Sectorial de Desarrollo de la Rama Judicial"]
[null,2,"Falta de socialización de estrategias con las dependencias para fomentar el trabajo colaborativo para la implementación del Plan Estratégico de Transformación Digital (PETD) de la Rama Judicial ",2,"Socialización de buenas prácticas de la gestión judicial en el contexto internacional a través de la CICAJ o eventos de Cumbre"]
[null,null,null,3,"Mantenimiento y ampliación de SIGCMA en los esquemas que se encuentra certificados la Rama Judicial"]
[null,null,null,4,"Definición de roles y responsabilidades de los  líderes de proceso para el funcionamiento del SIGCMA"]
[null,null,null,5,"Contar con la Norma Técnica de Calidad Actualizada NTC 6256 y GTC 286 2021"]
[null,null,null,6,"El compromiso de la Alta Dirección y de los líderes de proceso para ampliar, mantener y mejorar el SIGCMA"]
[null,null,null,7,"Encuentro nacional e internacional del SIGCMA"]
["Recursos financieros (presupuesto de funcionamiento, recursos de inversión",3,"Recursos insuficientes para atender el Plan de necesidades formulado",8,"Presupuesto asignado para el desarrollo de proyecto de inversión del SIGCMA"]
[null,null,null,9,"Conocimiento de la reglamentación que establece el procedimiento para el manejo de los recursos presupuestales, financieros y de contratación estatal"]
[null,null,null,10,"Estandarización de procesos y procedimientos para el desarrollo del proceso contractual"]
[null,null,null,11,"Manual de contratación actualizado"]
["Personal (competencia del personal, disponibilidad, suficiencia, seguridad y salud  en el trabajo)",4,"No contar con el recurso humano suficiente y necesario para responder a la demanda de Justicia",12,"Personal integrado por servidores judiciales de alto nivel profesional y capacitado para llevar a cabo las funciones asignadas"]
[null,5,"Servidores Judiciales con comorbilidades y/o enfermedades laborales"]
[null,6,"Extensión en los horarios laborales de trabajo en casa y presencial, que afecta el bienestar físico, mental y emocional en los servidores judiciales y su entorno familiar",13,"Desarrollo y fortalecimiento de competencias de los servidores judiciales en modelos de gestión"]
[null,7,"Carencia  de manual  de funciones y procedimientos  para los servidores Judiciales ",14,"Mejor prestación del servicio de administración de justicia debido a la implementación de buenas practicas en bioseguridad definidos por la Rama Judicial"]
[null,8,"Debilidad en los procesos de inducción y reinducción de los servidores judiciales",15,"Fortalecimiento de los concursos de méritos para ingreso de la Rama Judicial"]
[null,9,"Debilidad en el desarrollo de competencias propias para el desarrollo de las actividades asignadas",16,"El desarrollo de competencia a través de procesos de sensibilización, capacitación y formación en modelo de gestión para el desarrollo de competencias de los servidores judiciales."]
["Proceso (capacidad, diseño, ejecución, proveedores, entradas, salidas, gestión del conocimiento)",10,"Resistencia por parte de algunos servidores judiciales a implementar la gestión de conocimiento para la gestión del cambio en lo relativo al SIGCMA, a modelos de gestión, implementación de PETD, ambiental, seguridad y salud en el trabajo, seguridad informática, normas antisoborno, normas de bioseguridad etc.  ",17,"Actualización de la plataforma estratégica para responder a los cambios normativos y legales"]
[null,11,"Falta de tiempo para acceder a la formación  de alto interés, tales como: Sensibilizaciones, cursos, talleres,  capacitaciones, diplomados, entre otros",18,"Aplicabilidad de la Gestión del conocimiento generada por las experiencias de los servidores judiciales documentada en instructivos y guías\n"]
[null,12,"Debilidad en la retroalimentación de la evaluación  realizada a los proveedores y contratistas del producto o servicio entregado",19,"Fortalecimiento en los procesos de contratación por el uso adecuado del SECOP II"]
["Tecnológicos ",13,"Debilidad de la plataforma tecnológica a nivel nacional de  software y hardware en las sedes administrativas y judiciales",20,"Accesibilidad a nuevas herramientas virtuales, que facilitan el acceso a la información, la optimización del tiempo y contribuyen a la disminución de los consumos de papel"]
[null,14,"Falta de apropiación y aplicación del conocimiento de los avances tecnológicos",21,"Capacitación para el uso de herramientas tecnológicas  "]
[null,15,"Carencia de formación en tecnologías de la información y la comunicación aplicadas al desarrollo de la gestión Judicial estableciendo las diferencias entre:\nTransformación digital, digitalización, expediente digital y estrategias para la digitalización"]
[null,16,"Fallas de conectividad para la realización de las actividades propias del proceso."]
[null,17,"Falta de cobertura tecnológica en las sedes judiciales "]
[null,18,"Carencia de modelos gobernanza de Tecnologías de la Información (TI) en la entidad"]
[null,19,"Carencia del software de gestión para el manejo integral de la información."]
[null,20,"Falta de  comunicación asertiva entre los diferentes actores para la articulación de proyectos tecnológicos"]
[null,21,"Debilidad en la generación de estrategias articuladas para la digitalización entre los proveedores y las dependencias Judiciales y Administrativas"]
[null,22,"Deficiencia en el  mantenimiento de la pagina web de la Rama Judicial"]
["Documentación (actualización, coherencia, aplicabilidad) ",23,"Los documentos actuales no están alineados al PETD 2021-2025",22,"La estandarización de la plataforma estratégica del SIGCMA y documentos impartidos  desde la Coordinación Nacional del SIGCMA para la mejor prestación del servicio"]
[null,24,"Falta de comunicación y socialización de tablas de retención documental",23,"Micrositio de fácil acceso a los documentos propios del Sistema Integrado de Gestión y Control de la Calidad y el Medio Ambiente."]
[null,25,"Debilidad en  la estandarización de tablas de retención documental"]
["Infraestructura física (suficiencia, comodidad)",26,"Sedes Judiciales arrendadas, en comodato y propias que no cuentan con las condiciones mínimas de seguridad para los servidores judiciales, contratistas y usuarios de la justicia según la normatividad vigente",24,"Cumplimiento del plan de infraestructura de la Rama Judicial"]
[]
["Elementos de trabajo (papel, equipos, herramientas)",27,"Falta de modernización y mantenimiento del mobiliario con que cuenta la Rama Judicial",25,"Uso adecuado de los elementos de trabajo"]
[null,null,null,26,"Actualización permanente de la plataforma tecnológica de la Rama Judicial para el cumplimiento del PETD"]
["Comunicación Interna (canales utilizados y su efectividad, flujo de la información necesaria para el desarrollo de las actividades)",28,"Uso deficiente de las herramientas de comunicación establecidas en el plan de comunicaciones",27,"Elaboración y seguimiento del Plan de Comunicaciones"]
[null,29,"Desaprovechamiento de canales de comunicaciones, para generar mayor información a las partes interesadas",28,"Implementación de estrategias y mecanismos para el fortalecimiento de la atención al usuario"]
[null,null,null,29,"Fortalecimiento de la pagina web institucional y mecanismos de comunicación"]
[null,null,null,30,"Uso adecuado del micrositio asignado al Consejo Seccional de la Judicatura"]
[null,null,null,31,"Uso adecuado de los correos electrónicos"]
[null,null,null,32,"Uso adecuado del aplicativo SIGOBIUS"]
[null,null,null,33,"Fortalecimiento para el tratamiento de PQRS"]
[null,null,null,34,"Uso adecuado de la imagen corporativa y los logos en los cuales se encuentra certificada la Rama Judicial"]
["Ambientales",30,"Desconocimiento del Plan de Gestión Ambiental que aplica para la Rama Judicial Acuerdo PSAA14-10160",35,"Disminución en el uso de papel, toners y demás elementos de oficina al implementar el uso de medios tecnológicos"]
[null,31,"Ausencia de indicadores ambientales establecidos en los programas de gestión del Acuerdo PSAA14-10160",36,"Participación virtual es los espacios  de sensibilización ambiental, como el Día SIGCMA"]
[null,32,"Baja implementación en sistemas ahorradores de agua  y energía en sedes judiciales y administrativas",37,"Mantener la certificación operaciones inseguras: Sellos de bioseguridad huella de confianza"]
[null,33,"Falta en la separación adecuada de residuos en la fuente ",38,"Formación de Auditores en la Norma NTC ISO 14001:2015 y en la Norma Técnica de la Rama Judicial NTC 6256 :2018",null,null,null,null," "]
[null,34,"Desconocimiento por parte de los brigadistas, servidores judiciales y contratistas de las acciones necesarias para actuar ante una emergencia ambiental",39,"Implementación de buenas practicas tendientes a la protección del medio ambiente"]

{"sheet":"INFO_ESTRATEGIAS","index":2,"n_rows":13,"n_cols":6,"rows_kept":13,"cut":false,"hidden":false,"merged":[[1,0,1,5],[2,0,3,0],[2,1,2,4],[0,1,0,4]]}
[null,"ESTRATEGIAS"]
["ESTRATEGIAS  DOFA"]
["ESTRATEGIA/ACCIÓN/ PROYECTO","GESTIONA ",null,null,null,"DOCUMENTADA EN "]
[null,"A","O","D","F"]
["Desarrollar el plan de formación de la Escuela Judicial para el fortalecimiento de competencias de los servidores judiciales ",null,null,8.9,13.16,"Plan de acción "]
["Asistir y participar activamente en los procesos de sensibilización, capacitación y formación en los procesos SIGCMA ",null,null,11,"6,16, 36","Plan de acción "]
["Realizar seguimiento al plan de acción y realizar el reporte oportuno",null,null,1,"6, 12, 23","Plan de acción "]
["Implementar mecanismos para la retroalimentación de las  partes interesadas",16,3.4,"1, 12, 34","27,28,29,34","Plan de acción "]
["Mantener, actualizar y documentar  el Sistema Integrado de Gestión SIGCMA, en el contexto especifico","13,14,15",7,"1,10,13,16,17,19","4,6,7,8,5,10,17,1820,22,23,37","Plan de acción "]
["Solicitar apoyo al CENDOJ para realización de capacitaciones en tablas de retención documental (TRD)",null,null,"24,25,29",28,"Plan de acción "]
["Hacer uso de la información y de las herramientas tecnológicas dispuestas para la prestación del servicios",null,null,"13,14,15,16,28",20.21,"Plan de acción "]
["Motivar a los servidores judiciales en la Implementación del plan de gestión ambiental en cada sede administrativa o judicial",null,null,"30,31,32,33,34","35,36,38,39","Plan de acción "]
["Realizar identificación y cumplimiento de los requisitos legales y reglamentarios",2.17,8,1,"3,9,17","Matriz de riesgos"]

{"sheet":"PLAN DE ACCION","index":3,"n_rows":1047890,"n_cols":11,"rows_kept":4500,"cut":true,"hidden":false,"merged":[[2,1,3,1],[4,1,5,1],[2,0,3,0],[4,0,5,0],[2,2,3,2],[4,2,5,2]],"bounds":{"rows_first":2000,"rows_last":500,"rows_between":2000,"halvings":0},"read":"row_number_cap"}
[]
[]
[]
[]
[]
[]
[]
[]
[]
[]
[]
[]
[]
[]
[]
[]
[]
[]
[]
[]
[]
[]
[]
[]
[]
[]
[]
[]
[]
[]
[]
[]
[]
[]
[]
[]
[]
[]
[]
[]
[]
[]
[]
[]
[]
[]
[]
[]
[]
[]
[]
[]
[]
[]
[]
[]
[]
[]
[]
[]
[]
[]
[]
[]
[]
[]
[]
[]
[]
[]
[]
[]
[]
[]
[]
[]
[]
[]
[]
[]
[]
[]
[]
[]
[]
[]
[]
[]
[]
[]
[]
[]
[]
[]
[]
[]
[]
[]
[]
[]
[]
[]
[]
[]
[]
[]
[]
[]
[]
[]
[]
[]
[]
[]
[]
[]
[]
[]
[]
[]
[]
[]
[]
[]
[]
[]
[]
[]
[]
[]
[]
[]
[]
[]
[]
[]
[]
[]
[]
[]
[]
[]
[]
[]
[]
[]
[]
[]
[]
[]
[]
[]
[]
[]
[]
[]
[]
[]
[]
[]
[]
[]
[]
[]
[]
[]
[]
[]
[]
[]
[]
[]
[]
[]
[]
[]
[]
[]
[]
[]
[]
[]
[]
[]
[]
[]
[]
[]
[]
[]
[]
[]
[]
[]
[]
[]
[]
[]
[]
[]
[]
[]
[]
[]
[]
[]
[]
[]
[]
[]
[]
[]
[]
[]
[]
[]
[]
[]
[]
[]
[]
[]
[]
[]
[]
[]
[]
[]
[]
[]
[]
[]
[]
[]
[]
[]
[]
[]
[]
[]
[]
[]
[]
[]
[]
[]
[]
[]
[]
[]
[]
[]
[]
[]
[]
[]
[]
[]
[]
[]
[]
[]
[]
[]
[]
[]
[]
[]
[]
[]
[]
[]
[]
[]
[]
[]
[]
[]
[]
[]
[]
[]
[]
[]
[]
[]
[]
[]
[]
[]
[]
[]
[]
[]
[]
[]
[]
[]
[]
[]
[]
[]
[]
[]
[]
[]
[]
[]
[]
[]
[]
[]
[]
[]
[]
[]
[]
[]
[]
[]
[]
[]
[]
[]
[]
[]
[]
[]
[]
[]
[]
[]
[]
[]
[]
[]
[]
[]
[]
[]
[]
[]
[]
[]
[]
[]
[]
[]
[]
[]
[]
[]
[]
[]
[]
[]
[]
[]
[]
[]
[]
[]
[]
[]
[]
[]
[]
[]
[]
[]
[]
[]
[]
[]
[]
[]
[]
[]
[]
[]
[]
[]
[]
[]
[]
[]
[]
[]
[]
[]
[]
[]
[]
[]
[]
[]
[]
[]
[]
[]
[]
[]
[]
[]
[]
[]
[]
[]
[]
[]
[]
[]
[]
[]
[]
[]
[]
[]
[]
[]
[]
[]
[]
[]
[]
[]
[]
[]
[]
[]
[]
[]
[]
[]
[]
[]
[]
[]
[]
[]
[]
[]
[]
[]
[]
[]
[]
[]
[]
[]
[]
[]
[]
[]
[]
[]
[]
[]
[]
[]
[]
[]
[]
[]
[]
[]
[]
[]
[]
[]
[]
[]
[]
[]
[]
[]
[]
[]
[]
[]
[]
[]
[]
[]
[]
[]
[]
[]
[]
[]
[]
[]
[]
[]
[]
[]
[]
[]
[]
[]
[]
[]
[]
[]
[]
[]
[]
[]
[]
[]
[]
[]
[]
[]
[]
[]
[]
[]
[]
[]
[]
[]
[]
[]
[]
[]
[]
[]
[]
[]
[]
[]
[]
[]
[]
[]
[]
[]
[]
[]
[]
[]
[]
[]
[]
[]
[]
[]
[]
[]
[]
[]
[]
[]
[]
[]
[]
[]
[]
[]
[]
[]
[]
[]
[]
[]
[]
[]
[]
[]
[]
[]
[]
[]
[]
[]
[]
[]
[]
[]
[]
[]
[]
[]
[]
[]
[]
[]
[]
[]
[]
[]
[]
[]
[]
[]
[]
[]
[]
[]
[]
[]
[]
[]
[]
[]
[]
[]
[]
[]
[]
[]
[]
[]
[]
[]
[]
[]
[]
[]
[]
[]
[]
[]
[]
[]
[]
[]
[]
[]
[]
[]
[]
[]
[]
[]
[]
[]
[]
[]
[]
[]
[]
[]
[]
[]
[]
[]
[]
[]
[]
[]
[]
[]
[]
[]
[]
[]
[]
[]
[]
[]
[]
[]
[]
[]
[]
[]
[]
[]
[]
[]
[]
[]
[]
[]
[]
[]
[]
[]
[]
[]
[]
[]
[]
[]
[]
[]
[]
[]
[]
[]
[]
[]
[]
[]
[]
[]
[]
[]
[]
[]
[]
[]
[]
[]
[]
[]
[]
[]
[]
[]
[]
[]
[]
[]
[]
[]
[]
[]
[]
[]
[]
[]
[]
[]
[]
[]
[]
[]
[]
[]
[]
[]
[]
[]
[]
[]
[]
[]
[]
[]
[]
[]
[]
[]
[]
[]
[]
[]
[]
[]
[]
[]
[]
[]
[]
[]
[]
[]
[]
[]
[]
[]
[]
[]
[]
[]
[]
[]
[]
[]
[]
[]
[]
[]
[]
[]
[]
[]
[]
[]
[]
[]
[]
[]
[]
[]
[]
[]
[]
[]
[]
[]
[]
[]
[]
[]
[]
[]
[]
[]
[]
[]
[]
[]
[]
[]
[]
[]
[]
[]
[]
[]
[]
[]
[]
[]
[]
[]
[]
[]
[]
[]
[]
[]
[]
[]
[]
[]
[]
[]
[]
[]
[]
[]
[]
[]
[]
[]
[]
[]
[]
[]
[]
[]
[]
[]
[]
[]
[]
[]
[]
[]
[]
[]
[]
[]
[]
[]
[]
[]
[]
[]
[]
[]
[]
[]
[]
[]
[]
[]
[]
[]
[]
[]
[]
[]
[]
[]
[]
[]
[]
[]
[]
[]
[]
[]
[]
[]
[]
[]
[]
[]
[]
[]
[]
[]
[]
[]
[]
[]
[]
[]
[]
[]
[]
[]
[]
[]
[]
[]
[]
[]
[]
[]
[]
[]
[]
[]
[]
[]
[]
[]
[]
[]
[]
[]
[]
[]
[]
[]
[]
[]
[]
[]
[]
[]
[]
[]
[]
[]
[]
[]
[]
[]
[]
[]
[]
[]
[]
[]
[]
[]
[]
[]
[]
[]
[]
[]
[]
[]
[]
[]
[]
[]
[]
[]
[]
[]
[]
[]
[]
[]
[]
[]
[]
[]
[]
[]
[]
[]
[]
[]
[]
[]
[]
[]
[]
[]
[]
[]
[]
[]
[]
[]
[]
[]
[]
[]
[]
[]
[]
[]
[]
[]
[]
[]
[]
[]
[]
[]
[]
[]
[]
[]
[]
[]
[]
[]
[]
[]
[]
[]
[]
[]
[]
[]
[]
[]
[]
[]
[]
[]
[]
[]
[]
[]
[]
[]
[]
[]
[]
[]
[]
[]
[]
[]
[]
[]
[]
[]
[]
[]
[]
[]
[]
[]
[]
[]
[]
[]
[]
[]
[]
[]
[]
[]
[]
[]
[]
[]
[]
[]
[]
[]
[]
[]
[]
[]
[]
[]
[]
[]
[]
[]
[]
[]
[]
[]
[]
[]
[]
[]
[]
[]
[]
[]
[]
[]
[]
[]
[]
[]
[]
[]
[]
[]
[]
[]
[]
[]
[]
[]
[]
[]
[]
[]
[]
[]
[]
[]
[]
[]
[]
[]
[]
[]
[]
[]
[]
[]
[]
[]
[]
[]
[]
[]
[]
[]
[]
[]
[]
[]
[]
[]
[]
[]
[]
[]
[]
[]
[]
[]
[]
[]
[]
[]
[]
[]
[]
[]
[]
[]
[]
[]
[]
[]
[]
[]
[]
[]
[]
[]
[]
[]
[]
[]
[]
[]
[]
[]
[]
[]
[]
[]
[]
[]
[]
[]
[]
[]
[]
[]
[]
[]
[]
[]
[]
[]
[]
[]
[]
[]
[]
[]
[]
[]
[]
[]
[]
[]
[]
[]
[]
[]
[]
[]
[]
[]
[]
[]
[]
[]
[]
[]
[]
[]
[]
[]
[]
[]
[]
[]
[]
[]
[]
[]
[]
[]
[]
[]
[]
[]
[]
[]
[]
[]
[]
[]
[]
[]
[]
[]
[]
[]
[]
[]
[]
[]
[]
[]
[]
[]
[]
[]
[]
[]
[]
[]
[]
[]
[]
[]
[]
[]
[]
[]
[]
[]
[]
[]
[]
[]
[]
[]
[]
[]
[]
[]
[]
[]
[]
[]
[]
[]
[]
[]
[]
[]
[]
[]
[]
[]
[]
[]
[]
[]
[]
[]
[]
[]
[]
[]
[]
[]
[]
[]
[]
[]
[]
[]
[]
[]
[]
[]
[]
[]
[]
[]
[]
[]
[]
[]
[]
[]
[]
[]
[]
[]
[]
[]
[]
[]
[]
[]
[]
[]
[]
[]
[]
[]
[]
[]
[]
[]
[]
[]
[]
[]
[]
[]
[]
[]
[]
[]
[]
[]
[]
[]
[]
[]
[]
[]
[]
[]
[]
[]
[]
[]
[]
[]
[]
[]
[]
[]
[]
[]
[]
[]
[]
[]
[]
[]
[]
[]
[]
[]
[]
[]
[]
[]
[]
[]
[]
[]
[]
[]
[]
[]
[]
[]
[]
[]
[]
[]
[]
[]
[]
[]
[]
[]
[]
[]
[]
[]
[]
[]
[]
[]
[]
[]
[]
[]
[]
[]
[]
[]
[]
[]
[]
[]
[]
[]
[]
[]
[]
[]
[]
[]
[]
[]
[]
[]
[]
[]
[]
[]
[]
[]
[]
[]
[]
[]
[]
[]
[]
[]
[]
[]
[]
[]
[]
[]
[]
[]
[]
[]
[]
[]
[]
[]
[]
[]
[]
[]
[]
[]
[]
[]
[]
[]
[]
[]
[]
[]
[]
[]
[]
[]
[]
[]
[]
[]
[]
[]
[]
[]
[]
[]
[]
[]
[]
[]
[]
[]
[]
[]
[]
[]
[]
[]
[]
[]
[]
[]
[]
[]
[]
[]
[]
[]
[]
[]
[]
[]
[]
[]
[]
[]
[]
[]
[]
[]
[]
[]
[]
[]
[]
[]
[]
[]
[]
[]
[]
[]
[]
[]
[]
[]
[]
[]
[]
[]
[]
[]
[]
[]
[]
[]
[]
[]
[]
[]
[]
[]
[]
[]
[]
[]
[]
[]
[]
[]
[]
[]
[]
[]
[]
[]
[]
[]
[]
[]
[]
[]
[]
[]
[]
[]
[]
[]
[]
[]
[]
[]
[]
[]
[]
[]
[]
[]
[]
[]
[]
[]
[]
[]
[]
[]
[]
[]
[]
[]
[]
[]
[]
[]
[]
[]
[]
[]
[]
[]
[]
[]
[]
[]
[]
[]
[]
[]
[]
[]
[]
[]
[]
[]
[]
[]
[]
[]
[]
[]
[]
[]
[]
[]
[]
[]
[]
[]
[]
[]
[]
[]
[]
[]
[]
[]
[]
[]
[]
[]
[]
[]
[]
[]
[]
[]
[]
[]
[]
[]
[]
[]
[]
[]
[]
[]
[]
[]
[]
[]
[]
[]
[]
[]
[]
[]
[]
[]
[]
[]
[]
[]
[]
[]
[]
[]
[]
[]
[]
[]
[]
[]
[]
[]
[]
[]
[]
[]
[]
[]
[]
[]
[]
[]
[]
[]
[]
[]
[]
[]
[]
[]
[]
[]
[]
[]
[]
[]
[]
[]
[]
[]
[]
[]
[]
[]
[]
[]
[]
[]
[]
[]
[]
[]
[]
[]
[]
[]
[]
[]
[]
[]
[]
[]
[]
[]
[]
[]
[]
[]
[]
[]
[]
[]
[]
[]
[]
[]
[]
[]
[]
[]
[]
[]
[]
[]
[]
[]
[]
[]
[]
[]
[]
[]
[]
[]
[]
[]
[]
[]
[]
[]
[]
[]
[]
[]
[]
[]
[]
[]
[]
[]
[]
[]
[]
[]
[]
[]
[]
[]
[]
[]
[]
[]
[]
[]
[]
[]
[]
[]
[]
[]
[]
[]
[]
[]
[]
[]
[]
[]
[]
[]
[]
[]
[]
[]
[]
[]
[]
[]
[]
[]
[]
[]
[]
[]
[]
[]
[]
[]
[]
[]
[]
[]
[]
[]
[]
[]
[]
[]
[]
[]
[]
[]
[]
[]
[]
[]
[]
[]
[]
[]
[]
[]
[]
[]
[]
[]
[]
[]
[]
[]
[]
[]
[]
[]
[]
[]
[]
[]
[]
[]
[]
[]
[]
[]
[]
[]
[]
[]
[]
[]
[]
[]
[]
[]
[]
[]
[]
[]
[]
[]
[]
[]
[]
[]
[]
[]
[]
[]
[]
[]
[]
[]
[]
[]
[]
[]
[]
[]
[]
[]
[]
[]
[]
[]
[]
[]
[]
[]
[]
[]
[]
[]
[]
[]
[]
[]
[]
[]
[]
[]
[]
[]
[]
[]
[]
[]
[]
[]
[]
[]
[]
[]
[]
[]
[]
[]
[]
[]
[]
[]
[]
[]
[]
[]
[]
[]
[]
[]
[]
[]
[]
[]
[]
[]
[]
[]
[]
[]
[]
[]
[]
[]
[]
[]
[]
[]
[]
[]
[]
[]
[]
[]
[]
[]
[]
[]
[]
[]
[]
[]
[]
[]
[]
[]
[]
[]
[]
[]
[]
[]
[]
[]
[]
[]
[]
[]
[]
[]
[]
[]
[]
[]
[]
[]
[]
[]
[]
[]
[]
[]
[]
[]
[]
[]
[]
[]
[]
[]
[]
[]
[]
[]
[]
[]
[]
[]
[]
[]
[]
[]
[]
[]
[]
[]
[]
[]
[]
[]
[]
[]
[]
[]
[]
[]
[]
[]
[]
[]
[]
[]
[]
[]
[]
[]
[]
[]
[]
[]
[]
[]
[]
[]
[]
[]
[]
[]
[]
[]
[]
[]
[]
[]
[]
[]
[]
[]
[]
[]
[]
[]
[]
[]
[]
[]
[]
[]
[]
[]
[]
[]
[]
[]
[]
[]
[]
[]
[]
[]
[]
[]
[]
[]
[]
[]
[]
[]
[]
[]
[]
[]
[]
[]
[]
[]
[]
[]
[]
[]
[]
[]
[]
[]
[]
[]
[]
[]
[]
[]
[]
[]
[]
[]
[]
[]
[]
[]
[]
[]
[]
[]
[]
[]
[]
[]
[]
[]
[]
[]
[]
[]
[]
[]
[]
[]
[]
[]
[]
[]
[]
[]
[]
[]
[]
[]
[]
[]
[]
[]
[]
[]
[]
[]
[]
[]
[]
[]
[]
[]
[]
[]
[]
[]
[]
[]
[]
[]
[]
[]
[]
[]
[]
[]
[]
[]
[]
[]
[]
[]
[]
[]
[]
[]
[]
[]
[]
[]
[]
[]
[]
[]
[]
[]
[]
[]
[]
[]
[]
[]
[]
[]
[]
[]
[]
[]
[]
[]
[]
[]
[]
[]
[]
[]
[]
[]
[]
[]
[]
[]
[]
[]
[]
[]
[]
[]
[]
[]
[]
[]
[]
[]
[]
[]
[]
[]
[]
[]
[]
[]
[]
[]
[]
[]
[]
[]
[]
[]
[]
[]
[]
[]
[]
[]
[]
[]
[]
[]
[]
[]
[]
[]
[]
[]
[]
[]
[]
[]
[]
[]
[]
[]
[]
[]
[]
[]
[]
[]
[]
[]
[]
[]
[]
[]
[]
[]
[]
[]
[]
[]
[]
[]
[]
[]
[]
[]
[]
[]
[]
[]
[]
[]
[]
[]
[]
[]
[]
[]
[]
[]
[]
[]
[]
[]
[]
[]
[]
[]
[]
[]
[]
[]
[]
[]
[]
[]
[]
[]
[]
[]
[]
[]
[]
[]
[]
[]
[]
[]
[]
[]
[]
[]
[]
[]
[]
[]
[]
[]
[]
[]
[]
[]
[]
[]
[]
[]
[]
[]
[]
[]
[]
[]
[]
[]
[]
[]
[]
[]
[]
[]
[]
[]
[]
[]
[]
[]
[]
[]
[]
[]
[]
[]
[]
[]
[]
[]
[]
[]
[]
[]
[]
[]
[]
[]
[]
[]
[]
[]
[]
[]
[]
[]
[]
[]
[]
[]
[]
[]
[]
[]
[]
[]
[]
[]
[]
[]
[]
[]
[]
[]
[]
[]
[]
[]
[]
[]
[]
[]
[]
[]
[]
[]
[]
[]
[]
[]
[]
[]
[]
[]
[]
[]
[]
[]
[]
[]
[]
[]
[]
[]
[]
[]
[]
[]
[]
[]
[]
[]
[]
[]
[]
[]
[]
[]
[]
[]
[]
[]
[]
[]
[]
[]
[]
[]
[]
[]
[]
[]
[]
[]
[]
[]
[]
[]
[]
[]
[]
[]
[]
[]
[]
[]
[]
[]
[]
[]
[]
[]
[]
[]
[]
[]
[]
[]
[]
[]
[]
[]
[]
[]
[]
[]
[]
[]
[]
[]
[]
[]
[]
[]
[]
[]
[]
[]
[]
[]
[]
[]
[]
[]
[]
[]
[]
[]
[]
[]
[]
[]
[]
[]
[]
[]
[]
[]
[]
[]
[]
[]
[]
[]
[]
[]
[]
[]
[]
[]
[]
[]
[]
[]
[]
[]
[]
[]
[]
[]
[]
[]
[]
[]
[]
[]
[]
[]
[]
[]
[]
[]
[]
[]
[]
[]
[]
[]
[]
[]
[]
[]
[]
[]
[]
[]
[]
[]
[]
[]
[]
[]
[]
[]
[]
[]
[]
[]
[]
[]
[]
[]
[]
[]
[]
[]
[]
[]
[]
[]
[]
[]
[]
[]
[]
[]
[]
[]
[]
[]
[]
[]
[]
[]
[]
[]
[]
[]
[]
[]
[]
[]
[]
[]
[]
[]
[]
[]
[]
[]
[]
[]
[]
[]
[]
[]
[]
[]
[]
[]
[]
[]
[]
[]
[]
[]
[]
[]
[]
[]
[]
[]
[]
[]
[]
[]
[]
[]
[]
[]
[]
[]
[]
[]
[]
[]
[]
[]
[]
[]
[]
[]
[]
[]
[]
[]
[]
[]
[]
[]
[]
[]
[]
[]
[]
[]
[]
[]
[]
[]
[]
[]
[]
[]
[]
[]
[]
[]
[]
[]
[]
[]
[]
[]
[]
[]
[]
[]
[]
[]
[]
[]
[]
[]
[]
[]
[]
[]
[]
[]
[]
[]
[]
[]
[]
[]
[]
[]
[]
[]
[]
[]
[]
[]
[]
[]
[]
[]
[]
[]
[]
[]
[]
[]
[]
[]
[]
[]
[]
[]
[]
[]
[]
[]
[]
[]
[]
[]
[]
[]
[]
[]
[]
[]
[]
[]
[]
[]
[]
[]
[]
[]
[]
[]
[]
[]
[]
[]
[]
[]
[]
[]
[]
[]
[]
[]
[]
[]
[]
[]
[]
[]
[]
[]
[]
[]
[]
[]
[]
[]
[]
[]
[]
[]
[]
[]
[]
[]
[]
[]
[]
[]
[]
[]
[]
[]
[]
[]
[]
[]
[]
[]
[]
[]
[]
[]
[]
[]
[]
[]
[]
[]
[]
[]
[]
[]
[]
[]
[]
[]
[]
[]
[]
[]
[]
[]
[]
[]
[]
[]
[]
[]
[]
[]
[]
[]
[]
[]
[]
[]
[]
[]
[]
[]
[]
[]
[]
[]
[]
[]
[]
[]
[]
[]
[]
[]
[]
[]
[]
[]
[]
[]
[]
[]
[]
[]
[]
[]
[]
[]
[]
[]
[]
[]
[]
[]
[]
[]
[]
[]
[]
[]
[]
[]
[]
[]
[]
[]
[]
[]
[]
[]
[]
[]
[]
[]
[]
[]
[]
[]
[]
[]
[]
[]
[]
[]
[]
[]
[]
[]
[]
[]
[]
[]
[]
[]
[]
[]
[]
[]
[]
[]
[]
[]
[]
[]
[]
[]
[]
[]
[]
[]
[]
[]
[]
[]
[]
[]
[]
[]
[]
[]
[]
[]
[]
[]
[]
[]
[]
[]
[]
[]
[]
[]
[]
[]
[]
[]
[]
[]
[]
[]
[]
[]
[]
[]
[]
[]
[]
[]
[]
[]
[]
[]
[]
[]
[]
[]
[]
[]
[]
[]
[]
[]
[]
[]
[]
[]
[]
[]
[]
[]
[]
[]
[]
[]
[]
[]
[]
[]
[]
[]
[]
[]
[]
[]
[]
[]
[]
[]
[]
[]
[]
[]
[]
[]
[]
[]
[]
[]
[]
[]
[]
[]
[]
[]
[]
[]
[]
[]
[]
[]
[]
[]
[]
[]
[]
[]
[]
[]
[]
[]
[]
[]
[]
[]
[]
[]
[]
[]
[]
[]
[]
[]
[]
[]
[]
[]
[]
[]
[]
[]
[]
[]
[]
[]
[]
[]
[]
[]
[]
[]
[]
[]
[]
[]
[]
[]
[]
[]
[]
[]
[]
[]
[]
[]
[]
[]
[]
[]
[]
[]
[]
[]
[]
[]
[]
[]
[]
[]
[]
[]
[]
[]
[]
[]
[]
[]
[]
[]
[]
[]
[]
[]
[]
[]
[]
[]
[]
[]
[]
[]
[]
[]
[]
[]
[]
[]
[]
[]
[]
[]
[]
[]
[]
[]
[]
[]
[]
[]
[]
[]
[]
[]
[]
[]
[]
[]
[]
[]
[]
[]
[]
[]
[]
[]
[]
[]
[]
[]
[]
[]
[]
[]
[]
[]
[]
[]
[]
[]
[]
[]
[]
[]
[]
[]
[]
[]
[]
[]
[]
[]
[]
[]
[]
[]
[]
[]
[]
[]
[]
[]
[]
[]
[]
[]
[]
[]
[]
[]
[]
[]
[]
[]
[]
[]
[]
[]
[]
[]
[]
[]
[]
[]
[]
[]
[]
[]
[]
[]
[]
[]
[]
[]
[]
[]
[]
[]
[]
[]
[]
[]
[]
[]
[]
[]
[]
[]
[]
[]
[]
[]
[]
[]
[]
[]
[]
[]
[]
[]
[]
[]
[]
[]
[]
[]
[]
[]
[]
[]
[]
[]
[]
[]
[]
[]
[]
[]
[]
[]
[]
[]
[]
[]
[]
[]
[]
[]
[]
[]
[]
[]
[]
[]
[]
[]
[]
[]
[]
[]
[]
[]
[]
[]
[]
[]
[]
[]
[]
[]
[]
[]
[]
[]
[]
[]
[]
[]
[]
[]
[]
[]
[]
[]
[]
[]
[]
[]
[]
[]
[]
[]
[]
[]
[]
[]
[]
[]
[]
[]
[]
[]
[]
[]
[]
[]
[]
[]
[]
[]
[]
[]
[]
[]
[]
[]
[]
[]
[]
[]
[]
[]
[]
[]
[]
[]
[]
[]
[]
[]
[]
[]
[]
[]
[]
[]
[]
[]
[]
[]
[]
[]
[]
[]
[]
[]
[]
[]
[]
[]
[]
[]
[]
[]
[]
[]
[]
[]
[]
[]
[]
[]
[]
[]
[]
[]
[]
[]
[]
[]
[]
[]
[]
[]
[]
[]
[]
[]
[]
[]
[]
[]
[]
[]
[]
[]
[]
[]
[]
[]
[]
[]
[]
[]
[]
[]
[]
[]
[]
[]
[]
[]
[]
[]
[]
[]
[]
[]
[]
[]
[]
[]
[]
[]
[]
[]
[]
[]
[]
[]
[]
[]
[]
[]
[]
[]
[]
[]
[]
[]
[]
[]
[]
[]
[]
[]
[]
[]
[]
[]
[]
[]
[]
[]
[]
[]
[]
[]
[]
[]
[]
[]
[]
[]
[]
[]
[]
[]
[]
[]
[]
[]
[]
[]
[]
[]
[]
[]
[]
[]
[]
[]
[]
[]
[]
[]
[]
[]
[]
[]
[]
[]
[]
[]
[]
[]
[]
[]
[]
[]
[]
[]
[]
[]
[]
[]
[]
[]
[]
[]
[]
[]
[]
[]
[]
[]
[]
[]
[]
[]
[]
[]
[]
[]
[]
[]
[]
[]
[]
[]
[]
[]
[]
[]
[]
[]
[]
[]
[]
[]
[]
[]
[]
[]
[]
[]
[]
[]
[]
[]
[]
[]
[]
[]
[]
[]
[]
[]
[]
[]
[]
[]
[]
[]
[]
[]
[]
[]
[]
[]
[]
[]
[]
[]
[]
[]
[]
[]
[]
[]
[]
[]
[]
[]
[]
[]
[]
[]
[]
[]
[]
[]
[]
[]
[]
[]
[]
[]
[]
[]
[]
[]
[]
[]
[]
[]
[]
[]
[]
[]
[]
[]
[]
[]
[]
[]
[]
[]
[]
[]
[]
[]
[]
[]
[]
[]
[]
[]
[]
[]
[]
[]
[]
[]
[]
[]
[]
[]
[]
[]
[]
[]
[]
[]
[]
[]
[]
[]
[]
[]
[]
[]
[]
[]
[]
[]
[]
[]
[]
[]
[]
[]
[]
[]
[]
[]
[]
[]
[]
[]
[]
[]
[]
[]
[]
[]
[]
[]
[]
[]
[]
[]
[]
[]
[]
[]
[]
[]
[]
[]
[]
[]
[]
[]
[]
[]
[]
[]
[]
[]
[]
[]
[]
[]
[]
[]
[]
[]
[]
[]
[]
[]
[]
[]
[]
[]
[]
[]
[]
[]
[]
[]
[]
[]
[]
[]
[]
[]
[]
[]
[]
[]
[]
[]
[]
[]
[]
[]
[]
[]
[]
[]
[]
[]
[]
[]
[]
[]
[]
[]
[]
[]
[]
[]
[]
[]
[]
[]
[]
[]
[]
[]
[]
[]
[]
[]
[]
[]
[]
[]
[]
[]
[]
[]
[]
[]
[]
[]
[]
[]
[]
[]
[]
[]
[]
[]
[]
[]
[]
[]
[]
[]
[]
[]
[]
[]
[]
[]
[]
[]
[]
[]
[]
[]
[]
[]
[]
[]
[]
[]
[]
[]
[]
[]
[]
[]
[]
[]
[]
[]
[]
[]
[]
[]
[]
[]
[]
[]
[]
[]
[]
[]
[]
[]
[]
[]
[]
[]
[]
[]
[]
[]
[]
[]
[]
[]
[]
[]
[]
[]
[]
[]
[]
[]
[]
[]
[]
[]
[]
[]
[]
[]
[]
[]
[]
[]
[]
[]
[]
[]
[]
[]
[]
[]
[]
[]
[]
[]
[]
[]
[]
[]
[]
[]
[]
[]
[]
[]
[]
[]
[]
[]
[]
[]
[]
[]
[]
[]
[]
[]
[]
[]
[]
[]
[]
[]
[]
[]
[]
[]
[]
[]
[]
[]
[]
[]
[]
[]
[]
[]
[]
[]
[]
[]
[]
[]
[]
[]
[]
[]
[]
[]
[]
[]
[]
[]
[]
[]
[]
[]
[]
[]
[]
[]
[]
[]
[]
[]
[]
[]
[]
[]
[]
[]
[]
[]
[]
[]
[]
[]
[]
[]
[]
[]
[]
[]
[]
[]
[]
[]
[]
[]
[]
[]
[]
[]
[]
[]
[]
[]
[]
[]
[]
[]
[]
[]
[]
[]
[]
[]
[]
[]
[]
[]
[]
[]
[]
[]
[]
[]
[]
[]
[]
[]
[]
[]
[]
[]
[]
[]
[]
[]
[]
[]
[]
[]
[]
[]
[]
[]
[]
[]
[]
[]
[]
[]
[]
[]
[]
[]
[]
[]
[]
[]
[]
[]
[]
[]
[]
[]
[]
[]
[]
[]
[]
[]
[]
[]
[]
[]
[]
[]
[]
[]
[]
[]
[]
[]
[]
[]
[]
[]
[]
[]
[]
[]
[]
[]
[]
[]
[]
[]
[]
[]
[]
[]
[]
[]
[]
[]
[]
[]
[]
[]
[]
[]
[]
[]
[]
[]
[]
[]
[]
[]
[]
[]
[]
[]
[]
[]
[]
[]
[]
[]
[]
[]
[]
[]
[]
[]
[]
[]
[]
[]
[]
[]
[]
[]
[]
[]
[]
[]
[]
[]
[]
[]
[]
[]
[]
[]
[]
[]
[]
[]
[]
[]
[]
[]
[]
[]
[]
[]
[]
[]
[]
[]
[]
[]
[]
[]
[]
[]
[]
[]
[]
[]
[]
[]
[]
[]
[]
[]
[]
[]
[]
[]
[]
[]
[]
[]
[]
[]
[]
[]
[]
[]
[]
[]
[]
[]
[]
[]
[]
[]
[]
[]
[]
[]
[]
[]
[]
[]
[]
[]
[]
[]
[]
[]
[]
[]
[]
[]
[]
[]
[]
[]
[]
[]
[]
[]
[]
[]
[]
[]
[]
[]
[]
[]
[]
[]
[]
[]
[]
[]
[]
[]
[]
[]
[]
[]
[]
[]
[]
[]
[]
[]
[]
[]
[]
[]
[]
[]
[]
[]
[]
[]
[]
[]
[]
[]
[]
[]
[]
[]
[]
[]
[]
[]
[]
[]
[]
[]
[]
[]
[]
[]
[]
[]
[]
[]
[]
[]
[]
[]
[]
[]
[]
[]
[]
[]
[]
[]
[]
[]
[]
[]
[]
[]
[]
[]
[]
[]
[]
[]
[]
[]
[]
[]
[]
[]
[]
[]
[]
[]
[]
[]
[]
[]
[]
[]
[]
[]
[]
[]
[]
[]
[]
[]
[]
[]
[]
[]
[]
[]
[]
[]
[]
[]
[]
[]
[]
[]
[]
[]
[]
[]
[]
[]
[]
[]
[]
[]
[]
[]
[]
[]
[]
[]
[]
[]
["Admin - Planeación Estratégica","Estratégicos","Central","Gestión","ANÁLISIS RESULTADO\nTRIMESTRE",null,"Estratégicos","Misionales","Apoyo","Evaluación y Mejora","Transversal_todos_procesos"]
["Admin - Comunicación Institucional","Misionales","Seccional","Producto",null,"Entregable","Admin - Planeación Estratégica","Admin - Reordenamiento Judicial","Admin - Gestión Documental","Admin - Gestión de Control Interno y Auditoría","Transversal_todos_procesos"]
["Admin - Gestión para la Integración de Listas de Altas Cortes","Apoyo",null,null,null,"Meta cuantificable","Admin - Comunicación Institucional","Admin - Modernización de la Gestión Judicial","Admin - Gestión Tecnológica","Admin - Mejoramiento del Sistema Integrado de Gestión y Control de la Calidad y del Medio Ambiente"]
["Admin - Reordenamiento Judicial","Evaluación_y_Mejora",null,null,null,null,"Admin - Gestión para la Integración de Listas de Altas Cortes","Admin - Mejoramiento de la Infraestructura Física","Admin - Gestión de la Información Estadística","Juris - Gestión de Mejoramiento del SIGCMA"]
["Admin - Modernización de la Gestión Judicial","Transversal_todos_procesos",null,null,null,null,"Juris - Gestión de Planeación Estratégica","Admin - Administración de la Carrera Judicial","Admin - Gestión Humana"]
["Admin - Mejoramiento de la Infraestructura Física",null,null,null,null,null,"Juris - Gestión de Comunicación Institucional","Admin - Gestión de la Formación Judicial","Admin - Gestión de Seguridad y Salud en el Trabajo"]
["Admin - Administración de la Carrera Judicial",null,null,null,null,null,null,"Admin - Gestión de la Información Judicial","Admin - Asistencia Legal"]
["Admin - Gestión de la Formación Judicial",null,null,null,null,null,null,"Admin - Registro y Control de Abogados y Auxiliares de la Justicia","Admin - Administración de la Seguridad"]
["Admin - Gestión de la Información Judicial",null,null,null,null,null,null,"Juris - Gestión de Acciones Constitucionales","Admin - Gestión Administrativa"]
["Admin - Registro y Control de Abogados y Auxiliares de la Justicia",null,null,null,null,null,null,"Juris - Gestión Proceso Ordinario","Admin - Compras Públicas"]
["Admin - Gestión Documental",null,null,null,null,null,null,null,"Admin - Gestión Financiera y Presupuestal"]
["Admin - Gestión Tecnológica",null,null,null,null,null,null,null,"Juris - Atención al Usuario"]
["Admin - Gestión de la Información Estadística",null,null,null,null,null,null,null,"Juris - Gestión de Servicios Judiciales"]
["Admin - Gestión Humana",null,null,null,null,null,null,null,"Juris - Gestión de Servicios Administrativos"]
["Admin - Gestión de Seguridad y Salud en el Trabajo"]
["Admin - Asistencia Legal"]
["Admin - Administración de la Seguridad"]
["Admin - Gestión Administrativa"]
["Admin - Compras Públicas"]
["Admin - Gestión Financiera y Presupuestal"]
["Admin - Gestión de Control Interno y Auditoría"]
["Admin - Mejoramiento del Sistema Integrado de Gestión y Control de la Calidad y del Medio Ambiente"]
["Juris - Gestión de Planeación Estratégica"]
["Juris - Gestión de Comunicación Institucional"]
["Juris - Gestión de Acciones Constitucionales"]
["Juris - Gestión Proceso Ordinario"]
["Juris - Atención al Usuario"]
["Juris - Gestión de Servicios Judiciales"]
["Juris - Gestión de Servicios Administrativos"]
["Juris - Gestión de Mejoramiento del SIGCMA"]

{"sheet":"GESTION","index":4,"n_rows":130,"n_cols":20,"rows_kept":130,"cut":false,"hidden":false,"merged":[[1,0,1,18],[1,19,1,28],[2,0,2,3],[3,0,4,1],[3,2,4,2],[3,3,4,3],[3,4,3,6],[3,7,3,17],[2,4,2,17],[2,18,4,18],[20,3,24,3],[25,2,29,2],[25,3,29,3],[5,1,29,1],[5,3,9,3],[10,2,14,2],[10,3,14,3],[15,2,19,2],[15,3,19,3],[5,2,9,2],[5,0,29,0],[30,2,34,2],[35,2,39,2],[40,2,44,2],[45,2,49,2],[20,2,24,2],[50,2,54,2],[55,2,59,2],[30,3,59,3],[30,1,59,1],[30,0,59,0],[75,3,89,3],[90,2,94,2],[90,3,94,3],[60,2,64,2],[60,3,64,3],[65,2,69,2],[70,2,74,2],[70,3,74,3],[65,3,69,3],[60,1,94,1],[60,0,94,0],[95,2,99,2],[100,2,104,2],[105,2,109,2],[95,0,119,0],[75,2,79,2],[80,2,84,2],[85,2,89,2],[110,2,114,2],[125,2,129,2],[120,3,129,3],[120,1,129,1],[120,0,129,0],[95,3,114,3],[115,2,119,2],[115,3,119,3],[95,1,119,1],[120,2,124,2]]}
[]
["CONSEJO SUPERIOR DE LA JUDICATURA \nUNIDADES MISIONALES DEL CONSEJO SUPERIOR DE LA JUDICATURA - \nDIRECCIÓN EJECUTIVA DE ADMINISTRACIÓN JUDICIAL - UNIDADES MISIONALES DE LA DEAJ\nDIRECCIONES SECCIONALES DE ADMINISTRACIÓN JUDICIAL - DEPENDENCIAS JUDICIALES CERTIFICADAS",null,null,null,null,null,null,null,null,null,null,null,null,null,null,null,null,null,null,"GENERADOR DE SEGUIMIENTOS TRIMESTRALES"]
["PLAN SECTORIAL DE DESARROLLO 2023-2026 - OBJETIVOS SIGCMA",null,null,null,"PLAN DE ACCIÓN Y SEGUIMIENTO A LA GESTIÓN INSTITUCIONAL (DE ACUERDO CON LA FUNCIÓN MISIONAL ASIGNADA )",null,null,null,null,null,null,null,null,null,null,null,null,null," ANÁLISIS RESULTADO"]
["OBJETIVO ESTRATÉGICO",null,"OBJETIVO ESPECÍFICO PSD","OBJETIVO ESPECÍFICO SIGCMA","MAPA PROCESO SIGCMA",null,null,"MEDICIÓN DE LA GESTIÓN ANUAL"]
[null,null,null,null,"NOMBRE MACRO PROCESO SIGCMA","PROCESO SIGCMA","NIVEL ","ACTIVIDADES ","INDIQUE SI ES ENTREGABLE O META CUANTIFICABLE","META ANUAL","UNIDAD DE MEDIDA","RESPONSABLE DEL PROCESO ","MEDIO O MECANISMO A TRAVES DEL CUAL SE HACE EL SEGUIMIENTO\n(Producto y/o servicio principal)","INICIO \nDÍA/MES/AÑO","FIN\nDÍA/MES/AÑO","AVANCE DE LA META ","NIVEL CUMPLIMIENTO","DIFICULTADES PARA LOGRAR LA META PROPUESTA"]
["1. Acceso e Infraestructura Física","Acceso e Infraestructura Física: Ampliar, en todo el territorio nacional, el acceso a una justicia efectiva, pronta, equitativa e incluyente, reduciendo el atraso y la congestión, de acuerdo con las necesidades de la demanda de justicia por jurisdicción y especialidad, y mejorando la articulación con la justicia restaurativa y terapéutica, y otros mecanismos de solución de conflictos y consolidando una infraestructura física óptima para el acceso a la justicia.","1. Ampliar el acceso a justicia para atender las necesidades jurídicas de los ciudadanos con un enfoque diferencial, de una manera pronta, reduciendo las inequidades y las brechas territoriales de acceso.","2. Asegurar  el cumplimiento de los objetivos institucionales, la normatividad aplicable,  la mejora del SIGCMA y la satisfacción de los usuarios, revisando de  forma continua y sistemática la planificación de la gestión y fortaleciendo la administración de riesgos y sus controles","Misionales","Admin - Mejoramiento de la Infraestructura Física","Seccional","Elaborar  y ejecutar el plan de inversiones","Entregable",null,null,"Fabio Florez Castillo","Plan de Inversiòn","2023-01-01","2023-12-31",{"$f":"IFERROR(#REF!,\" \")","v":" "},{"$f":"IFERROR(P6/J6,\"\")","v":""},{"$f":"_xlfn.CONCAT(\"Trimestre 1\",CHAR(10),IFERROR(#REF!,\" \"))","v":"Trimestre 1\n "},{"$f":"_xlfn.CONCAT(\"Trimestre 1\",CHAR(10),IFERROR(#REF!,\" \"))","v":"Trimestre 1\n "}]
[null,null,null,null,"Misionales","Admin - Mejoramiento de la Infraestructura Física","Seccional","Elaborar y ejecutar el Plan de Mantenimiento","Entregable",null,null,"Fabio Florez Castillo","Plan de Mantenimiento","2023-01-01","2023-12-31",{"$f":"IFERROR(#REF!,\" \")","v":" "},"",{"$f":"_xlfn.CONCAT(\"Trimestre 1\",CHAR(10),IFERROR(#REF!,\" \"))","v":"Trimestre 1\n "},{"$f":"_xlfn.CONCAT(\"Trimestre 1\",CHAR(10),IFERROR(#REF!,\" \"))","v":"Trimestre 1\n "}]
[null,null,null,null,"Apoyo","Admin - Administración de la Seguridad","Seccional","Contratar los equipos y adecuaciones a la infraestructura necesarios para la seguridad de las sedes y servidores judiciales.","Entregable",null,null,"Fabio Florez Castillo","Contratos","2023-01-01","2023-12-31",{"$f":"IFERROR(#REF!,\" \")","v":" "},"",{"$f":"_xlfn.CONCAT(\"Trimestre 1\",CHAR(10),IFERROR(#REF!,\" \"))","v":"Trimestre 1\n "},{"$f":"_xlfn.CONCAT(\"Trimestre 1\",CHAR(10),IFERROR(#REF!,\" \"))","v":"Trimestre 1\n "}]
[null,null,null,null,"Misionales","Admin - Reordenamiento Judicial","Seccional","Elaborar un concepto que incluya la recomendación para la toma de decisiones en materia de reordenamiento y/o descongestión judicial. \n","Entregable",null,null,"Labrenty Efren Palomo Meza","Conceptos de Reordenamiento de Traslado","2023-01-01","2023-12-31",{"$f":"IFERROR(#REF!,\" \")","v":" "},"",{"$f":"_xlfn.CONCAT(\"Trimestre 1\",CHAR(10),IFERROR(#REF!,\" \"))","v":"Trimestre 1\n "},{"$f":"_xlfn.CONCAT(\"Trimestre 1\",CHAR(10),IFERROR(#REF!,\" \"))","v":"Trimestre 1\n "}]
[null,null,null,null,"Misionales","Admin - Reordenamiento Judicial","Seccional","Divulgar y elaborar informes de las medidas de reordenamiento y/o descongestión judicial \ncreadas por el Consejo Superior","Entregable",null,null,"Labrenty Efren Palomo Meza","Informe de Medidas de descongestión","2023-01-01","2023-12-31",{"$f":"IFERROR(#REF!,\" \")","v":" "},"",{"$f":"_xlfn.CONCAT(\"Trimestre 1\",CHAR(10),IFERROR(#REF!,\" \"))","v":"Trimestre 1\n "},{"$f":"_xlfn.CONCAT(\"Trimestre 1\",CHAR(10),IFERROR(#REF!,\" \"))","v":"Trimestre 1\n "}]
[null,null,"2. Mejorar los tiempos de respuesta de la Rama Judicial y reducir el inventario de procesos, identificando los retos internos y promoviendo tanto acciones articuladas específicas para abordarlos como estrategias coordinadas para enfrentar las barreras que dependen de otras entidades.","2. Asegurar  el cumplimiento de los objetivos institucionales, la normatividad aplicable,  la mejora del SIGCMA y la satisfacción de los usuarios, revisando de  forma continua y sistemática la planificación de la gestión y fortaleciendo la administración de riesgos y sus controles","Apoyo","Admin - Compras Públicas","Seccional","Elaborar el Plan de Adquisición Anual","Entregable",null,null,"Janini Salcedo Dominguez","Plan de Adquisición Anual","2023-01-01","2023-12-31",{"$f":"IFERROR(#REF!,\" \")","v":" "},"",{"$f":"_xlfn.CONCAT(\"Trimestre 1\",CHAR(10),IFERROR(#REF!,\" \"))","v":"Trimestre 1\n "},{"$f":"_xlfn.CONCAT(\"Trimestre 1\",CHAR(10),IFERROR(#REF!,\" \"))","v":"Trimestre 1\n "}]
[null,null,null,null,"Apoyo","Admin - Compras Públicas","Seccional"," Registrar mensualmente el avance físico y financiero en el consolidado de contratos y formatos de gestión contractual y regionalizado a la Contraloría General de la República.\n","Entregable",null,null,"Janini Salcedo Dominguez","Formatos de Registros de Avances Fisico y Financiero","2023-01-01","2023-12-31",{"$f":"IFERROR(#REF!,\" \")","v":" "},"",{"$f":"_xlfn.CONCAT(\"Trimestre 1\",CHAR(10),IFERROR(#REF!,\" \"))","v":"Trimestre 1\n "},{"$f":"_xlfn.CONCAT(\"Trimestre 1\",CHAR(10),IFERROR(#REF!,\" \"))","v":"Trimestre 1\n "}]
[null,null,null,null,"Apoyo","Admin - Compras Públicas","Seccional"," Verificar las adquisiciones de bienes y servicios que han sido contratadas en la DESAJ.","Entregable",null,null,"Janini Salcedo Dominguez","Cuadro de seguimiento y control de contratos","2023-01-01","2023-12-31",{"$f":"IFERROR(#REF!,\" \")","v":" "},"",{"$f":"_xlfn.CONCAT(\"Trimestre 1\",CHAR(10),IFERROR(#REF!,\" \"))","v":"Trimestre 1\n "},{"$f":"_xlfn.CONCAT(\"Trimestre 1\",CHAR(10),IFERROR(#REF!,\" \"))","v":"Trimestre 1\n "}]
[null,null,null,null,"Apoyo","Admin - Gestión Financiera y Presupuestal","Seccional","Ejecutar el Presupuesto de la Seccional","Entregable",null,null,"Maria Claudia Berrocal","Presupuesto Ejecutado","2023-01-01","2023-12-31",{"$f":"IFERROR(#REF!,\" \")","v":" "},"",{"$f":"_xlfn.CONCAT(\"Trimestre 1\",CHAR(10),IFERROR(#REF!,\" \"))","v":"Trimestre 1\n "},{"$f":"_xlfn.CONCAT(\"Trimestre 1\",CHAR(10),IFERROR(#REF!,\" \"))","v":"Trimestre 1\n "}]
[null,null,null,null,"Apoyo","Admin - Gestión Financiera y Presupuestal","Seccional","Gestionar las Politicas de Viaticos","Entregable",null,null,"Maria Claudia Berrocal","Resoluciones de Viaticos","2023-01-01","2023-12-31",{"$f":"IFERROR(#REF!,\" \")","v":" "},"",{"$f":"_xlfn.CONCAT(\"Trimestre 1\",CHAR(10),IFERROR(#REF!,\" \"))","v":"Trimestre 1\n "},{"$f":"_xlfn.CONCAT(\"Trimestre 1\",CHAR(10),IFERROR(#REF!,\" \"))","v":"Trimestre 1\n "}]
[null,null,"3. Coadyuvar en la garantía de la idoneidad en el ejercicio de la profesión jurídica de acuerdo con lo establecido en la Ley 1905 de 2018","2. Asegurar  el cumplimiento de los objetivos institucionales, la normatividad aplicable,  la mejora del SIGCMA y la satisfacción de los usuarios, revisando de  forma continua y sistemática la planificación de la gestión y fortaleciendo la administración de riesgos y sus controles","Apoyo","Admin - Gestión Financiera y Presupuestal","Seccional","Mantener actualizada la información Contable","Entregable",null,null,"Andrea Maldonado","Estados Financieros","2023-01-01","2023-12-31",{"$f":"IFERROR(#REF!,\" \")","v":" "},"",{"$f":"_xlfn.CONCAT(\"Trimestre 1\",CHAR(10),IFERROR(#REF!,\" \"))","v":"Trimestre 1\n "},{"$f":"_xlfn.CONCAT(\"Trimestre 1\",CHAR(10),IFERROR(#REF!,\" \"))","v":"Trimestre 1\n "}]
[null,null,null,null,"Apoyo","Admin - Compras Públicas","Seccional","Realizar los procesos contratuales por medio de la plataforma SECOP","Entregable",null,null,"Diana Hernandez","Procesos contratuales","2023-01-01","2023-12-31",{"$f":"IFERROR(#REF!,\" \")","v":" "},"",{"$f":"_xlfn.CONCAT(\"Trimestre 1\",CHAR(10),IFERROR(#REF!,\" \"))","v":"Trimestre 1\n "},{"$f":"_xlfn.CONCAT(\"Trimestre 1\",CHAR(10),IFERROR(#REF!,\" \"))","v":"Trimestre 1\n "}]
[null,null,null,null,null,null,null,null,null,null,null,null,null,null,null,{"$f":"IFERROR(#REF!,\" \")","v":" "},"",{"$f":"_xlfn.CONCAT(\"Trimestre 1\",CHAR(10),IFERROR(#REF!,\" \"))","v":"Trimestre 1\n "},{"$f":"_xlfn.CONCAT(\"Trimestre 1\",CHAR(10),IFERROR(#REF!,\" \"))","v":"Trimestre 1\n "}]
[null,null,null,null,null,null,null,null,null,null,null,null,null,null,null,{"$f":"IFERROR(#REF!,\" \")","v":" "},"",{"$f":"_xlfn.CONCAT(\"Trimestre 1\",CHAR(10),IFERROR(#REF!,\" \"))","v":"Trimestre 1\n "},{"$f":"_xlfn.CONCAT(\"Trimestre 1\",CHAR(10),IFERROR(#REF!,\" \"))","v":"Trimestre 1\n "}]
[null,null,null,null,null,null,null,null,null,null,null,null,null,null,null,{"$f":"IFERROR(#REF!,\" \")","v":" "},"",{"$f":"_xlfn.CONCAT(\"Trimestre 1\",CHAR(10),IFERROR(#REF!,\" \"))","v":"Trimestre 1\n "},{"$f":"_xlfn.CONCAT(\"Trimestre 1\",CHAR(10),IFERROR(#REF!,\" \"))","v":"Trimestre 1\n "}]
[null,null,"4. Avanzar en la disposición de una infraestructura óptima para el acceso a la justicia en la Rama Judicial de modo que se fortalezca la presencia territorial, teniendo en cuenta las posibilidades que ofrece la transformación digital y las necesidades que se derivan de ella, y considerando tanto las necesidades de los usuarios como las de los servidores judiciales.","4. Hacer un uso racional de los recursos naturales aplicando los principios y fases de la Economía Circular, para prevenir, mitigar y controlar los impactos ambientales","Apoyo","Admin - Gestión Administrativa","Seccional","Gestión de Servicios Público","Entregable",null,null,"Marlon Montoya","Cuadro de control de Servicios Públicos","2023-01-01","2023-12-31",{"$f":"IFERROR(#REF!,\" \")","v":" "},"",{"$f":"_xlfn.CONCAT(\"Trimestre 1\",CHAR(10),IFERROR(#REF!,\" \"))","v":"Trimestre 1\n "},{"$f":"_xlfn.CONCAT(\"Trimestre 1\",CHAR(10),IFERROR(#REF!,\" \"))","v":"Trimestre 1\n "}]
[null,null,null,null,null,null,null,null,null,null,null,null,null,null,null,{"$f":"IFERROR(#REF!,\" \")","v":" "},"",{"$f":"_xlfn.CONCAT(\"Trimestre 1\",CHAR(10),IFERROR(#REF!,\" \"))","v":"Trimestre 1\n "},{"$f":"_xlfn.CONCAT(\"Trimestre 1\",CHAR(10),IFERROR(#REF!,\" \"))","v":"Trimestre 1\n "}]
[null,null,null,null,null,null,null,null,null,null,null,null,null,null,null,{"$f":"IFERROR(#REF!,\" \")","v":" "},"",{"$f":"_xlfn.CONCAT(\"Trimestre 1\",CHAR(10),IFERROR(#REF!,\" \"))","v":"Trimestre 1\n "},{"$f":"_xlfn.CONCAT(\"Trimestre 1\",CHAR(10),IFERROR(#REF!,\" \"))","v":"Trimestre 1\n "}]
[null,null,null,null,null,null,null,null,null,null,null,null,null,null,null,{"$f":"IFERROR(#REF!,\" \")","v":" "},"",{"$f":"_xlfn.CONCAT(\"Trimestre 1\",CHAR(10),IFERROR(#REF!,\" \"))","v":"Trimestre 1\n "},{"$f":"_xlfn.CONCAT(\"Trimestre 1\",CHAR(10),IFERROR(#REF!,\" \"))","v":"Trimestre 1\n "}]
[null,null,null,null,null,null,null,null,null,null,null,null,null,null,null,{"$f":"IFERROR(#REF!,\" \")","v":" "},"",{"$f":"_xlfn.CONCAT(\"Trimestre 1\",CHAR(10),IFERROR(#REF!,\" \"))","v":"Trimestre 1\n "},{"$f":"_xlfn.CONCAT(\"Trimestre 1\",CHAR(10),IFERROR(#REF!,\" \"))","v":"Trimestre 1\n "}]
[null,null,"5. Impulsar el uso de mecanismos alternativos para la solución de conflictos y la ampliación de la justicia restaurativa y terapéutica y el robustecimiento de las alternativas al encarcelamiento","2. Asegurar  el cumplimiento de los objetivos institucionales, la normatividad aplicable,  la mejora del SIGCMA y la satisfacción de los usuarios, revisando de  forma continua y sistemática la planificación de la gestión y fortaleciendo la administración de riesgos y sus controles",null,null,null,null,null,null,null,null,null,null,null,{"$f":"IFERROR(#REF!,\" \")","v":" "},"",{"$f":"_xlfn.CONCAT(\"Trimestre 1\",CHAR(10),IFERROR(#REF!,\" \"))","v":"Trimestre 1\n "},{"$f":"_xlfn.CONCAT(\"Trimestre 1\",CHAR(10),IFERROR(#REF!,\" \"))","v":"Trimestre 1\n "}]
[null,null,null,null,null,null,null,null,null,null,null,null,null,null,null,{"$f":"IFERROR(#REF!,\" \")","v":" "},"",{"$f":"_xlfn.CONCAT(\"Trimestre 1\",CHAR(10),IFERROR(#REF!,\" \"))","v":"Trimestre 1\n "},{"$f":"_xlfn.CONCAT(\"Trimestre 1\",CHAR(10),IFERROR(#REF!,\" \"))","v":"Trimestre 1\n "}]
[null,null,null,null,null,null,null,null,null,null,null,null,null,null,null,{"$f":"IFERROR(#REF!,\" \")","v":" "},"",{"$f":"_xlfn.CONCAT(\"Trimestre 1\",CHAR(10),IFERROR(#REF!,\" \"))","v":"Trimestre 1\n "},{"$f":"_xlfn.CONCAT(\"Trimestre 1\",CHAR(10),IFERROR(#REF!,\" \"))","v":"Trimestre 1\n "}]
[null,null,null,null,null,null,null,null,null,null,null,null,null,null,null,{"$f":"IFERROR(#REF!,\" \")","v":" "},"",{"$f":"_xlfn.CONCAT(\"Trimestre 1\",CHAR(10),IFERROR(#REF!,\" \"))","v":"Trimestre 1\n "},{"$f":"_xlfn.CONCAT(\"Trimestre 1\",CHAR(10),IFERROR(#REF!,\" \"))","v":"Trimestre 1\n "}]
[null,null,null,null,null,null,null,null,null,null,null,null,null,null,null,{"$f":"IFERROR(#REF!,\" \")","v":" "},"",{"$f":"_xlfn.CONCAT(\"Trimestre 1\",CHAR(10),IFERROR(#REF!,\" \"))","v":"Trimestre 1\n "},{"$f":"_xlfn.CONCAT(\"Trimestre 1\",CHAR(10),IFERROR(#REF!,\" \"))","v":"Trimestre 1\n "}]
["2. Servicios digitales y de tecnología, innovación y análisis de la información.","Servicios digitales y de tecnología, innovación y análisis de la información: Consolidar una justicia integrada y soportada en servicios digitales y de tecnología, innovación y análisis de la información, con una cultura digital apropiada, segura y sensible a las realidades del territorio nacional. ","1. Ampliar el acceso a la justicia a través de la consolidación del uso de los servicios digitales que conforman el sistema único integrado de gestión judicial en todos los despachos judiciales y dependencias de apoyo y, específicamente, incluyendo el despliegue e implementación del Expediente Judicial Electrónico en todas las jurisdicciones y especialidades.","6. Proteger, preservar y administrar los activos de información  implementando acciones  para gestionar de forma adecuada los incidentes, proteger los datos personales y adoptar mecanismos  de ciberseguridad y aseguramiento de la  continuidad del negocio.","Apoyo","Admin - Gestión Tecnológica","Seccional","Mantener y mejorar el Servicio de Internet de la Seccional","Entregable",null,null,"Jaime Melendez","Servicio de internet en todas las sedes","2023-01-01","2023-12-31",{"$f":"IFERROR(#REF!,\" \")","v":" "},"",{"$f":"_xlfn.CONCAT(\"Trimestre 1\",CHAR(10),IFERROR(#REF!,\" \"))","v":"Trimestre 1\n "},{"$f":"_xlfn.CONCAT(\"Trimestre 1\",CHAR(10),IFERROR(#REF!,\" \"))","v":"Trimestre 1\n "}]
[null,null,null,null,"Apoyo","Admin - Gestión Tecnológica","Seccional","Dar soporte tecnologico, por medio de la mesa de ayuda, a las dependecias administrativas y judiciales de la seccional","Entregable",null,null,"Jaime Melendez","Cuadro de seguimiento a los requerimientos de la Mesa de Ayuda","2023-01-01","2023-12-31",{"$f":"IFERROR(#REF!,\" \")","v":" "},"",{"$f":"_xlfn.CONCAT(\"Trimestre 1\",CHAR(10),IFERROR(#REF!,\" \"))","v":"Trimestre 1\n "},{"$f":"_xlfn.CONCAT(\"Trimestre 1\",CHAR(10),IFERROR(#REF!,\" \"))","v":"Trimestre 1\n "}]
[null,null,null,null,"Apoyo","Admin - Gestión Tecnológica","Seccional","Brindar Capacitaciones a los servidores judiciales sobre el manejo de aplicativos intitucionales","Entregable",null,null,"Jaime Melendez","Capacitaciones","2023-01-01","2023-12-31",{"$f":"IFERROR(#REF!,\" \")","v":" "},"",{"$f":"_xlfn.CONCAT(\"Trimestre 1\",CHAR(10),IFERROR(#REF!,\" \"))","v":"Trimestre 1\n "},{"$f":"_xlfn.CONCAT(\"Trimestre 1\",CHAR(10),IFERROR(#REF!,\" \"))","v":"Trimestre 1\n "}]
[null,null,null,null,"Misionales","Admin - Registro y Control de Abogados y Auxiliares de la Justicia","Seccional","Resolver solicitudes relacionadas con el registro nacional de Abogados por jurisdicción","Entregable",null,null,"Labrenty Efren Palomo Meza","Solicitudes atendidas","2023-01-01","2023-12-31",{"$f":"IFERROR(#REF!,\" \")","v":" "},"",{"$f":"_xlfn.CONCAT(\"Trimestre 1\",CHAR(10),IFERROR(#REF!,\" \"))","v":"Trimestre 1\n "},{"$f":"_xlfn.CONCAT(\"Trimestre 1\",CHAR(10),IFERROR(#REF!,\" \"))","v":"Trimestre 1\n "}]
[null,null,null,null,"Apoyo","Admin - Gestión de la Información Estadística","Seccional","Seguimiento a la información  Estadística que rinden los despachos judiciales","Entregable",null,null,"Isamary Marrugo Díaz","Estadisiticas Judiciales Reportadas","2023-01-01","2023-12-31",{"$f":"IFERROR(#REF!,\" \")","v":" "},"",{"$f":"_xlfn.CONCAT(\"Trimestre 1\",CHAR(10),IFERROR(#REF!,\" \"))","v":"Trimestre 1\n "},{"$f":"_xlfn.CONCAT(\"Trimestre 1\",CHAR(10),IFERROR(#REF!,\" \"))","v":"Trimestre 1\n "}]
[null,null,"2. Integrar y hacer compatibles todos los aplicativos de transición con SIUGJ, para que la migración de los expedientes judiciales a dicha plataforma sea real y no suponga afectaciones en la prestación del servicio de justicia.",null,null,null,null,null,null,null,null,null,null,null,null,{"$f":"IFERROR(#REF!,\" \")","v":" "},"",{"$f":"_xlfn.CONCAT(\"Trimestre 1\",CHAR(10),IFERROR(#REF!,\" \"))","v":"Trimestre 1\n "},{"$f":"_xlfn.CONCAT(\"Trimestre 1\",CHAR(10),IFERROR(#REF!,\" \"))","v":"Trimestre 1\n "}]
[null,null,null,null,null,null,null,null,null,null,null,null,null,null,null,{"$f":"IFERROR(#REF!,\" \")","v":" "},"",{"$f":"_xlfn.CONCAT(\"Trimestre 1\",CHAR(10),IFERROR(#REF!,\" \"))","v":"Trimestre 1\n "},{"$f":"_xlfn.CONCAT(\"Trimestre 1\",CHAR(10),IFERROR(#REF!,\" \"))","v":"Trimestre 1\n "}]
[null,null,null,null,null,null,null,null,null,null,null,null,null,null,null,{"$f":"IFERROR(#REF!,\" \")","v":" "},{"$f":"IFERROR(P38/J38,\"\")","v":""},{"$f":"_xlfn.CONCAT(\"Trimestre 1\",CHAR(10),IFERROR(#REF!,\" \"))","v":"Trimestre 1\n "},{"$f":"_xlfn.CONCAT(\"Trimestre 1\",CHAR(10),IFERROR(#REF!,\" \"))","v":"Trimestre 1\n "}]
[null,null,null,null,null,null,null,null,null,null,null,null,null,null,null,{"$f":"IFERROR(#REF!,\" \")","v":" "},"",{"$f":"_xlfn.CONCAT(\"Trimestre 1\",CHAR(10),IFERROR(#REF!,\" \"))","v":"Trimestre 1\n "},{"$f":"_xlfn.CONCAT(\"Trimestre 1\",CHAR(10),IFERROR(#REF!,\" \"))","v":"Trimestre 1\n "}]
[null,null,null,null,null,null,null,null,null,null,null,null,null,null,null,{"$f":"IFERROR(#REF!,\" \")","v":" "},"",{"$f":"_xlfn.CONCAT(\"Trimestre 1\",CHAR(10),IFERROR(#REF!,\" \"))","v":"Trimestre 1\n "},{"$f":"_xlfn.CONCAT(\"Trimestre 1\",CHAR(10),IFERROR(#REF!,\" \"))","v":"Trimestre 1\n "}]
[null,null,"3. Fortalecer las capacidades institucionales, adecuar el modelo operativo y de servicio, bajo un enfoque de Arquitectura Empresarial y de fortalecimiento del acceso a la justicia.",null,null,null,null,null,null,null,null,null,null,null,null,{"$f":"IFERROR(#REF!,\" \")","v":" "},"",{"$f":"_xlfn.CONCAT(\"Trimestre 1\",CHAR(10),IFERROR(#REF!,\" \"))","v":"Trimestre 1\n "},{"$f":"_xlfn.CONCAT(\"Trimestre 1\",CHAR(10),IFERROR(#REF!,\" \"))","v":"Trimestre 1\n "}]
[null,null,null,null,null,null,null,null,null,null,null,null,null,null,null,{"$f":"IFERROR(#REF!,\" \")","v":" "},"",{"$f":"_xlfn.CONCAT(\"Trimestre 1\",CHAR(10),IFERROR(#REF!,\" \"))","v":"Trimestre 1\n "},{"$f":"_xlfn.CONCAT(\"Trimestre 1\",CHAR(10),IFERROR(#REF!,\" \"))","v":"Trimestre 1\n "}]
[null,null,null,null,null,null,null,null,null,null,null,null,null,null,null,{"$f":"IFERROR(#REF!,\" \")","v":" "},"",{"$f":"_xlfn.CONCAT(\"Trimestre 1\",CHAR(10),IFERROR(#REF!,\" \"))","v":"Trimestre 1\n "},{"$f":"_xlfn.CONCAT(\"Trimestre 1\",CHAR(10),IFERROR(#REF!,\" \"))","v":"Trimestre 1\n "}]
[null,null,null,null,null,null,null,null,null,null,null,null,null,null,null,{"$f":"IFERROR(#REF!,\" \")","v":" "},"",{"$f":"_xlfn.CONCAT(\"Trimestre 1\",CHAR(10),IFERROR(#REF!,\" \"))","v":"Trimestre 1\n "},{"$f":"_xlfn.CONCAT(\"Trimestre 1\",CHAR(10),IFERROR(#REF!,\" \"))","v":"Trimestre 1\n "}]
[null,null,null,null,null,null,null,null,null,null,null,null,null,null,null,{"$f":"IFERROR(#REF!,\" \")","v":" "},"",{"$f":"_xlfn.CONCAT(\"Trimestre 1\",CHAR(10),IFERROR(#REF!,\" \"))","v":"Trimestre 1\n "},{"$f":"_xlfn.CONCAT(\"Trimestre 1\",CHAR(10),IFERROR(#REF!,\" \"))","v":"Trimestre 1\n "}]
[null,null,"4.Consolidar la cultura y apropiación de la transformación digital en los servidores y usuarios de los servicios de la Rama Judicial y reducir brechas de acceso y conocimiento, incluyendo la oferta efectiva de información sobre el uso de las nuevas herramientas virtuales implementadas en las diferentes jurisdicciones, con especial énfasis en las zonas del país donde es evidente la brecha digital.",null,null,null,null,null,null,null,null,null,null,null,null,{"$f":"IFERROR(#REF!,\" \")","v":" "},"",{"$f":"_xlfn.CONCAT(\"Trimestre 1\",CHAR(10),IFERROR(#REF!,\" \"))","v":"Trimestre 1\n "},{"$f":"_xlfn.CONCAT(\"Trimestre 1\",CHAR(10),IFERROR(#REF!,\" \"))","v":"Trimestre 1\n "}]
[null,null,null,null,null,null,null,null,null,null,null,null,null,null,null,{"$f":"IFERROR(#REF!,\" \")","v":" "},"",{"$f":"_xlfn.CONCAT(\"Trimestre 1\",CHAR(10),IFERROR(#REF!,\" \"))","v":"Trimestre 1\n "},{"$f":"_xlfn.CONCAT(\"Trimestre 1\",CHAR(10),IFERROR(#REF!,\" \"))","v":"Trimestre 1\n "}]
[null,null,null,null,null,null,null,null,null,null,null,null,null,null,null,{"$f":"IFERROR(#REF!,\" \")","v":" "},"",{"$f":"_xlfn.CONCAT(\"Trimestre 1\",CHAR(10),IFERROR(#REF!,\" \"))","v":"Trimestre 1\n "},{"$f":"_xlfn.CONCAT(\"Trimestre 1\",CHAR(10),IFERROR(#REF!,\" \"))","v":"Trimestre 1\n "}]
[null,null,null,null,null,null,null,null,null,null,null,null,null,null,null,{"$f":"IFERROR(#REF!,\" \")","v":" "},"",{"$f":"_xlfn.CONCAT(\"Trimestre 1\",CHAR(10),IFERROR(#REF!,\" \"))","v":"Trimestre 1\n "},{"$f":"_xlfn.CONCAT(\"Trimestre 1\",CHAR(10),IFERROR(#REF!,\" \"))","v":"Trimestre 1\n "}]
[null,null,null,null,null,null,null,null,null,null,null,null,null,null,null,{"$f":"IFERROR(#REF!,\" \")","v":" "},"",{"$f":"_xlfn.CONCAT(\"Trimestre 1\",CHAR(10),IFERROR(#REF!,\" \"))","v":"Trimestre 1\n "},{"$f":"_xlfn.CONCAT(\"Trimestre 1\",CHAR(10),IFERROR(#REF!,\" \"))","v":"Trimestre 1\n "}]
[null,null,"5.Consolidar la infraestructura y los recursos necesarios para la implementación exitosa de la transformación digital, incluyendo la disposición de internet de calidad en el 100% de las sedes en la Rama Judicial y modernizar los servicios tecnológicos de soporte. ",null,null,null,null,null,null,null,null,null,null,null,null,{"$f":"IFERROR(#REF!,\" \")","v":" "},"",{"$f":"_xlfn.CONCAT(\"Trimestre 1\",CHAR(10),IFERROR(#REF!,\" \"))","v":"Trimestre 1\n "},{"$f":"_xlfn.CONCAT(\"Trimestre 1\",CHAR(10),IFERROR(#REF!,\" \"))","v":"Trimestre 1\n "}]
[null,null,null,null,null,null,null,null,null,null,null,null,null,null,null,{"$f":"IFERROR(#REF!,\" \")","v":" "},"",{"$f":"_xlfn.CONCAT(\"Trimestre 1\",CHAR(10),IFERROR(#REF!,\" \"))","v":"Trimestre 1\n "},{"$f":"_xlfn.CONCAT(\"Trimestre 1\",CHAR(10),IFERROR(#REF!,\" \"))","v":"Trimestre 1\n "}]
[null,null,null,null,null,null,null,null,null,null,null,null,null,null,null,{"$f":"IFERROR(#REF!,\" \")","v":" "},"",{"$f":"_xlfn.CONCAT(\"Trimestre 1\",CHAR(10),IFERROR(#REF!,\" \"))","v":"Trimestre 1\n "},{"$f":"_xlfn.CONCAT(\"Trimestre 1\",CHAR(10),IFERROR(#REF!,\" \"))","v":"Trimestre 1\n "}]
[null,null,null,null,null,null,null,null,null,null,null,null,null,null,null,{"$f":"IFERROR(#REF!,\" \")","v":" "},"",{"$f":"_xlfn.CONCAT(\"Trimestre 1\",CHAR(10),IFERROR(#REF!,\" \"))","v":"Trimestre 1\n "},{"$f":"_xlfn.CONCAT(\"Trimestre 1\",CHAR(10),IFERROR(#REF!,\" \"))","v":"Trimestre 1\n "}]
[null,null,null,null,null,null,null,null,null,null,null,null,null,null,null,{"$f":"IFERROR(#REF!,\" \")","v":" "},"",{"$f":"_xlfn.CONCAT(\"Trimestre 1\",CHAR(10),IFERROR(#REF!,\" \"))","v":"Trimestre 1\n "},{"$f":"_xlfn.CONCAT(\"Trimestre 1\",CHAR(10),IFERROR(#REF!,\" \"))","v":"Trimestre 1\n "}]
[null,null,"6.Integrar y optimizar los servicios administrativos de la Rama Judicial bajo un enfoque de transformación digital e innovación incluyendo los componentes financiero, administrativo, talento humano, entre otros",null,null,null,null,null,null,null,null,null,null,null,null,{"$f":"IFERROR(#REF!,\" \")","v":" "},"",{"$f":"_xlfn.CONCAT(\"Trimestre 1\",CHAR(10),IFERROR(#REF!,\" \"))","v":"Trimestre 1\n "},{"$f":"_xlfn.CONCAT(\"Trimestre 1\",CHAR(10),IFERROR(#REF!,\" \"))","v":"Trimestre 1\n "}]
[null,null,null,null,null,null,null,null,null,null,null,null,null,null,null,{"$f":"IFERROR(#REF!,\" \")","v":" "},"",{"$f":"_xlfn.CONCAT(\"Trimestre 1\",CHAR(10),IFERROR(#REF!,\" \"))","v":"Trimestre 1\n "},{"$f":"_xlfn.CONCAT(\"Trimestre 1\",CHAR(10),IFERROR(#REF!,\" \"))","v":"Trimestre 1\n "}]
[null,null,null,null,null,null,null,null,null,null,null,null,null,null,null,{"$f":"IFERROR(#REF!,\" \")","v":" "},"",{"$f":"_xlfn.CONCAT(\"Trimestre 1\",CHAR(10),IFERROR(#REF!,\" \"))","v":"Trimestre 1\n "},{"$f":"_xlfn.CONCAT(\"Trimestre 1\",CHAR(10),IFERROR(#REF!,\" \"))","v":"Trimestre 1\n "}]
[null,null,null,null,null,null,null,null,null,null,null,null,null,null,null,{"$f":"IFERROR(#REF!,\" \")","v":" "},"",{"$f":"_xlfn.CONCAT(\"Trimestre 1\",CHAR(10),IFERROR(#REF!,\" \"))","v":"Trimestre 1\n "},{"$f":"_xlfn.CONCAT(\"Trimestre 1\",CHAR(10),IFERROR(#REF!,\" \"))","v":"Trimestre 1\n "}]
[null,null,null,null,null,null,null,null,null,null,null,null,null,null,null,{"$f":"IFERROR(#REF!,\" \")","v":" "},"",{"$f":"_xlfn.CONCAT(\"Trimestre 1\",CHAR(10),IFERROR(#REF!,\" \"))","v":"Trimestre 1\n "},{"$f":"_xlfn.CONCAT(\"Trimestre 1\",CHAR(10),IFERROR(#REF!,\" \"))","v":"Trimestre 1\n "}]
["3. Confianza pública, transparencia y rendición de cuentas","Confianza pública, transparencia y rendición de cuentas: Aumentar la confianza pública en la justicia a través de la transparencia, la rendición de cuentas y la participación, incluyendo la información de justicia y la producción, gestión y acceso a las fuentes de derecho, el fortalecimiento del sistema de gestión de calidad y medio ambiente (SIGCMA) y el mejoramiento de la calidad y publicidad de la información. ","1. Incrementar la cantidad, la calidad y pertinencia de los datos sobre el funcionamiento del servicio de justicia bajo un modelo de gobierno de datos y un liderazgo unificado. ","4. Hacer un uso racional de los recursos naturales aplicando los principios y fases de la Economía Circular, para prevenir, mitigar y controlar los impactos ambientales.",null,null,null,null,null,null,null,null,null,null,null,{"$f":"IFERROR(#REF!,\" \")","v":" "},"",{"$f":"_xlfn.CONCAT(\"Trimestre 1\",CHAR(10),IFERROR(#REF!,\" \"))","v":"Trimestre 1\n "},{"$f":"_xlfn.CONCAT(\"Trimestre 1\",CHAR(10),IFERROR(#REF!,\" \"))","v":"Trimestre 1\n "}]
[null,null,null,null,null,null,null,null,null,null,null,null,null,null,null,{"$f":"IFERROR(#REF!,\" \")","v":" "},"",{"$f":"_xlfn.CONCAT(\"Trimestre 1\",CHAR(10),IFERROR(#REF!,\" \"))","v":"Trimestre 1\n "},{"$f":"_xlfn.CONCAT(\"Trimestre 1\",CHAR(10),IFERROR(#REF!,\" \"))","v":"Trimestre 1\n "}]
[null,null,null,null,null,null,null,null,null,null,null,null,null,null,null,{"$f":"IFERROR(#REF!,\" \")","v":" "},"",{"$f":"_xlfn.CONCAT(\"Trimestre 1\",CHAR(10),IFERROR(#REF!,\" \"))","v":"Trimestre 1\n "},{"$f":"_xlfn.CONCAT(\"Trimestre 1\",CHAR(10),IFERROR(#REF!,\" \"))","v":"Trimestre 1\n "}]
[null,null,null,null,null,null,null,null,null,null,null,null,null,null,null,{"$f":"IFERROR(#REF!,\" \")","v":" "},"",{"$f":"_xlfn.CONCAT(\"Trimestre 1\",CHAR(10),IFERROR(#REF!,\" \"))","v":"Trimestre 1\n "},{"$f":"_xlfn.CONCAT(\"Trimestre 1\",CHAR(10),IFERROR(#REF!,\" \"))","v":"Trimestre 1\n "}]
[null,null,null,null,null,null,null,null,null,null,null,null,null,null,null,{"$f":"IFERROR(#REF!,\" \")","v":" "},"",{"$f":"_xlfn.CONCAT(\"Trimestre 1\",CHAR(10),IFERROR(#REF!,\" \"))","v":"Trimestre 1\n "},{"$f":"_xlfn.CONCAT(\"Trimestre 1\",CHAR(10),IFERROR(#REF!,\" \"))","v":"Trimestre 1\n "}]
[null,null,"2. Consolidar la administración de la información entendida como todas las acciones rientadas a garantizar el acceso, consulta, uso y conservación de la información de justicia de manera ágil, flexible e inteligente, bajo un enfoque de innovación.",null,null,null,null,null,null,null,null,null,null,null,null,{"$f":"IFERROR(#REF!,\" \")","v":" "},"",{"$f":"_xlfn.CONCAT(\"Trimestre 1\",CHAR(10),IFERROR(#REF!,\" \"))","v":"Trimestre 1\n "},{"$f":"_xlfn.CONCAT(\"Trimestre 1\",CHAR(10),IFERROR(#REF!,\" \"))","v":"Trimestre 1\n "}]
[null,null,null,null,null,null,null,null,null,null,null,null,null,null,null,{"$f":"IFERROR(#REF!,\" \")","v":" "},"",{"$f":"_xlfn.CONCAT(\"Trimestre 1\",CHAR(10),IFERROR(#REF!,\" \"))","v":"Trimestre 1\n "},{"$f":"_xlfn.CONCAT(\"Trimestre 1\",CHAR(10),IFERROR(#REF!,\" \"))","v":"Trimestre 1\n "}]
[null,null,null,null,null,null,null,null,null,null,null,null,null,null,null,{"$f":"IFERROR(#REF!,\" \")","v":" "},"",{"$f":"_xlfn.CONCAT(\"Trimestre 1\",CHAR(10),IFERROR(#REF!,\" \"))","v":"Trimestre 1\n "},{"$f":"_xlfn.CONCAT(\"Trimestre 1\",CHAR(10),IFERROR(#REF!,\" \"))","v":"Trimestre 1\n "}]
[null,null,null,null,null,null,null,null,null,null,null,null,null,null,null,{"$f":"IFERROR(#REF!,\" \")","v":" "},"",{"$f":"_xlfn.CONCAT(\"Trimestre 1\",CHAR(10),IFERROR(#REF!,\" \"))","v":"Trimestre 1\n "},{"$f":"_xlfn.CONCAT(\"Trimestre 1\",CHAR(10),IFERROR(#REF!,\" \"))","v":"Trimestre 1\n "}]
[null,null,null,null,null,null,null,null,null,null,null,null,null,null,null,{"$f":"IFERROR(#REF!,\" \")","v":" "},{"$f":"IFERROR(P70/J70,\"\")","v":""},{"$f":"_xlfn.CONCAT(\"Trimestre 1\",CHAR(10),IFERROR(#REF!,\" \"))","v":"Trimestre 1\n "},{"$f":"_xlfn.CONCAT(\"Trimestre 1\",CHAR(10),IFERROR(#REF!,\" \"))","v":"Trimestre 1\n "}]
[null,null,"3. Fortalecer el Sistema integrado de Gestión de la Rama, orientado a la implementación y certificación de las normas antisoborno.","1. Gestionar el desarrollo de las competencias, la toma de conciencia , la cultura  organizacional  y el compromiso de los  servidores judiciales, contratistas, practicantes y  judicantes de contribuir a generar valor público en la administración de justicia, en el marco de  cumplimiento de los requisitos  aplicables y el comportamiento ético.\n3. Fomentar la transparencia y la participación generando lineamientos y promoviendo la rendición de cuentas ,la consulta, reporte y planteamiento de inquietudes en relación con las decisiones y aspectos del SIGCMA.","Evaluación_y_Mejora","Admin - Mejoramiento del Sistema Integrado de Gestión y Control de la Calidad y del Medio Ambiente","Seccional","Elaboración del Plan SIGCMA Seccional ","Entregable",null,null,"Isamary Marrugo Díaz\nYezid Martínez Gómez","Plan SIGCMA","2023-01-01","2023-12-31",{"$f":"IFERROR(#REF!,\" \")","v":" "},"",{"$f":"_xlfn.CONCAT(\"Trimestre 1\",CHAR(10),IFERROR(#REF!,\" \"))","v":"Trimestre 1\n "},{"$f":"_xlfn.CONCAT(\"Trimestre 1\",CHAR(10),IFERROR(#REF!,\" \"))","v":"Trimestre 1\n "}]
[null,null,null,null,"Evaluación_y_Mejora","Admin - Mejoramiento del Sistema Integrado de Gestión y Control de la Calidad y del Medio Ambiente","Seccional","Realizar acompañamiento y seguimiento a los Procesos de Sigcma Seccional","Entregable",null,null,"Yezid Martínez Gómez","Actas de Comites","2023-01-01","2023-12-31",{"$f":"IFERROR(#REF!,\" \")","v":" "},"",{"$f":"_xlfn.CONCAT(\"Trimestre 1\",CHAR(10),IFERROR(#REF!,\" \"))","v":"Trimestre 1\n "},{"$f":"_xlfn.CONCAT(\"Trimestre 1\",CHAR(10),IFERROR(#REF!,\" \"))","v":"Trimestre 1\n "}]
[null,null,null,null,null,null,null,null,null,null,null,null,null,null,null,{"$f":"IFERROR(#REF!,\" \")","v":" "},"",{"$f":"_xlfn.CONCAT(\"Trimestre 1\",CHAR(10),IFERROR(#REF!,\" \"))","v":"Trimestre 1\n "},{"$f":"_xlfn.CONCAT(\"Trimestre 1\",CHAR(10),IFERROR(#REF!,\" \"))","v":"Trimestre 1\n "}]
[null,null,null,null,"Estratégicos","Admin - Comunicación Institucional","Seccional","Seguimiento a las peticiones, Quejas, Reclamos y Sugerencias que hacen los usuarios del servicio\n","Entregable",null,null,"Labrenty Efren Palomo","PQRS tramitadas","2023-01-01","2023-12-31",{"$f":"IFERROR(#REF!,\" \")","v":" "},"",{"$f":"_xlfn.CONCAT(\"Trimestre 1\",CHAR(10),IFERROR(#REF!,\" \"))","v":"Trimestre 1\n "},{"$f":"_xlfn.CONCAT(\"Trimestre 1\",CHAR(10),IFERROR(#REF!,\" \"))","v":"Trimestre 1\n "}]
[null,null,null,null,"Estratégicos","Admin - Comunicación Institucional","Seccional","Tramitar las vigilancias judiciales que presentan los usuarios","Entregable",null,null,"Labrenty Efren Palomo","Vigilancias Tramitadas","2023-01-01","2023-12-31",{"$f":"IFERROR(#REF!,\" \")","v":" "},"",{"$f":"_xlfn.CONCAT(\"Trimestre 1\",CHAR(10),IFERROR(#REF!,\" \"))","v":"Trimestre 1\n "},{"$f":"_xlfn.CONCAT(\"Trimestre 1\",CHAR(10),IFERROR(#REF!,\" \"))","v":"Trimestre 1\n "}]
[null,null,"4. Aumentar la confianza, la cercanía y acceso a los servicios de la Rama Judicial a través, entre otros, de una comunicación clara y asertiva con la ciudadanía.","3. Fomentar la transparencia y la participación generando lineamientos y promoviendo la rendición de cuentas ,la consulta, reporte y planteamiento de inquietudes en relación con las decisiones y aspectos del SIGCMA.","Estratégicos","Admin - Comunicación Institucional","Seccional","Diseñar y hacer seguimiento a la matriz de comunicaciones de la Seccional","Entregable",null,null,"Labrenty Efren Palomo","Matriz decomunicaciones","2023-01-01","2023-12-31",{"$f":"IFERROR(#REF!,\" \")","v":" "},"",{"$f":"_xlfn.CONCAT(\"Trimestre 1\",CHAR(10),IFERROR(#REF!,\" \"))","v":"Trimestre 1\n "},{"$f":"_xlfn.CONCAT(\"Trimestre 1\",CHAR(10),IFERROR(#REF!,\" \"))","v":"Trimestre 1\n "}]
[null,null,null,null,"Apoyo","Admin - Gestión Documental","Seccional","Operativizar el cronograma de reuniones del comité de archivo","Entregable",null,null,"Sandra Lora Hoyos","Actas de Comité","2023-01-01","2023-12-31",{"$f":"IFERROR(#REF!,\" \")","v":" "},"",{"$f":"_xlfn.CONCAT(\"Trimestre 1\",CHAR(10),IFERROR(#REF!,\" \"))","v":"Trimestre 1\n "},{"$f":"_xlfn.CONCAT(\"Trimestre 1\",CHAR(10),IFERROR(#REF!,\" \"))","v":"Trimestre 1\n "}]
[null,null,null,null,"Apoyo","Admin - Gestión Documental","Seccional","Realizar Capactiaciones en Gestión Documetnal y TRD","Entregable",null,null,"Jaime Melendez, Yezid Martínez Gómez","Capacitaciones Realizadas","2023-01-01","2023-12-31",{"$f":"IFERROR(#REF!,\" \")","v":" "},"",{"$f":"_xlfn.CONCAT(\"Trimestre 1\",CHAR(10),IFERROR(#REF!,\" \"))","v":"Trimestre 1\n "},{"$f":"_xlfn.CONCAT(\"Trimestre 1\",CHAR(10),IFERROR(#REF!,\" \"))","v":"Trimestre 1\n "}]
[null,null,null,null,"Estratégicos",null,null,null,null,null,null,null,null,null,null,{"$f":"IFERROR(#REF!,\" \")","v":" "},"",{"$f":"_xlfn.CONCAT(\"Trimestre 1\",CHAR(10),IFERROR(#REF!,\" \"))","v":"Trimestre 1\n "},{"$f":"_xlfn.CONCAT(\"Trimestre 1\",CHAR(10),IFERROR(#REF!,\" \"))","v":"Trimestre 1\n "}]
[null,null,null,null,"Estratégicos","Admin - Comunicación Institucional","Seccional","Participación activa del Consejo Seccional de la Judicatura y Dirección Seccional en los distintos Comités del los cuales  es miembro o invitado.","Entregable",null,null,"Ismary Marrugo Díaz","Comites ","2023-01-01","2023-12-31",{"$f":"IFERROR(#REF!,\" \")","v":" "},"",{"$f":"_xlfn.CONCAT(\"Trimestre 1\",CHAR(10),IFERROR(#REF!,\" \"))","v":"Trimestre 1\n "},{"$f":"_xlfn.CONCAT(\"Trimestre 1\",CHAR(10),IFERROR(#REF!,\" \"))","v":"Trimestre 1\n "}]
[null,null,"5. Prevenir fenómenos asociados con actos de corrupción en la Rama Judicial y reducir las experiencias de corrupción de usuarios y servidores judiciales.",null,"Estratégicos","Admin - Comunicación Institucional","Seccional","\nRealizar Audiencia Publica de Rendición de Cuentas y espacios de dialogos programados","Entregable",null,null,"Labrenty Efren Palomo","Audiencia publica y espacios de dialogos realizados","2023-01-01","2023-12-31",{"$f":"IFERROR(#REF!,\" \")","v":" "},"",{"$f":"_xlfn.CONCAT(\"Trimestre 1\",CHAR(10),IFERROR(#REF!,\" \"))","v":"Trimestre 1\n "},{"$f":"_xlfn.CONCAT(\"Trimestre 1\",CHAR(10),IFERROR(#REF!,\" \"))","v":"Trimestre 1\n "}]
[null,null,null,null,null,null,null,null,null,null,null,null,null,null,null,{"$f":"IFERROR(#REF!,\" \")","v":" "},"",{"$f":"_xlfn.CONCAT(\"Trimestre 1\",CHAR(10),IFERROR(#REF!,\" \"))","v":"Trimestre 1\n "},{"$f":"_xlfn.CONCAT(\"Trimestre 1\",CHAR(10),IFERROR(#REF!,\" \"))","v":"Trimestre 1\n "}]
[null,null,null,null,null,null,null,null,null,null,null,null,null,null,null,{"$f":"IFERROR(#REF!,\" \")","v":" "},"",{"$f":"_xlfn.CONCAT(\"Trimestre 1\",CHAR(10),IFERROR(#REF!,\" \"))","v":"Trimestre 1\n "},{"$f":"_xlfn.CONCAT(\"Trimestre 1\",CHAR(10),IFERROR(#REF!,\" \"))","v":"Trimestre 1\n "}]
[null,null,null,null,null,null,null,null,null,null,null,null,null,null,null,{"$f":"IFERROR(#REF!,\" \")","v":" "},"",{"$f":"_xlfn.CONCAT(\"Trimestre 1\",CHAR(10),IFERROR(#REF!,\" \"))","v":"Trimestre 1\n "},{"$f":"_xlfn.CONCAT(\"Trimestre 1\",CHAR(10),IFERROR(#REF!,\" \"))","v":"Trimestre 1\n "}]
[null,null,null,null,null,null,null,null,null,null,null,null,null,null,null,{"$f":"IFERROR(#REF!,\" \")","v":" "},"",{"$f":"_xlfn.CONCAT(\"Trimestre 1\",CHAR(10),IFERROR(#REF!,\" \"))","v":"Trimestre 1\n "},{"$f":"_xlfn.CONCAT(\"Trimestre 1\",CHAR(10),IFERROR(#REF!,\" \"))","v":"Trimestre 1\n "}]
[null,null,"6. Promover la rendición de cuentas y la colaboración real con la ciudadanía como fundamento para diseñar acciones de mejoramiento del acceso a la justicia.",null,null,null,null,null,null,null,null,null,null,null,null,{"$f":"IFERROR(#REF!,\" \")","v":" "},"",{"$f":"_xlfn.CONCAT(\"Trimestre 1\",CHAR(10),IFERROR(#REF!,\" \"))","v":"Trimestre 1\n "},{"$f":"_xlfn.CONCAT(\"Trimestre 1\",CHAR(10),IFERROR(#REF!,\" \"))","v":"Trimestre 1\n "}]
[null,null,null,null,null,null,null,null,null,null,null,null,null,null,null,{"$f":"IFERROR(#REF!,\" \")","v":" "},"",{"$f":"_xlfn.CONCAT(\"Trimestre 1\",CHAR(10),IFERROR(#REF!,\" \"))","v":"Trimestre 1\n "},{"$f":"_xlfn.CONCAT(\"Trimestre 1\",CHAR(10),IFERROR(#REF!,\" \"))","v":"Trimestre 1\n "}]
[null,null,null,null,null,null,null,null,null,null,null,null,null,null,null,{"$f":"IFERROR(#REF!,\" \")","v":" "},"",{"$f":"_xlfn.CONCAT(\"Trimestre 1\",CHAR(10),IFERROR(#REF!,\" \"))","v":"Trimestre 1\n "},{"$f":"_xlfn.CONCAT(\"Trimestre 1\",CHAR(10),IFERROR(#REF!,\" \"))","v":"Trimestre 1\n "}]
[null,null,null,null,null,null,null,null,null,null,null,null,null,null,null,{"$f":"IFERROR(#REF!,\" \")","v":" "},"",{"$f":"_xlfn.CONCAT(\"Trimestre 1\",CHAR(10),IFERROR(#REF!,\" \"))","v":"Trimestre 1\n "},{"$f":"_xlfn.CONCAT(\"Trimestre 1\",CHAR(10),IFERROR(#REF!,\" \"))","v":"Trimestre 1\n "}]
[null,null,null,null,null,null,null,null,null,null,null,null,null,null,null,{"$f":"IFERROR(#REF!,\" \")","v":" "},"",{"$f":"_xlfn.CONCAT(\"Trimestre 1\",CHAR(10),IFERROR(#REF!,\" \"))","v":"Trimestre 1\n "},{"$f":"_xlfn.CONCAT(\"Trimestre 1\",CHAR(10),IFERROR(#REF!,\" \"))","v":"Trimestre 1\n "}]
[null,null,"7. Continuar la consolidación del SIGCMA, a través de los procesos de formación en modelos de gestión, logrando la implementación y ampliación de este en los esquemas certificados de manera gradual, teniendo en cuenta las capacidades de los diferentes despachos judiciales y dependencias de la Rama Judicial y articulando el enfoque de Arquitectura Empresarial para el desarrollo del PETD a través de la gestión del conocimiento para la gestión del cambio propendiendo por una cultura de la calidad, la transparencia, la rendición de cuentas, la anticorrupción y el antisoborno","1. Gestionar el desarrollo de las competencias, la toma de conciencia , la cultura  organizacional  y el compromiso de los  servidores judiciales, contratistas, practicantes y  judicantes de contribuir a generar valor público en la administración de justicia, en el marco de  cumplimiento de los requisitos  aplicables y el comportamiento ético.\n4. Hacer un uso racional de los recursos naturales aplicando los principios y fases de la Economía Circular, para prevenir, mitigar y controlar los impactos ambientales.",null,null,null,null,null,null,null,null,null,null,null,{"$f":"IFERROR(#REF!,\" \")","v":" "},"",{"$f":"_xlfn.CONCAT(\"Trimestre 1\",CHAR(10),IFERROR(#REF!,\" \"))","v":"Trimestre 1\n "},{"$f":"_xlfn.CONCAT(\"Trimestre 1\",CHAR(10),IFERROR(#REF!,\" \"))","v":"Trimestre 1\n "}]
[null,null,null,null,null,null,null,null,null,null,null,null,null,null,null,{"$f":"IFERROR(#REF!,\" \")","v":" "},"",{"$f":"_xlfn.CONCAT(\"Trimestre 1\",CHAR(10),IFERROR(#REF!,\" \"))","v":"Trimestre 1\n "},{"$f":"_xlfn.CONCAT(\"Trimestre 1\",CHAR(10),IFERROR(#REF!,\" \"))","v":"Trimestre 1\n "}]
[null,null,null,null,null,null,null,null,null,null,null,null,null,null,null,{"$f":"IFERROR(#REF!,\" \")","v":" "},"",{"$f":"_xlfn.CONCAT(\"Trimestre 1\",CHAR(10),IFERROR(#REF!,\" \"))","v":"Trimestre 1\n "},{"$f":"_xlfn.CONCAT(\"Trimestre 1\",CHAR(10),IFERROR(#REF!,\" \"))","v":"Trimestre 1\n "}]
[null,null,null,null,null,null,null,null,null,null,null,null,null,null,null,{"$f":"IFERROR(#REF!,\" \")","v":" "},"",{"$f":"_xlfn.CONCAT(\"Trimestre 1\",CHAR(10),IFERROR(#REF!,\" \"))","v":"Trimestre 1\n "},{"$f":"_xlfn.CONCAT(\"Trimestre 1\",CHAR(10),IFERROR(#REF!,\" \"))","v":"Trimestre 1\n "}]
[null,null,null,null,null,null,null,null,null,null,null,null,null,null,null,{"$f":"IFERROR(#REF!,\" \")","v":" "},"",{"$f":"_xlfn.CONCAT(\"Trimestre 1\",CHAR(10),IFERROR(#REF!,\" \"))","v":"Trimestre 1\n "},{"$f":"_xlfn.CONCAT(\"Trimestre 1\",CHAR(10),IFERROR(#REF!,\" \"))","v":"Trimestre 1\n "}]
["4. Talento Humano","Talento Humano: Fortalecer el talento humano en la Rama Judicial para que sea eficiente, capacitado y realice su labor en ambientes saludables y seguros. Ampliar la cobertura de la carrera judicial y mejorar la oferta de formación, que esté disponible para todos los servidores judiciales e impacte positivamente el servicio de justicia y responda a las necesidades reales del ejercicio de la función judicial.","1. Ampliar la cobertura de la carrera judicial optimizando los procesos de los concursos de méritos y propender por mitigar su litigiosidad.","1. Gestionar el desarrollo de las competencias, la toma de conciencia , la cultura  organizacional  y el compromiso de los  servidores judiciales, contratistas, practicantes y  judicantes de contribuir a generar valor público en la administración de justicia, en el marco de  cumplimiento de los requisitos  aplicables y el comportamiento ético.","Apoyo","Admin - Gestión Humana","Seccional","Liquidar la nomina de los servidores Judiciales de la Seccional vinculados o trasladados.","Entregable",null,null,"Yasiry Fuentes Álvarez","Nomina","2023-01-01","2023-12-31",{"$f":"IFERROR(#REF!,\" \")","v":" "},"",{"$f":"_xlfn.CONCAT(\"Trimestre 1\",CHAR(10),IFERROR(#REF!,\" \"))","v":"Trimestre 1\n "},{"$f":"_xlfn.CONCAT(\"Trimestre 1\",CHAR(10),IFERROR(#REF!,\" \"))","v":"Trimestre 1\n "}]
[null,null,null,null,"Apoyo","Admin - Gestión Humana","Seccional","Liquidar la seguridad Social de los servidores Judiciales","Entregable",null,null,"Yasiry Fuentes Álvarez","Prestaciones Sociales de los servidores Judiciales","2023-01-01","2023-12-31",{"$f":"IFERROR(#REF!,\" \")","v":" "},"",{"$f":"_xlfn.CONCAT(\"Trimestre 1\",CHAR(10),IFERROR(#REF!,\" \"))","v":"Trimestre 1\n "},{"$f":"_xlfn.CONCAT(\"Trimestre 1\",CHAR(10),IFERROR(#REF!,\" \"))","v":"Trimestre 1\n "}]
[null,null,null,null,"Apoyo","Admin - Gestión Humana","Seccional","Liquidar las cesantías de Personal","Entregable",null,null,"Yasiry Fuentes Álvarez","Prestaciones Sociales de los servidores Judiciales","2023-01-01","2023-12-31",{"$f":"IFERROR(#REF!,\" \")","v":" "},"",{"$f":"_xlfn.CONCAT(\"Trimestre 1\",CHAR(10),IFERROR(#REF!,\" \"))","v":"Trimestre 1\n "},{"$f":"_xlfn.CONCAT(\"Trimestre 1\",CHAR(10),IFERROR(#REF!,\" \"))","v":"Trimestre 1\n "}]
[null,null,null,null,"Apoyo","Admin - Gestión Humana","Seccional","Responder los derechos de petición relacionados con el área de Talento Humano.","Entregable",null,null,"Yasiry Fuentes Álvarez","Derechos de petición resueltos","2023-01-01","2023-12-31",{"$f":"IFERROR(#REF!,\" \")","v":" "},"",{"$f":"_xlfn.CONCAT(\"Trimestre 1\",CHAR(10),IFERROR(#REF!,\" \"))","v":"Trimestre 1\n "},{"$f":"_xlfn.CONCAT(\"Trimestre 1\",CHAR(10),IFERROR(#REF!,\" \"))","v":"Trimestre 1\n "}]
[null,null,null,null,"Apoyo","Admin - Gestión Humana","Seccional","Expedir los certificados solicitados","Entregable",null,null,"Yasiry Fuentes Álvarez","Certificados Generados","2023-01-01","2023-12-31",{"$f":"IFERROR(#REF!,\" \")","v":" "},"",{"$f":"_xlfn.CONCAT(\"Trimestre 1\",CHAR(10),IFERROR(#REF!,\" \"))","v":"Trimestre 1\n "},{"$f":"_xlfn.CONCAT(\"Trimestre 1\",CHAR(10),IFERROR(#REF!,\" \"))","v":"Trimestre 1\n "}]
[null,null,"2. Impactar la función y servicios que presta la Rama Judicial, a través de una formación integral desde una visión de gestión del conocimiento, relacionada con los problemas de la justicia y los problemas de gestión de quienes administran los recursos de la justicia, y potenciando el uso de medios virtuales.",null,"Apoyo","Admin - Gestión Humana","Seccional","Gestionar las historias laborales de los servidores judiciales","Entregable",null,null,"Yasiry Fuentes Álvarez","Historias Laborales actualizadas","2023-01-01","2023-12-31",{"$f":"IFERROR(#REF!,\" \")","v":" "},"",{"$f":"_xlfn.CONCAT(\"Trimestre 1\",CHAR(10),IFERROR(#REF!,\" \"))","v":"Trimestre 1\n "},{"$f":"_xlfn.CONCAT(\"Trimestre 1\",CHAR(10),IFERROR(#REF!,\" \"))","v":"Trimestre 1\n "}]
[null,null,null,null,"Apoyo","Admin - Gestión de Seguridad y Salud en el Trabajo","Seccional","Ejecutar el Plan de Trabajo de Seguridad y Salud en el Trabajo","Entregable",null,null,"Mariana Petro Bernal","Plan de SST ejectutado","2023-01-01","2023-12-31",{"$f":"IFERROR(#REF!,\" \")","v":" "},{"$f":"IFERROR(P102/J102,\"\")","v":""},{"$f":"_xlfn.CONCAT(\"Trimestre 1\",CHAR(10),IFERROR(#REF!,\" \"))","v":"Trimestre 1\n "},{"$f":"_xlfn.CONCAT(\"Trimestre 1\",CHAR(10),IFERROR(#REF!,\" \"))","v":"Trimestre 1\n "}]
[null,null,null,null,"Misionales","Admin - Administración de la Carrera Judicial","Seccional","Reglamentar los procesos de convocatoria para concurso de empleados en el distrito","Entregable",null,null,"Ismary Marrugo Díaz","Acuerdo de Concurso","2023-01-01","2023-12-31",{"$f":"IFERROR(#REF!,\" \")","v":" "},"",{"$f":"_xlfn.CONCAT(\"Trimestre 1\",CHAR(10),IFERROR(#REF!,\" \"))","v":"Trimestre 1\n "},{"$f":"_xlfn.CONCAT(\"Trimestre 1\",CHAR(10),IFERROR(#REF!,\" \"))","v":"Trimestre 1\n "}]
[null,null,null,null,"Misionales","Admin - Administración de la Carrera Judicial","Seccional","Remitir a los nominadores las listas de  elegibles de los registros seccionales servidores judiciales.\n","Entregable",null,null,"Ismary Marrugo Díaz","Lista de Candidatos","2023-01-01","2023-12-31",{"$f":"IFERROR(#REF!,\" \")","v":" "},"",{"$f":"_xlfn.CONCAT(\"Trimestre 1\",CHAR(10),IFERROR(#REF!,\" \"))","v":"Trimestre 1\n "},{"$f":"_xlfn.CONCAT(\"Trimestre 1\",CHAR(10),IFERROR(#REF!,\" \"))","v":"Trimestre 1\n "}]
[null,null,null,null,"Misionales","Admin - Administración de la Carrera Judicial","Seccional","Realizar las calificaciones de servicios de los funcionarios que son del regimen de carrera y recopilar las calificaciones de empleados enviadas por los nominadores.","Entregable",null,null,"Ismary Marrugo Díaz","Calificaciones","2023-01-01","2023-12-31",{"$f":"IFERROR(#REF!,\" \")","v":" "},"",{"$f":"_xlfn.CONCAT(\"Trimestre 1\",CHAR(10),IFERROR(#REF!,\" \"))","v":"Trimestre 1\n "},{"$f":"_xlfn.CONCAT(\"Trimestre 1\",CHAR(10),IFERROR(#REF!,\" \"))","v":"Trimestre 1\n "}]
[null,null,"3. Promover la incorporación de la perspectiva de género y el enfoque diferencial en los fallos judiciales y en la atención a los ciudadanos, la administración de la Rama Judicial, la administración de la carrera judicial y la elaboración de listas para altas Cortes. ",null,"Misionales","Admin - Administración de la Carrera Judicial","Seccional","Emitir concepto de solicitudes de traslados de servidores judiciales.\n","Entregable",null,null,"Ismary Marrugo Díaz","Conceptos de Traslados","2023-01-01","2023-12-31",{"$f":"IFERROR(#REF!,\" \")","v":" "},"",{"$f":"_xlfn.CONCAT(\"Trimestre 1\",CHAR(10),IFERROR(#REF!,\" \"))","v":"Trimestre 1\n "},{"$f":"_xlfn.CONCAT(\"Trimestre 1\",CHAR(10),IFERROR(#REF!,\" \"))","v":"Trimestre 1\n "}]
[null,null,null,null,"Misionales","Admin - Administración de la Carrera Judicial","Seccional","Tramitar todo lo referente al procedimiento de estímulos y distinciones de los servidores judiciales.","Entregable",null,null,"Ismary Marrugo Díaz","Oficios de estimulos","2023-01-01","2023-12-31",{"$f":"IFERROR(#REF!,\" \")","v":" "},"",{"$f":"_xlfn.CONCAT(\"Trimestre 1\",CHAR(10),IFERROR(#REF!,\" \"))","v":"Trimestre 1\n "},{"$f":"_xlfn.CONCAT(\"Trimestre 1\",CHAR(10),IFERROR(#REF!,\" \"))","v":"Trimestre 1\n "}]
[null,null,null,null,"Misionales","Admin - Administración de la Carrera Judicial","Seccional","Tener actualizado el registro seccional de escalafón de todos los servidores judiciales en propiedad","Entregable",null,null,"Ismary Marrugo Díaz","Registro de Escalafón","2023-01-01","2023-12-31",{"$f":"IFERROR(#REF!,\" \")","v":" "},"",{"$f":"_xlfn.CONCAT(\"Trimestre 1\",CHAR(10),IFERROR(#REF!,\" \"))","v":"Trimestre 1\n "},{"$f":"_xlfn.CONCAT(\"Trimestre 1\",CHAR(10),IFERROR(#REF!,\" \"))","v":"Trimestre 1\n "}]
[null,null,null,null,"Misionales","Admin - Gestión de la Formación Judicial","Seccional","Coordinar los eventos de capacitaciones programados por la Escuela Judicial Rodrigo Lara Bonilla y de la Corporación Seccional. ","Entregable",null,null,"Ismary Marrugo Díaz","Capacitaciones realizadas","2023-01-01","2023-12-31",{"$f":"IFERROR(#REF!,\" \")","v":" "},"",{"$f":"_xlfn.CONCAT(\"Trimestre 1\",CHAR(10),IFERROR(#REF!,\" \"))","v":"Trimestre 1\n "},{"$f":"_xlfn.CONCAT(\"Trimestre 1\",CHAR(10),IFERROR(#REF!,\" \"))","v":"Trimestre 1\n "}]
[null,null,null,null,"Misionales","Admin - Gestión de la Formación Judicial","Seccional","Realizar la Indución general para los empleados que se pocesionen en la convocatoria cuatro del Distrito","Entregable",null,null,"Ismary Marrugo Díaz","Inducciones realizadas","2023-01-01","2023-12-31",{"$f":"IFERROR(#REF!,\" \")","v":" "},"",{"$f":"_xlfn.CONCAT(\"Trimestre 1\",CHAR(10),IFERROR(#REF!,\" \"))","v":"Trimestre 1\n "},{"$f":"_xlfn.CONCAT(\"Trimestre 1\",CHAR(10),IFERROR(#REF!,\" \"))","v":"Trimestre 1\n "}]
[null,null,"4. Desarrollar en los servidores judiciales y demás grupos de valor relevantes las competencias necesarias para la efectividad de la transformación digital de modo que puedan, entre otros, utilizar con solvencia las herramientas digitales dispuestas para sus respectivas funciones. Además, fortalecer y actualizar los conocimientos del personal a cargo de la gestión de proyectos de tecnología.",null,null,null,null,null,null,null,null,null,null,null,null,{"$f":"IFERROR(#REF!,\" \")","v":" "},"",{"$f":"_xlfn.CONCAT(\"Trimestre 1\",CHAR(10),IFERROR(#REF!,\" \"))","v":"Trimestre 1\n "},{"$f":"_xlfn.CONCAT(\"Trimestre 1\",CHAR(10),IFERROR(#REF!,\" \"))","v":"Trimestre 1\n "}]
[null,null,null,null,null,null,null,null,null,null,null,null,null,null,null,{"$f":"IFERROR(#REF!,\" \")","v":" "},"",{"$f":"_xlfn.CONCAT(\"Trimestre 1\",CHAR(10),IFERROR(#REF!,\" \"))","v":"Trimestre 1\n "},{"$f":"_xlfn.CONCAT(\"Trimestre 1\",CHAR(10),IFERROR(#REF!,\" \"))","v":"Trimestre 1\n "}]
[null,null,null,null,null,null,null,null,null,null,null,null,null,null,null,{"$f":"IFERROR(#REF!,\" \")","v":" "},"",{"$f":"_xlfn.CONCAT(\"Trimestre 1\",CHAR(10),IFERROR(#REF!,\" \"))","v":"Trimestre 1\n "},{"$f":"_xlfn.CONCAT(\"Trimestre 1\",CHAR(10),IFERROR(#REF!,\" \"))","v":"Trimestre 1\n "}]
[null,null,null,null,null,null,null,null,null,null,null,null,null,null,null,{"$f":"IFERROR(#REF!,\" \")","v":" "},"",{"$f":"_xlfn.CONCAT(\"Trimestre 1\",CHAR(10),IFERROR(#REF!,\" \"))","v":"Trimestre 1\n "},{"$f":"_xlfn.CONCAT(\"Trimestre 1\",CHAR(10),IFERROR(#REF!,\" \"))","v":"Trimestre 1\n "}]
[null,null,null,null,null,null,null,null,null,null,null,null,null,null,null,{"$f":"IFERROR(#REF!,\" \")","v":" "},"",{"$f":"_xlfn.CONCAT(\"Trimestre 1\",CHAR(10),IFERROR(#REF!,\" \"))","v":"Trimestre 1\n "},{"$f":"_xlfn.CONCAT(\"Trimestre 1\",CHAR(10),IFERROR(#REF!,\" \"))","v":"Trimestre 1\n "}]
[null,null,"5. Promover el bienestar de todos los servidores judiciales a través de la implementación de un sistema que contemple los diferentes niveles de estrategias y acciones necesarios para mejorar el clima laboral, la salud física y mental y la calidad del tiempo de descanso.","5. Generar espacios de trabajo seguros y saludables que contribuyan a minimizar los  incidentes, accidentes y enfermedades laborales derivados de las condiciones y actos  inseguros y fomentar  el autocuidado, los  estilos de vida y el trabajo saludable en los servidores judiciales, contratistas, judicantes y practicantes",null,null,null,null,null,null,null,null,null,null,null,{"$f":"IFERROR(#REF!,\" \")","v":" "},"",{"$f":"_xlfn.CONCAT(\"Trimestre 1\",CHAR(10),IFERROR(#REF!,\" \"))","v":"Trimestre 1\n "},{"$f":"_xlfn.CONCAT(\"Trimestre 1\",CHAR(10),IFERROR(#REF!,\" \"))","v":"Trimestre 1\n "}]
[null,null,null,null,null,null,null,null,null,null,null,null,null,null,null,{"$f":"IFERROR(#REF!,\" \")","v":" "},"",{"$f":"_xlfn.CONCAT(\"Trimestre 1\",CHAR(10),IFERROR(#REF!,\" \"))","v":"Trimestre 1\n "},{"$f":"_xlfn.CONCAT(\"Trimestre 1\",CHAR(10),IFERROR(#REF!,\" \"))","v":"Trimestre 1\n "}]
[null,null,null,null,null,null,null,null,null,null,null,null,null,null,null,{"$f":"IFERROR(#REF!,\" \")","v":" "},"",{"$f":"_xlfn.CONCAT(\"Trimestre 1\",CHAR(10),IFERROR(#REF!,\" \"))","v":"Trimestre 1\n "},{"$f":"_xlfn.CONCAT(\"Trimestre 1\",CHAR(10),IFERROR(#REF!,\" \"))","v":"Trimestre 1\n "}]
[null,null,null,null,null,null,null,null,null,null,null,null,null,null,null,{"$f":"IFERROR(#REF!,\" \")","v":" "},"",{"$f":"_xlfn.CONCAT(\"Trimestre 1\",CHAR(10),IFERROR(#REF!,\" \"))","v":"Trimestre 1\n "},{"$f":"_xlfn.CONCAT(\"Trimestre 1\",CHAR(10),IFERROR(#REF!,\" \"))","v":"Trimestre 1\n "}]
[null,null,null,null,null,null,null,null,null,null,null,null,null,null,null,{"$f":"IFERROR(#REF!,\" \")","v":" "},"",{"$f":"_xlfn.CONCAT(\"Trimestre 1\",CHAR(10),IFERROR(#REF!,\" \"))","v":"Trimestre 1\n "},{"$f":"_xlfn.CONCAT(\"Trimestre 1\",CHAR(10),IFERROR(#REF!,\" \"))","v":"Trimestre 1\n "}]
["5. Gobernanza, planeación estratégica y capacidad de toma de decisiones","Gobernanza, planeación estratégica y capacidad de toma de decisiones: Fortalecer la gobernanza, la planeación estratégica y la capacidad de toma de decisiones de la Rama Judicial con base en la evidencia empírica y la articulación efectiva con las demás entidades, para que la perspectiva de género y el enfoque diferencial sean transversales en el presente plan. ","1. Implementar un nuevo modelo integrado para la planeación estratégica, el seguimiento y la medición del desempeño institucional.","2. Asegurar  el cumplimiento de los objetivos institucionales, la normatividad aplicable,  la mejora del SIGCMA y la satisfacción de los usuarios, revisando de  forma continua y sistemática la planificación de la gestión y fortaleciendo la administración de riesgos y sus controles.","Estratégicos","Admin - Planeación Estratégica","Seccional","Elaborar y hacer seguimiento a los planes de acción","Entregable",null,null,"Labrenty Efren Palomo","Planes de Acción elaborados","2023-01-01","2023-12-31",{"$f":"IFERROR(#REF!,\" \")","v":" "},"",{"$f":"_xlfn.CONCAT(\"Trimestre 1\",CHAR(10),IFERROR(#REF!,\" \"))","v":"Trimestre 1\n "},{"$f":"_xlfn.CONCAT(\"Trimestre 1\",CHAR(10),IFERROR(#REF!,\" \"))","v":"Trimestre 1\n "}]
[null,null,null,null,"Apoyo","Admin - Asistencia Legal","Seccional","Ejercer la Defensa Judicial de la Seccional","Entregable",null,null,"Marcy Castellanos","Sistema EKOGUI actualizado","2023-01-01","2023-12-31",{"$f":"IFERROR(#REF!,\" \")","v":" "},"",{"$f":"_xlfn.CONCAT(\"Trimestre 1\",CHAR(10),IFERROR(#REF!,\" \"))","v":"Trimestre 1\n "},{"$f":"_xlfn.CONCAT(\"Trimestre 1\",CHAR(10),IFERROR(#REF!,\" \"))","v":"Trimestre 1\n "}]
[null,null,null,null,"Apoyo","Admin - Asistencia Legal","Seccional","Gestionar los procesos de cobros coactivo de la seccional","Entregable",null,null,"Alvaro Burgos","Procesos de Cobro Coactivos","2023-01-01","2023-12-31",{"$f":"IFERROR(#REF!,\" \")","v":" "},"",{"$f":"_xlfn.CONCAT(\"Trimestre 1\",CHAR(10),IFERROR(#REF!,\" \"))","v":"Trimestre 1\n "},{"$f":"_xlfn.CONCAT(\"Trimestre 1\",CHAR(10),IFERROR(#REF!,\" \"))","v":"Trimestre 1\n "}]
[null,null,null,null,null,null,null,null,null,null,null,null,null,null,null,{"$f":"IFERROR(#REF!,\" \")","v":" "},"",{"$f":"_xlfn.CONCAT(\"Trimestre 1\",CHAR(10),IFERROR(#REF!,\" \"))","v":"Trimestre 1\n "},{"$f":"_xlfn.CONCAT(\"Trimestre 1\",CHAR(10),IFERROR(#REF!,\" \"))","v":"Trimestre 1\n "}]
[null,null,null,null,null,null,null,null,null,null,null,null,null,null,null,{"$f":"IFERROR(#REF!,\" \")","v":" "},"",{"$f":"_xlfn.CONCAT(\"Trimestre 1\",CHAR(10),IFERROR(#REF!,\" \"))","v":"Trimestre 1\n "},{"$f":"_xlfn.CONCAT(\"Trimestre 1\",CHAR(10),IFERROR(#REF!,\" \"))","v":"Trimestre 1\n "}]
[null,null,"2. Definir e implementar el modelo optimizado de formulación, seguimiento y evaluación de la política pública judicial.",null,null,null,null,null,null,null,null,null,null,null,null,{"$f":"IFERROR(#REF!,\" \")","v":" "},"",{"$f":"_xlfn.CONCAT(\"Trimestre 1\",CHAR(10),IFERROR(#REF!,\" \"))","v":"Trimestre 1\n "},{"$f":"_xlfn.CONCAT(\"Trimestre 1\",CHAR(10),IFERROR(#REF!,\" \"))","v":"Trimestre 1\n "}]
[null,null,null,null,null,null,null,null,null,null,null,null,null,null,null,{"$f":"IFERROR(#REF!,\" \")","v":" "},"",{"$f":"_xlfn.CONCAT(\"Trimestre 1\",CHAR(10),IFERROR(#REF!,\" \"))","v":"Trimestre 1\n "},{"$f":"_xlfn.CONCAT(\"Trimestre 1\",CHAR(10),IFERROR(#REF!,\" \"))","v":"Trimestre 1\n "}]
[null,null,null,null,null,null,null,null,null,null,null,null,null,null,null,{"$f":"IFERROR(#REF!,\" \")","v":" "},"",{"$f":"_xlfn.CONCAT(\"Trimestre 1\",CHAR(10),IFERROR(#REF!,\" \"))","v":"Trimestre 1\n "},{"$f":"_xlfn.CONCAT(\"Trimestre 1\",CHAR(10),IFERROR(#REF!,\" \"))","v":"Trimestre 1\n "}]
[null,null,null,null,null,null,null,null,null,null,null,null,null,null,null,{"$f":"IFERROR(#REF!,\" \")","v":" "},"",{"$f":"_xlfn.CONCAT(\"Trimestre 1\",CHAR(10),IFERROR(#REF!,\" \"))","v":"Trimestre 1\n "},{"$f":"_xlfn.CONCAT(\"Trimestre 1\",CHAR(10),IFERROR(#REF!,\" \"))","v":"Trimestre 1\n "}]
[null,null,null,null,null,null,null,null,null,null,null,null,null,null,null,{"$f":"IFERROR(#REF!,\" \")","v":" "},"",{"$f":"_xlfn.CONCAT(\"Trimestre 1\",CHAR(10),IFERROR(#REF!,\" \"))","v":"Trimestre 1\n "},{"$f":"_xlfn.CONCAT(\"Trimestre 1\",CHAR(10),IFERROR(#REF!,\" \"))","v":"Trimestre 1\n "}]

{"sheet":"INVERSION","index":5,"n_rows":130,"n_cols":40,"rows_kept":130,"cut":false,"hidden":false,"merged":[[95,5,114,5],[115,5,119,5],[95,1,119,1],[95,0,119,0],[120,5,129,5],[125,2,129,2],[125,3,129,3],[125,4,129,4],[120,1,129,1],[120,0,129,0],[115,2,119,2],[115,3,119,3],[115,4,119,4],[120,2,124,2],[120,3,124,3],[120,4,124,4],[110,2,114,2],[110,3,114,3],[110,4,114,4],[105,2,109,2],[105,3,109,3],[105,4,109,4],[60,0,94,0],[95,2,99,2],[95,3,99,3],[95,4,99,4],[100,2,104,2],[100,3,104,3],[100,4,104,4],[70,2,74,2],[70,3,74,3],[70,4,74,4],[70,5,74,5],[60,1,94,1],[75,5,89,5],[65,2,69,2],[65,3,69,3],[65,4,69,4],[65,5,69,5],[60,2,64,2],[60,3,64,3],[60,4,64,4],[60,5,64,5],[80,2,84,2],[80,3,84,3],[80,4,84,4],[75,2,79,2],[75,3,79,3],[75,4,79,4],[90,2,94,2],[90,3,94,3],[90,4,94,4],[90,5,94,5],[85,4,89,4],[85,2,89,2],[85,3,89,3],[30,0,59,0],[30,1,59,1],[25,5,29,5],[5,0,29,0],[5,1,29,1],[55,2,59,2],[55,3,59,3],[55,4,59,4],[30,5,59,5],[30,2,34,2],[30,3,34,3],[30,4,34,4],[35,2,39,2],[35,3,39,3],[35,4,39,4],[40,2,44,2],[15,5,19,5],[20,2,24,2],[20,3,24,3],[20,4,24,4],[20,5,24,5],[5,5,9,5],[10,2,14,2],[10,3,14,3],[10,4,14,4],[10,5,14,5],[3,4,4,4],[5,2,9,2],[5,3,9,3],[5,4,9,4],[15,2,19,2],[15,3,19,3],[15,4,19,4],[25,2,29,2],[25,3,29,3],[25,4,29,4],[40,3,44,3],[40,4,44,4],[45,2,49,2],[45,3,49,3],[45,4,49,4],[50,2,54,2],[50,3,54,3],[50,4,54,4],[1,39,1,48],[1,0,1,17],[1,18,1,38],[2,25,2,37],[2,38,4,38],[3,0,4,1],[3,2,4,2],[3,5,4,5],[3,6,3,11],[3,12,3,22],[3,23,3,24],[2,0,2,5],[2,6,2,24],[3,32,3,37],[3,25,3,31],[3,3,4,3]]}
[]
["CONSEJO SUPERIOR DE LA JUDICATURA \nUNIDADES MISIONALES DEL CONSEJO SUPERIOR DE LA JUDICATURA \nDIRECCIÓN EJECUTIVA DE ADMINISTRACIÓN JUDICIAL (DEAJ) - UNIDADES MISIONALES DE LA DEAJ\nDIRECCIONES SECCIONALES DE ADMINISTRACIÓN JUDICIAL ",null,null,null,null,null,null,null,null,null,null,null,null,null,null,null,null,null,null,null,null,null,null,null,null,null,null,null,null,null,null,null,null,null,null,null,null,null,null,"GENERADOR DE SEGUIMIENTOS TRIMESTALES"]
["PLAN SECTORIAL DE DESARROLLO 2023-2026 - OBJETIVOS SIGCMA",null,null,null,null,null,"PLAN DE ACCIÓN Y SEGUIMIENTO A LA INVERSIÓN INSTITUCIONAL ",null,null,null,null,null,null,null,null,null,null,null,null,null,null,null,null,null,null,"AVANCE PLAN DE ACCIÓN ANUAL",null,null,null,null,null,null,null,null,null,null,null,null," ANÁLISIS RESULTADO\nFINAL - ACUMULADO"]
["OBJETIVO ESTRATÉGICO",null,"OBJETIVO ESPECÍFICO PSD","NOMBRE DEL INDICADOR PSD","DEFINICIÓN DEL INDICADOR","OBJETIVO ESPECÍFICO SIGCMA","IDENTIFICACIÓN PROYECTO DE INVERSIÓN",null,null,null,null,null,"PARÁMETROS DE MEDICIÓN ",null,null,null,null,null,null,null,null,null,null,"INFORMACIÓN FINANCIERA",null,"SEGUIMIENTO - CUMPLIMIENTO ANUAL ",null,null,null,null,null,null,"INFORMACIÓN COMPLEMENTARIA FINAL"]
[null,null,null,null,null,null,"PROGRAMA DE INVERSIÓN","SUBPROGRAMA DE INVERSIÓN","RUBRO PRESUPUESTAL","CÓDIGO BPIN","NOMBRE DE PROYECTO","OBJETIVO ESPECÍFICO FORMULADO DEL PROYECTO BPIN","NOMBRE ACTIVIDAD DE INVERSIÓN (POAI)","JUSTIFICACIÓN DE LA ACTIVIDAD","DESCRIBA EL ENTREGABLE \n(Producto y/o servicio principal)","META ANUALIDAD","UNIDAD DE MEDIDA","TIPO DE INDICADOR (GESTIÓN O PRODUCTO)","FECHA DE INICIO DE LA ACTIVIDAD\nDÍA/MES/AÑO","FECHA TERMINACIÓN ACTIVIDAD\nDÍA/MES/AÑO \n(Sí supera anualidad, favor dejar 31/12/20xx)","NÚMERO DE BENEFICIARIOS INTERNOS (Servidores Judiciales)","NÚMERO DE BENEFICIARIOS EXTERNOS (Usuarios)"," DEPENDENCIA RESPONSABLE ","ACTO ADMINISTRATIVO (INDICAR EL ACUERDO INICIAL Y MODIFICACIONES)","RECURSOS ASIGNADOS ($)","DETALLE DE LAS ACTIVIDADES REALIZADAS PARA EL LOGRO DE LA INVERSIÓN (Periodo de reporte acumulado) ","COMPROMISO PRESUPUESTAL (VALOR DEL CONTRATO)","AVANCE DE LA META","% AVANCE ANUAL DE LA ACTIVIDAD"," % AVANCE PRESUPUESTAL ANUAL","AVANCE  DE LA ACTIVIDAD - % EN TIEMPO ANUAL","REZAGO","NÚMERO DE BENEFICIADOS INTERNOS","NÚMERO DE BENEFICIADOS EXTERNOS","DIFICULTADES PARA LOGRAR LA META PROPUESTA","EL PRODUCTO FINAL OBTENIDO ¿CÓMO IMPACTÓ SOBRE EL OBJETIVO ESTRATÉGICO?","RECOMENDACIONES PARA LOGRAR LA META","OBSERVACIONES"]
["1. Acceso e Infraestructura Física","Acceso e Infraestructura Física: Ampliar, en todo el territorio nacional, el acceso a una justicia efectiva, pronta, equitativa e incluyente, reduciendo el atraso y la congestión, de acuerdo con las necesidades de la demanda de justicia por jurisdicción y especialidad, y mejorando la articulación con la justicia restaurativa y terapéutica, y otros mecanismos de solución de conflictos y consolidando una infraestructura física óptima para el acceso a la justicia.","1. Ampliar el acceso a justicia para atender las necesidades jurídicas de los ciudadanos con un enfoque diferencial, de una manera pronta, reduciendo las inequidades y las brechas territoriales de acceso.","Estrategias implementadas por la Rama Judicial para ampliar el acceso a la justicia considerando el enfoque diferencial y territorial\n\nÍndice de dispersión en la calificación del factor calidad","# de estrategias establecida s en la meta implementa das durante la vigencia del plan\n\nDispersión en la calificación del factor de calidad por jurisdicción y nivel de competencia.","2. Asegurar  el cumplimiento de los objetivos institucionales, la normatividad aplicable,  la mejora del SIGCMA y la satisfacción de los usuarios, revisando de  forma continua y sistemática la planificación de la gestión y fortaleciendo la administración de riesgos y sus controles",2701,800,"C-2701-0800-28",2018011000852,"Mejoramiento y mantenimiento de la infraestructura fisica de la Rama Judicial","Mantener la capacidad de la infraestructura fisica asociada a la prestación del servicio de la justicia a nivel nacional ","Mejoramiento y Mantenimiento de la \nInfraestructura Física de la Rama Judicial a Nivel \nNacional","Realizar el mejoramiento y mantenimiento de la Infrastructura de la Rama Judicial Seccional Córdoba","CONTRATOS DE INFRAESTRUCTURA",955000000,"Contratos","Producto","2023-02-08","2023-12-31",642,1000,"DESAJ Montería - Infraestructura","RESOLUCIÓN 3301 DE FEBRERO 08 DE 2023",955000000,{"$f":"IFERROR(#REF!,\" \")","v":" "},{"$f":"IFERROR(#REF!,\"\")","v":""},{"$f":"IFERROR(#REF!,\"\")","v":""},{"$f":"IFERROR(AB6/#REF!,\"\")","v":""},{"$f":"IFERROR(AA6/Y6,\"\")","v":""},{"$f":"IFERROR(#REF!,\"\")","v":""},{"$f":"IFERROR(#REF!-AB6,\"\")","v":""},{"$f":"IFERROR(#REF!,\"\")","v":""},{"$f":"IFERROR(#REF!,\"\")","v":""},{"$f":"_xlfn.CONCAT(\"Trimestre 1\",CHAR(10),IFERROR(#REF!,\"\"))","v":"Trimestre 1\n"},{"$f":"_xlfn.CONCAT(\"Trimestre 1\",CHAR(10),IFERROR(#REF!,\"\"))","v":"Trimestre 1\n"},{"$f":"_xlfn.CONCAT(\"Trimestre 1\",CHAR(10),IFERROR(#REF!,\"\"))","v":"Trimestre 1\n"},{"$f":"_xlfn.CONCAT(\"Trimestre 1\",CHAR(10),IFERROR(#REF!,\"\"))","v":"Trimestre 1\n"},{"$f":"_xlfn.CONCAT(\"Trimestre 1\",CHAR(10),IFERROR(#REF!,\"\"))","v":"Trimestre 1\n"}]
[null,null,null,null,null,null,null,null,null,null,null,null,null,null,null,null,null,null,null,null,null,null,null,null,null,{"$f":"IFERROR(#REF!,\" \")","v":" "},{"$f":"IFERROR(#REF!,\"\")","v":""},{"$f":"IFERROR(#REF!,\"\")","v":""},{"$f":"IFERROR(AB7/P6,\"\")","v":""},{"$f":"IFERROR(AA7/Y7,\"\")","v":""},{"$f":"IFERROR(#REF!,\"\")","v":""},{"$f":"IFERROR(P6-AB7,\"\")","v":""},{"$f":"IFERROR(#REF!,\"\")","v":""},{"$f":"IFERROR(#REF!,\"\")","v":""},{"$f":"_xlfn.CONCAT(\"Trimestre 1\",CHAR(10),IFERROR(#REF!,\"\"))","v":"Trimestre 1\n"},{"$f":"_xlfn.CONCAT(\"Trimestre 1\",CHAR(10),IFERROR(#REF!,\"\"))","v":"Trimestre 1\n"},{"$f":"_xlfn.CONCAT(\"Trimestre 1\",CHAR(10),IFERROR(#REF!,\"\"))","v":"Trimestre 1\n"},{"$f":"_xlfn.CONCAT(\"Trimestre 1\",CHAR(10),IFERROR(#REF!,\"\"))","v":"Trimestre 1\n"},{"$f":"_xlfn.CONCAT(\"Trimestre 1\",CHAR(10),IFERROR(#REF!,\"\"))","v":"Trimestre 1\n"}]
[null,null,null,null,null,null,null,null,null,null,null,null,null,null,null,null,null,null,null,null,null,null,null,null,null,{"$f":"IFERROR(#REF!,\" \")","v":" "},{"$f":"IFERROR(#REF!,\"\")","v":""},{"$f":"IFERROR(#REF!,\"\")","v":""},{"$f":"IFERROR(AB8/P8,\"\")","v":""},{"$f":"IFERROR(AA8/Y8,\"\")","v":""},{"$f":"IFERROR(#REF!,\"\")","v":""},{"$f":"IFERROR(P8-AB8,\"\")","v":""},{"$f":"IFERROR(#REF!,\"\")","v":""},{"$f":"IFERROR(#REF!,\"\")","v":""},{"$f":"_xlfn.CONCAT(\"Trimestre 1\",CHAR(10),IFERROR(#REF!,\"\"))","v":"Trimestre 1\n"},{"$f":"_xlfn.CONCAT(\"Trimestre 1\",CHAR(10),IFERROR(#REF!,\"\"))","v":"Trimestre 1\n"},{"$f":"_xlfn.CONCAT(\"Trimestre 1\",CHAR(10),IFERROR(#REF!,\"\"))","v":"Trimestre 1\n"},{"$f":"_xlfn.CONCAT(\"Trimestre 1\",CHAR(10),IFERROR(#REF!,\"\"))","v":"Trimestre 1\n"},{"$f":"_xlfn.CONCAT(\"Trimestre 1\",CHAR(10),IFERROR(#REF!,\"\"))","v":"Trimestre 1\n"}]
[null,null,null,null,null,null,null,null,null,null,null,null,null,null,null,null,null,null,null,null,null,null,null,null,null,{"$f":"IFERROR(#REF!,\" \")","v":" "},{"$f":"IFERROR(#REF!,\"\")","v":""},{"$f":"IFERROR(#REF!,\"\")","v":""},"","",{"$f":"IFERROR(#REF!,\"\")","v":""},"",{"$f":"IFERROR(#REF!,\"\")","v":""},{"$f":"IFERROR(#REF!,\"\")","v":""},{"$f":"_xlfn.CONCAT(\"Trimestre 1\",CHAR(10),IFERROR(#REF!,\"\"))","v":"Trimestre 1\n"},{"$f":"_xlfn.CONCAT(\"Trimestre 1\",CHAR(10),IFERROR(#REF!,\"\"))","v":"Trimestre 1\n"},{"$f":"_xlfn.CONCAT(\"Trimestre 1\",CHAR(10),IFERROR(#REF!,\"\"))","v":"Trimestre 1\n"},{"$f":"_xlfn.CONCAT(\"Trimestre 1\",CHAR(10),IFERROR(#REF!,\"\"))","v":"Trimestre 1\n"},{"$f":"_xlfn.CONCAT(\"Trimestre 1\",CHAR(10),IFERROR(#REF!,\"\"))","v":"Trimestre 1\n"}]
[null,null,null,null,null,null,null,null,null,null,null,null,null,null,null,null,null,null,null,null,null,null,null,null,null,{"$f":"IFERROR(#REF!,\" \")","v":" "},{"$f":"IFERROR(#REF!,\"\")","v":""},{"$f":"IFERROR(#REF!,\"\")","v":""},"","",{"$f":"IFERROR(#REF!,\"\")","v":""},"",{"$f":"IFERROR(#REF!,\"\")","v":""},{"$f":"IFERROR(#REF!,\"\")","v":""},{"$f":"_xlfn.CONCAT(\"Trimestre 1\",CHAR(10),IFERROR(#REF!,\"\"))","v":"Trimestre 1\n"},{"$f":"_xlfn.CONCAT(\"Trimestre 1\",CHAR(10),IFERROR(#REF!,\"\"))","v":"Trimestre 1\n"},{"$f":"_xlfn.CONCAT(\"Trimestre 1\",CHAR(10),IFERROR(#REF!,\"\"))","v":"Trimestre 1\n"},{"$f":"_xlfn.CONCAT(\"Trimestre 1\",CHAR(10),IFERROR(#REF!,\"\"))","v":"Trimestre 1\n"},{"$f":"_xlfn.CONCAT(\"Trimestre 1\",CHAR(10),IFERROR(#REF!,\"\"))","v":"Trimestre 1\n"}]
[null,null,"2. Mejorar los tiempos de respuesta de la Rama Judicial y reducir el inventario de procesos, identificando los retos internos y promoviendo tanto acciones articuladas específicas para abordarlos como estrategias coordinadas para enfrentar las barreras que dependen de otras entidades.","Reducción de tiempos de respuesta en los despachos en los que se implemente el sistema de gestión judicial","% Reducción del promedio de días de duración de los procesos judiciales en los despachos en los que se implemente el sistema de gestión judicial","2. Asegurar  el cumplimiento de los objetivos institucionales, la normatividad aplicable,  la mejora del SIGCMA y la satisfacción de los usuarios, revisando de  forma continua y sistemática la planificación de la gestión y fortaleciendo la administración de riesgos y sus controles",null,null,null,null,null,null,null,null,null,null,null,null,null,null,null,null,null,null,null,{"$f":"IFERROR(#REF!,\" \")","v":" "},{"$f":"IFERROR(#REF!,\"\")","v":""},{"$f":"IFERROR(#REF!,\"\")","v":""},"","",{"$f":"IFERROR(#REF!,\"\")","v":""},"",{"$f":"IFERROR(#REF!,\"\")","v":""},{"$f":"IFERROR(#REF!,\"\")","v":""},{"$f":"_xlfn.CONCAT(\"Trimestre 1\",CHAR(10),IFERROR(#REF!,\"\"))","v":"Trimestre 1\n"},{"$f":"_xlfn.CONCAT(\"Trimestre 1\",CHAR(10),IFERROR(#REF!,\"\"))","v":"Trimestre 1\n"},{"$f":"_xlfn.CONCAT(\"Trimestre 1\",CHAR(10),IFERROR(#REF!,\"\"))","v":"Trimestre 1\n"},{"$f":"_xlfn.CONCAT(\"Trimestre 1\",CHAR(10),IFERROR(#REF!,\"\"))","v":"Trimestre 1\n"},{"$f":"_xlfn.CONCAT(\"Trimestre 1\",CHAR(10),IFERROR(#REF!,\"\"))","v":"Trimestre 1\n"}]
[null,null,null,null,null,null,null,null,null,null,null,null,null,null,null,null,null,null,null,null,null,null,null,null,null,{"$f":"IFERROR(#REF!,\" \")","v":" "},{"$f":"IFERROR(#REF!,\"\")","v":""},{"$f":"IFERROR(#REF!,\"\")","v":""},"","",{"$f":"IFERROR(#REF!,\"\")","v":""},"",{"$f":"IFERROR(#REF!,\"\")","v":""},{"$f":"IFERROR(#REF!,\"\")","v":""},{"$f":"_xlfn.CONCAT(\"Trimestre 1\",CHAR(10),IFERROR(#REF!,\"\"))","v":"Trimestre 1\n"},{"$f":"_xlfn.CONCAT(\"Trimestre 1\",CHAR(10),IFERROR(#REF!,\"\"))","v":"Trimestre 1\n"},{"$f":"_xlfn.CONCAT(\"Trimestre 1\",CHAR(10),IFERROR(#REF!,\"\"))","v":"Trimestre 1\n"},{"$f":"_xlfn.CONCAT(\"Trimestre 1\",CHAR(10),IFERROR(#REF!,\"\"))","v":"Trimestre 1\n"},{"$f":"_xlfn.CONCAT(\"Trimestre 1\",CHAR(10),IFERROR(#REF!,\"\"))","v":"Trimestre 1\n"}]
[null,null,null,null,null,null,null,null,null,null,null,null,null,null,null,null,null,null,null,null,null,null,null,null,null,{"$f":"IFERROR(#REF!,\" \")","v":" "},{"$f":"IFERROR(#REF!,\"\")","v":""},{"$f":"IFERROR(#REF!,\"\")","v":""},"","",{"$f":"IFERROR(#REF!,\"\")","v":""},"",{"$f":"IFERROR(#REF!,\"\")","v":""},{"$f":"IFERROR(#REF!,\"\")","v":""},{"$f":"_xlfn.CONCAT(\"Trimestre 1\",CHAR(10),IFERROR(#REF!,\"\"))","v":"Trimestre 1\n"},{"$f":"_xlfn.CONCAT(\"Trimestre 1\",CHAR(10),IFERROR(#REF!,\"\"))","v":"Trimestre 1\n"},{"$f":"_xlfn.CONCAT(\"Trimestre 1\",CHAR(10),IFERROR(#REF!,\"\"))","v":"Trimestre 1\n"},{"$f":"_xlfn.CONCAT(\"Trimestre 1\",CHAR(10),IFERROR(#REF!,\"\"))","v":"Trimestre 1\n"},{"$f":"_xlfn.CONCAT(\"Trimestre 1\",CHAR(10),IFERROR(#REF!,\"\"))","v":"Trimestre 1\n"}]
[null,null,null,null,null,null,null,null,null,null,null,null,null,null,null,null,null,null,null,null,null,null,null,null,null,{"$f":"IFERROR(#REF!,\" \")","v":" "},{"$f":"IFERROR(#REF!,\"\")","v":""},{"$f":"IFERROR(#REF!,\"\")","v":""},"","",{"$f":"IFERROR(#REF!,\"\")","v":""},"",{"$f":"IFERROR(#REF!,\"\")","v":""},{"$f":"IFERROR(#REF!,\"\")","v":""},{"$f":"_xlfn.CONCAT(\"Trimestre 1\",CHAR(10),IFERROR(#REF!,\"\"))","v":"Trimestre 1\n"},{"$f":"_xlfn.CONCAT(\"Trimestre 1\",CHAR(10),IFERROR(#REF!,\"\"))","v":"Trimestre 1\n"},{"$f":"_xlfn.CONCAT(\"Trimestre 1\",CHAR(10),IFERROR(#REF!,\"\"))","v":"Trimestre 1\n"},{"$f":"_xlfn.CONCAT(\"Trimestre 1\",CHAR(10),IFERROR(#REF!,\"\"))","v":"Trimestre 1\n"},{"$f":"_xlfn.CONCAT(\"Trimestre 1\",CHAR(10),IFERROR(#REF!,\"\"))","v":"Trimestre 1\n"}]
[null,null,null,null,null,null,null,null,null,null,null,null,null,null,null,null,null,null,null,null,null,null,null,null,null,{"$f":"IFERROR(#REF!,\" \")","v":" "},{"$f":"IFERROR(#REF!,\"\")","v":""},{"$f":"IFERROR(#REF!,\"\")","v":""},"","",{"$f":"IFERROR(#REF!,\"\")","v":""},"",{"$f":"IFERROR(#REF!,\"\")","v":""},{"$f":"IFERROR(#REF!,\"\")","v":""},{"$f":"_xlfn.CONCAT(\"Trimestre 1\",CHAR(10),IFERROR(#REF!,\"\"))","v":"Trimestre 1\n"},{"$f":"_xlfn.CONCAT(\"Trimestre 1\",CHAR(10),IFERROR(#REF!,\"\"))","v":"Trimestre 1\n"},{"$f":"_xlfn.CONCAT(\"Trimestre 1\",CHAR(10),IFERROR(#REF!,\"\"))","v":"Trimestre 1\n"},{"$f":"_xlfn.CONCAT(\"Trimestre 1\",CHAR(10),IFERROR(#REF!,\"\"))","v":"Trimestre 1\n"},{"$f":"_xlfn.CONCAT(\"Trimestre 1\",CHAR(10),IFERROR(#REF!,\"\"))","v":"Trimestre 1\n"}]
[null,null,"3. Coadyuvar en la garantía de la idoneidad en el ejercicio de la profesión jurídica de acuerdo con lo establecido en la Ley 1905 de 2018.",null,null,"2. Asegurar  el cumplimiento de los objetivos institucionales, la normatividad aplicable,  la mejora del SIGCMA y la satisfacción de los usuarios, revisando de  forma continua y sistemática la planificación de la gestión y fortaleciendo la administración de riesgos y sus controles",null,null,null,null,null,null,null,null,null,null,null,null,null,null,null,null,null,null,null,{"$f":"IFERROR(#REF!,\" \")","v":" "},{"$f":"IFERROR(#REF!,\"\")","v":""},{"$f":"IFERROR(#REF!,\"\")","v":""},"","",{"$f":"IFERROR(#REF!,\"\")","v":""},"",{"$f":"IFERROR(#REF!,\"\")","v":""},{"$f":"IFERROR(#REF!,\"\")","v":""},{"$f":"_xlfn.CONCAT(\"Trimestre 1\",CHAR(10),IFERROR(#REF!,\"\"))","v":"Trimestre 1\n"},{"$f":"_xlfn.CONCAT(\"Trimestre 1\",CHAR(10),IFERROR(#REF!,\"\"))","v":"Trimestre 1\n"},{"$f":"_xlfn.CONCAT(\"Trimestre 1\",CHAR(10),IFERROR(#REF!,\"\"))","v":"Trimestre 1\n"},{"$f":"_xlfn.CONCAT(\"Trimestre 1\",CHAR(10),IFERROR(#REF!,\"\"))","v":"Trimestre 1\n"},{"$f":"_xlfn.CONCAT(\"Trimestre 1\",CHAR(10),IFERROR(#REF!,\"\"))","v":"Trimestre 1\n"}]
[null,null,null,null,null,null,null,null,null,null,null,null,null,null,null,null,null,null,null,null,null,null,null,null,null,{"$f":"IFERROR(#REF!,\" \")","v":" "},{"$f":"IFERROR(#REF!,\"\")","v":""},{"$f":"IFERROR(#REF!,\"\")","v":""},"","",{"$f":"IFERROR(#REF!,\"\")","v":""},"",{"$f":"IFERROR(#REF!,\"\")","v":""},{"$f":"IFERROR(#REF!,\"\")","v":""},{"$f":"_xlfn.CONCAT(\"Trimestre 1\",CHAR(10),IFERROR(#REF!,\"\"))","v":"Trimestre 1\n"},{"$f":"_xlfn.CONCAT(\"Trimestre 1\",CHAR(10),IFERROR(#REF!,\"\"))","v":"Trimestre 1\n"},{"$f":"_xlfn.CONCAT(\"Trimestre 1\",CHAR(10),IFERROR(#REF!,\"\"))","v":"Trimestre 1\n"},{"$f":"_xlfn.CONCAT(\"Trimestre 1\",CHAR(10),IFERROR(#REF!,\"\"))","v":"Trimestre 1\n"},{"$f":"_xlfn.CONCAT(\"Trimestre 1\",CHAR(10),IFERROR(#REF!,\"\"))","v":"Trimestre 1\n"}]
[null,null,null,null,null,null,null,null,null,null,null,null,null,null,null,null,null,null,null,null,null,null,null,null,null,{"$f":"IFERROR(#REF!,\" \")","v":" "},{"$f":"IFERROR(#REF!,\"\")","v":""},{"$f":"IFERROR(#REF!,\"\")","v":""},"","",{"$f":"IFERROR(#REF!,\"\")","v":""},"",{"$f":"IFERROR(#REF!,\"\")","v":""},{"$f":"IFERROR(#REF!,\"\")","v":""},{"$f":"_xlfn.CONCAT(\"Trimestre 1\",CHAR(10),IFERROR(#REF!,\"\"))","v":"Trimestre 1\n"},{"$f":"_xlfn.CONCAT(\"Trimestre 1\",CHAR(10),IFERROR(#REF!,\"\"))","v":"Trimestre 1\n"},{"$f":"_xlfn.CONCAT(\"Trimestre 1\",CHAR(10),IFERROR(#REF!,\"\"))","v":"Trimestre 1\n"},{"$f":"_xlfn.CONCAT(\"Trimestre 1\",CHAR(10),IFERROR(#REF!,\"\"))","v":"Trimestre 1\n"},{"$f":"_xlfn.CONCAT(\"Trimestre 1\",CHAR(10),IFERROR(#REF!,\"\"))","v":"Trimestre 1\n"}]
[null,null,null,null,null,null,null,null,null,null,null,null,null,null,null,null,null,null,null,null,null,null,null,null,null,{"$f":"IFERROR(#REF!,\" \")","v":" "},{"$f":"IFERROR(#REF!,\"\")","v":""},{"$f":"IFERROR(#REF!,\"\")","v":""},"","",{"$f":"IFERROR(#REF!,\"\")","v":""},"",{"$f":"IFERROR(#REF!,\"\")","v":""},{"$f":"IFERROR(#REF!,\"\")","v":""},{"$f":"_xlfn.CONCAT(\"Trimestre 1\",CHAR(10),IFERROR(#REF!,\"\"))","v":"Trimestre 1\n"},{"$f":"_xlfn.CONCAT(\"Trimestre 1\",CHAR(10),IFERROR(#REF!,\"\"))","v":"Trimestre 1\n"},{"$f":"_xlfn.CONCAT(\"Trimestre 1\",CHAR(10),IFERROR(#REF!,\"\"))","v":"Trimestre 1\n"},{"$f":"_xlfn.CONCAT(\"Trimestre 1\",CHAR(10),IFERROR(#REF!,\"\"))","v":"Trimestre 1\n"},{"$f":"_xlfn.CONCAT(\"Trimestre 1\",CHAR(10),IFERROR(#REF!,\"\"))","v":"Trimestre 1\n"}]
[null,null,null,null,null,null,null,null,null,null,null,null,null,null,null,null,null,null,null,null,null,null,null,null,null,{"$f":"IFERROR(#REF!,\" \")","v":" "},{"$f":"IFERROR(#REF!,\"\")","v":""},{"$f":"IFERROR(#REF!,\"\")","v":""},"","",{"$f":"IFERROR(#REF!,\"\")","v":""},"",{"$f":"IFERROR(#REF!,\"\")","v":""},{"$f":"IFERROR(#REF!,\"\")","v":""},{"$f":"_xlfn.CONCAT(\"Trimestre 1\",CHAR(10),IFERROR(#REF!,\"\"))","v":"Trimestre 1\n"},{"$f":"_xlfn.CONCAT(\"Trimestre 1\",CHAR(10),IFERROR(#REF!,\"\"))","v":"Trimestre 1\n"},{"$f":"_xlfn.CONCAT(\"Trimestre 1\",CHAR(10),IFERROR(#REF!,\"\"))","v":"Trimestre 1\n"},{"$f":"_xlfn.CONCAT(\"Trimestre 1\",CHAR(10),IFERROR(#REF!,\"\"))","v":"Trimestre 1\n"},{"$f":"_xlfn.CONCAT(\"Trimestre 1\",CHAR(10),IFERROR(#REF!,\"\"))","v":"Trimestre 1\n"}]
[null,null,"4. Avanzar en la disposición de una infraestructura óptima para el acceso a la justicia en la Rama Judicial de modo que se fortalezca la presencia territorial, teniendo en cuenta las posibilidades que ofrece la transformación digital y las necesidades que se derivan de ella, y considerando tanto las necesidades de los usuarios como las de los servidores judiciales.","Diseños para la construcción de despachos judiciales","# de sedes proyectada s para construir o intervenir en el cuatrienio / # sedes efectivamen te construidas o intervenidas\n\nTotal de\ndiseños aprobados","4. Hacer un uso racional de los recursos naturales aplicando los principios y fases de la Economía Circular, para prevenir, mitigar y controlar los impactos ambientales",null,null,null,null,null,null,null,null,null,null,null,null,null,null,null,null,null,null,null,{"$f":"IFERROR(#REF!,\" \")","v":" "},{"$f":"IFERROR(#REF!,\"\")","v":""},{"$f":"IFERROR(#REF!,\"\")","v":""},"","",{"$f":"IFERROR(#REF!,\"\")","v":""},"",{"$f":"IFERROR(#REF!,\"\")","v":""},{"$f":"IFERROR(#REF!,\"\")","v":""},{"$f":"_xlfn.CONCAT(\"Trimestre 1\",CHAR(10),IFERROR(#REF!,\"\"))","v":"Trimestre 1\n"},{"$f":"_xlfn.CONCAT(\"Trimestre 1\",CHAR(10),IFERROR(#REF!,\"\"))","v":"Trimestre 1\n"},{"$f":"_xlfn.CONCAT(\"Trimestre 1\",CHAR(10),IFERROR(#REF!,\"\"))","v":"Trimestre 1\n"},{"$f":"_xlfn.CONCAT(\"Trimestre 1\",CHAR(10),IFERROR(#REF!,\"\"))","v":"Trimestre 1\n"},{"$f":"_xlfn.CONCAT(\"Trimestre 1\",CHAR(10),IFERROR(#REF!,\"\"))","v":"Trimestre 1\n"}]
[null,null,null,null,null,null,null,null,null,null,null,null,null,null,null,null,null,null,null,null,null,null,null,null,null,{"$f":"IFERROR(#REF!,\" \")","v":" "},{"$f":"IFERROR(#REF!,\"\")","v":""},{"$f":"IFERROR(#REF!,\"\")","v":""},"","",{"$f":"IFERROR(#REF!,\"\")","v":""},"",{"$f":"IFERROR(#REF!,\"\")","v":""},{"$f":"IFERROR(#REF!,\"\")","v":""},{"$f":"_xlfn.CONCAT(\"Trimestre 1\",CHAR(10),IFERROR(#REF!,\"\"))","v":"Trimestre 1\n"},{"$f":"_xlfn.CONCAT(\"Trimestre 1\",CHAR(10),IFERROR(#REF!,\"\"))","v":"Trimestre 1\n"},{"$f":"_xlfn.CONCAT(\"Trimestre 1\",CHAR(10),IFERROR(#REF!,\"\"))","v":"Trimestre 1\n"},{"$f":"_xlfn.CONCAT(\"Trimestre 1\",CHAR(10),IFERROR(#REF!,\"\"))","v":"Trimestre 1\n"},{"$f":"_xlfn.CONCAT(\"Trimestre 1\",CHAR(10),IFERROR(#REF!,\"\"))","v":"Trimestre 1\n"}]
[null,null,null,null,null,null,null,null,null,null,null,null,null,null,null,null,null,null,null,null,null,null,null,null,null,{"$f":"IFERROR(#REF!,\" \")","v":" "},{"$f":"IFERROR(#REF!,\"\")","v":""},{"$f":"IFERROR(#REF!,\"\")","v":""},"","",{"$f":"IFERROR(#REF!,\"\")","v":""},"",{"$f":"IFERROR(#REF!,\"\")","v":""},{"$f":"IFERROR(#REF!,\"\")","v":""},{"$f":"_xlfn.CONCAT(\"Trimestre 1\",CHAR(10),IFERROR(#REF!,\"\"))","v":"Trimestre 1\n"},{"$f":"_xlfn.CONCAT(\"Trimestre 1\",CHAR(10),IFERROR(#REF!,\"\"))","v":"Trimestre 1\n"},{"$f":"_xlfn.CONCAT(\"Trimestre 1\",CHAR(10),IFERROR(#REF!,\"\"))","v":"Trimestre 1\n"},{"$f":"_xlfn.CONCAT(\"Trimestre 1\",CHAR(10),IFERROR(#REF!,\"\"))","v":"Trimestre 1\n"},{"$f":"_xlfn.CONCAT(\"Trimestre 1\",CHAR(10),IFERROR(#REF!,\"\"))","v":"Trimestre 1\n"}]
[null,null,null,null,null,null,null,null,null,null,null,null,null,null,null,null,null,null,null,null,null,null,null,null,null,{"$f":"IFERROR(#REF!,\" \")","v":" "},{"$f":"IFERROR(#REF!,\"\")","v":""},{"$f":"IFERROR(#REF!,\"\")","v":""},"","",{"$f":"IFERROR(#REF!,\"\")","v":""},"",{"$f":"IFERROR(#REF!,\"\")","v":""},{"$f":"IFERROR(#REF!,\"\")","v":""},{"$f":"_xlfn.CONCAT(\"Trimestre 1\",CHAR(10),IFERROR(#REF!,\"\"))","v":"Trimestre 1\n"},{"$f":"_xlfn.CONCAT(\"Trimestre 1\",CHAR(10),IFERROR(#REF!,\"\"))","v":"Trimestre 1\n"},{"$f":"_xlfn.CONCAT(\"Trimestre 1\",CHAR(10),IFERROR(#REF!,\"\"))","v":"Trimestre 1\n"},{"$f":"_xlfn.CONCAT(\"Trimestre 1\",CHAR(10),IFERROR(#REF!,\"\"))","v":"Trimestre 1\n"},{"$f":"_xlfn.CONCAT(\"Trimestre 1\",CHAR(10),IFERROR(#REF!,\"\"))","v":"Trimestre 1\n"}]
[null,null,null,null,null,null,null,null,null,null,null,null,null,null,null,null,null,null,null,null,null,null,null,null,null,{"$f":"IFERROR(#REF!,\" \")","v":" "},{"$f":"IFERROR(#REF!,\"\")","v":""},{"$f":"IFERROR(#REF!,\"\")","v":""},"","",{"$f":"IFERROR(#REF!,\"\")","v":""},"",{"$f":"IFERROR(#REF!,\"\")","v":""},{"$f":"IFERROR(#REF!,\"\")","v":""},{"$f":"_xlfn.CONCAT(\"Trimestre 1\",CHAR(10),IFERROR(#REF!,\"\"))","v":"Trimestre 1\n"},{"$f":"_xlfn.CONCAT(\"Trimestre 1\",CHAR(10),IFERROR(#REF!,\"\"))","v":"Trimestre 1\n"},{"$f":"_xlfn.CONCAT(\"Trimestre 1\",CHAR(10),IFERROR(#REF!,\"\"))","v":"Trimestre 1\n"},{"$f":"_xlfn.CONCAT(\"Trimestre 1\",CHAR(10),IFERROR(#REF!,\"\"))","v":"Trimestre 1\n"},{"$f":"_xlfn.CONCAT(\"Trimestre 1\",CHAR(10),IFERROR(#REF!,\"\"))","v":"Trimestre 1\n"}]
[null,null,"5. Impulsar el uso de mecanismos alternativos para la solución de conflictos y la ampliación de la justicia restaurativa y terapéutica y el robustecimiento de las alternativas al encarcelamiento","Seguimiento al cumplimiento de las disposiciones del CSJ que impulsan el uso de mecanismos alternativos de solución de conflictos, la ampliación de la justicia restaurativa y terapéutica y las alternativas al encarcelamiento.","% avance de implementa ción de las estrategias definidas para el seguimiento de las disposicion es adoptadas por el Consejo en materia de justicia restaurativa y terapéutica y las alternativas de encarcelami ento","2. Asegurar  el cumplimiento de los objetivos institucionales, la normatividad aplicable,  la mejora del SIGCMA y la satisfacción de los usuarios, revisando de  forma continua y sistemática la planificación de la gestión y fortaleciendo la administración de riesgos y sus controles",null,null,null,null,null,null,null,null,null,null,null,null,null,null,null,null,null,null,null,{"$f":"IFERROR(#REF!,\" \")","v":" "},{"$f":"IFERROR(#REF!,\"\")","v":""},{"$f":"IFERROR(#REF!,\"\")","v":""},"","",{"$f":"IFERROR(#REF!,\"\")","v":""},"",{"$f":"IFERROR(#REF!,\"\")","v":""},{"$f":"IFERROR(#REF!,\"\")","v":""},{"$f":"_xlfn.CONCAT(\"Trimestre 1\",CHAR(10),IFERROR(#REF!,\"\"))","v":"Trimestre 1\n"},{"$f":"_xlfn.CONCAT(\"Trimestre 1\",CHAR(10),IFERROR(#REF!,\"\"))","v":"Trimestre 1\n"},{"$f":"_xlfn.CONCAT(\"Trimestre 1\",CHAR(10),IFERROR(#REF!,\"\"))","v":"Trimestre 1\n"},{"$f":"_xlfn.CONCAT(\"Trimestre 1\",CHAR(10),IFERROR(#REF!,\"\"))","v":"Trimestre 1\n"},{"$f":"_xlfn.CONCAT(\"Trimestre 1\",CHAR(10),IFERROR(#REF!,\"\"))","v":"Trimestre 1\n"}]
[null,null,null,null,null,null,null,null,null,null,null,null,null,null,null,null,null,null,null,null,null,null,null,null,null,{"$f":"IFERROR(#REF!,\" \")","v":" "},{"$f":"IFERROR(#REF!,\"\")","v":""},{"$f":"IFERROR(#REF!,\"\")","v":""},"","",{"$f":"IFERROR(#REF!,\"\")","v":""},"",{"$f":"IFERROR(#REF!,\"\")","v":""},{"$f":"IFERROR(#REF!,\"\")","v":""},{"$f":"_xlfn.CONCAT(\"Trimestre 1\",CHAR(10),IFERROR(#REF!,\"\"))","v":"Trimestre 1\n"},{"$f":"_xlfn.CONCAT(\"Trimestre 1\",CHAR(10),IFERROR(#REF!,\"\"))","v":"Trimestre 1\n"},{"$f":"_xlfn.CONCAT(\"Trimestre 1\",CHAR(10),IFERROR(#REF!,\"\"))","v":"Trimestre 1\n"},{"$f":"_xlfn.CONCAT(\"Trimestre 1\",CHAR(10),IFERROR(#REF!,\"\"))","v":"Trimestre 1\n"},{"$f":"_xlfn.CONCAT(\"Trimestre 1\",CHAR(10),IFERROR(#REF!,\"\"))","v":"Trimestre 1\n"}]
[null,null,null,null,null,null,null,null,null,null,null,null,null,null,null,null,null,null,null,null,null,null,null,null,null,{"$f":"IFERROR(#REF!,\" \")","v":" "},{"$f":"IFERROR(#REF!,\"\")","v":""},{"$f":"IFERROR(#REF!,\"\")","v":""},"","",{"$f":"IFERROR(#REF!,\"\")","v":""},"",{"$f":"IFERROR(#REF!,\"\")","v":""},{"$f":"IFERROR(#REF!,\"\")","v":""},{"$f":"_xlfn.CONCAT(\"Trimestre 1\",CHAR(10),IFERROR(#REF!,\"\"))","v":"Trimestre 1\n"},{"$f":"_xlfn.CONCAT(\"Trimestre 1\",CHAR(10),IFERROR(#REF!,\"\"))","v":"Trimestre 1\n"},{"$f":"_xlfn.CONCAT(\"Trimestre 1\",CHAR(10),IFERROR(#REF!,\"\"))","v":"Trimestre 1\n"},{"$f":"_xlfn.CONCAT(\"Trimestre 1\",CHAR(10),IFERROR(#REF!,\"\"))","v":"Trimestre 1\n"},{"$f":"_xlfn.CONCAT(\"Trimestre 1\",CHAR(10),IFERROR(#REF!,\"\"))","v":"Trimestre 1\n"}]
[null,null,null,null,null,null,null,null,null,null,null,null,null,null,null,null,null,null,null,null,null,null,null,null,null,{"$f":"IFERROR(#REF!,\" \")","v":" "},{"$f":"IFERROR(#REF!,\"\")","v":""},{"$f":"IFERROR(#REF!,\"\")","v":""},"","",{"$f":"IFERROR(#REF!,\"\")","v":""},"",{"$f":"IFERROR(#REF!,\"\")","v":""},{"$f":"IFERROR(#REF!,\"\")","v":""},{"$f":"_xlfn.CONCAT(\"Trimestre 1\",CHAR(10),IFERROR(#REF!,\"\"))","v":"Trimestre 1\n"},{"$f":"_xlfn.CONCAT(\"Trimestre 1\",CHAR(10),IFERROR(#REF!,\"\"))","v":"Trimestre 1\n"},{"$f":"_xlfn.CONCAT(\"Trimestre 1\",CHAR(10),IFERROR(#REF!,\"\"))","v":"Trimestre 1\n"},{"$f":"_xlfn.CONCAT(\"Trimestre 1\",CHAR(10),IFERROR(#REF!,\"\"))","v":"Trimestre 1\n"},{"$f":"_xlfn.CONCAT(\"Trimestre 1\",CHAR(10),IFERROR(#REF!,\"\"))","v":"Trimestre 1\n"}]
[null,null,null,null,null,null,null,null,null,null,null,null,null,null,null,null,null,null,null,null,null,null,null,null,null,{"$f":"IFERROR(#REF!,\" \")","v":" "},{"$f":"IFERROR(#REF!,\"\")","v":""},{"$f":"IFERROR(#REF!,\"\")","v":""},"","",{"$f":"IFERROR(#REF!,\"\")","v":""},"",{"$f":"IFERROR(#REF!,\"\")","v":""},{"$f":"IFERROR(#REF!,\"\")","v":""},{"$f":"_xlfn.CONCAT(\"Trimestre 1\",CHAR(10),IFERROR(#REF!,\"\"))","v":"Trimestre 1\n"},{"$f":"_xlfn.CONCAT(\"Trimestre 1\",CHAR(10),IFERROR(#REF!,\"\"))","v":"Trimestre 1\n"},{"$f":"_xlfn.CONCAT(\"Trimestre 1\",CHAR(10),IFERROR(#REF!,\"\"))","v":"Trimestre 1\n"},{"$f":"_xlfn.CONCAT(\"Trimestre 1\",CHAR(10),IFERROR(#REF!,\"\"))","v":"Trimestre 1\n"},{"$f":"_xlfn.CONCAT(\"Trimestre 1\",CHAR(10),IFERROR(#REF!,\"\"))","v":"Trimestre 1\n"}]
["2. Servicios digitales y de tecnología, innovación y análisis de la información.","Servicios digitales y de tecnología, innovación y análisis de la información: Consolidar una justicia integrada y soportada en servicios digitales y de tecnología, innovación y análisis de la información, con una cultura digital apropiada, segura y sensible a las realidades del territorio nacional. ","1. Ampliar el acceso a la justicia a través de la consolidación del uso de los servicios digitales que conforman el sistema único integrado de gestión judicial en todos los despachos judiciales y dependencias de apoyo y, específicamente, incluyendo el despliegue e implementación del Expediente Judicial Electrónico en todas las jurisdicciones y especialidades.","Procesos\njudiciales gestionados a través del expediente electrónico por especialidad","# de procesos judiciales en gestión con expediente electrónico en cada especialida d y por categoría de despacho a nivel de circuito / # de procesos judiciales totales en gestión por cada especialida d y circuito (cabecera de circuito)","6. Proteger, preservar y administrar los activos de información  implementando acciones  para gestionar de forma adecuada los incidentes, proteger los datos personales y adoptar mecanismos  de ciberseguridad y aseguramiento de la  continuidad del negocio.",null,null,null,null,null,null,null,null,null,null,null,null,null,null,null,null,null,null,null,{"$f":"IFERROR(#REF!,\" \")","v":" "},{"$f":"IFERROR(#REF!,\"\")","v":""},{"$f":"IFERROR(#REF!,\"\")","v":""},"","",{"$f":"IFERROR(#REF!,\"\")","v":""},"",{"$f":"IFERROR(#REF!,\"\")","v":""},{"$f":"IFERROR(#REF!,\"\")","v":""},{"$f":"_xlfn.CONCAT(\"Trimestre 1\",CHAR(10),IFERROR(#REF!,\"\"))","v":"Trimestre 1\n"},{"$f":"_xlfn.CONCAT(\"Trimestre 1\",CHAR(10),IFERROR(#REF!,\"\"))","v":"Trimestre 1\n"},{"$f":"_xlfn.CONCAT(\"Trimestre 1\",CHAR(10),IFERROR(#REF!,\"\"))","v":"Trimestre 1\n"},{"$f":"_xlfn.CONCAT(\"Trimestre 1\",CHAR(10),IFERROR(#REF!,\"\"))","v":"Trimestre 1\n"},{"$f":"_xlfn.CONCAT(\"Trimestre 1\",CHAR(10),IFERROR(#REF!,\"\"))","v":"Trimestre 1\n"}]
[null,null,null,null,null,null,null,null,null,null,null,null,null,null,null,null,null,null,null,null,null,null,null,null,null,{"$f":"IFERROR(#REF!,\" \")","v":" "},{"$f":"IFERROR(#REF!,\"\")","v":""},{"$f":"IFERROR(#REF!,\"\")","v":""},"","",{"$f":"IFERROR(#REF!,\"\")","v":""},"",{"$f":"IFERROR(#REF!,\"\")","v":""},{"$f":"IFERROR(#REF!,\"\")","v":""},{"$f":"_xlfn.CONCAT(\"Trimestre 1\",CHAR(10),IFERROR(#REF!,\"\"))","v":"Trimestre 1\n"},{"$f":"_xlfn.CONCAT(\"Trimestre 1\",CHAR(10),IFERROR(#REF!,\"\"))","v":"Trimestre 1\n"},{"$f":"_xlfn.CONCAT(\"Trimestre 1\",CHAR(10),IFERROR(#REF!,\"\"))","v":"Trimestre 1\n"},{"$f":"_xlfn.CONCAT(\"Trimestre 1\",CHAR(10),IFERROR(#REF!,\"\"))","v":"Trimestre 1\n"},{"$f":"_xlfn.CONCAT(\"Trimestre 1\",CHAR(10),IFERROR(#REF!,\"\"))","v":"Trimestre 1\n"}]
[null,null,null,null,null,null,null,null,null,null,null,null,null,null,null,null,null,null,null,null,null,null,null,null,null,{"$f":"IFERROR(#REF!,\" \")","v":" "},{"$f":"IFERROR(#REF!,\"\")","v":""},{"$f":"IFERROR(#REF!,\"\")","v":""},"","",{"$f":"IFERROR(#REF!,\"\")","v":""},"",{"$f":"IFERROR(#REF!,\"\")","v":""},{"$f":"IFERROR(#REF!,\"\")","v":""},{"$f":"_xlfn.CONCAT(\"Trimestre 1\",CHAR(10),IFERROR(#REF!,\"\"))","v":"Trimestre 1\n"},{"$f":"_xlfn.CONCAT(\"Trimestre 1\",CHAR(10),IFERROR(#REF!,\"\"))","v":"Trimestre 1\n"},{"$f":"_xlfn.CONCAT(\"Trimestre 1\",CHAR(10),IFERROR(#REF!,\"\"))","v":"Trimestre 1\n"},{"$f":"_xlfn.CONCAT(\"Trimestre 1\",CHAR(10),IFERROR(#REF!,\"\"))","v":"Trimestre 1\n"},{"$f":"_xlfn.CONCAT(\"Trimestre 1\",CHAR(10),IFERROR(#REF!,\"\"))","v":"Trimestre 1\n"}]
[null,null,null,null,null,null,null,null,null,null,null,null,null,null,null,null,null,null,null,null,null,null,null,null,null,{"$f":"IFERROR(#REF!,\" \")","v":" "},{"$f":"IFERROR(#REF!,\"\")","v":""},{"$f":"IFERROR(#REF!,\"\")","v":""},"","",{"$f":"IFERROR(#REF!,\"\")","v":""},"",{"$f":"IFERROR(#REF!,\"\")","v":""},{"$f":"IFERROR(#REF!,\"\")","v":""},{"$f":"_xlfn.CONCAT(\"Trimestre 1\",CHAR(10),IFERROR(#REF!,\"\"))","v":"Trimestre 1\n"},{"$f":"_xlfn.CONCAT(\"Trimestre 1\",CHAR(10),IFERROR(#REF!,\"\"))","v":"Trimestre 1\n"},{"$f":"_xlfn.CONCAT(\"Trimestre 1\",CHAR(10),IFERROR(#REF!,\"\"))","v":"Trimestre 1\n"},{"$f":"_xlfn.CONCAT(\"Trimestre 1\",CHAR(10),IFERROR(#REF!,\"\"))","v":"Trimestre 1\n"},{"$f":"_xlfn.CONCAT(\"Trimestre 1\",CHAR(10),IFERROR(#REF!,\"\"))","v":"Trimestre 1\n"}]
[null,null,null,null,null,null,null,null,null,null,null,null,null,null,null,null,null,null,null,null,null,null,null,null,null,{"$f":"IFERROR(#REF!,\" \")","v":" "},{"$f":"IFERROR(#REF!,\"\")","v":""},{"$f":"IFERROR(#REF!,\"\")","v":""},"","",{"$f":"IFERROR(#REF!,\"\")","v":""},"",{"$f":"IFERROR(#REF!,\"\")","v":""},{"$f":"IFERROR(#REF!,\"\")","v":""},{"$f":"_xlfn.CONCAT(\"Trimestre 1\",CHAR(10),IFERROR(#REF!,\"\"))","v":"Trimestre 1\n"},{"$f":"_xlfn.CONCAT(\"Trimestre 1\",CHAR(10),IFERROR(#REF!,\"\"))","v":"Trimestre 1\n"},{"$f":"_xlfn.CONCAT(\"Trimestre 1\",CHAR(10),IFERROR(#REF!,\"\"))","v":"Trimestre 1\n"},{"$f":"_xlfn.CONCAT(\"Trimestre 1\",CHAR(10),IFERROR(#REF!,\"\"))","v":"Trimestre 1\n"},{"$f":"_xlfn.CONCAT(\"Trimestre 1\",CHAR(10),IFERROR(#REF!,\"\"))","v":"Trimestre 1\n"}]
[null,null,"2. Integrar y hacer compatibles todos los aplicativos de transición con SIUGJ, para que la migración de los expedientes judiciales a dicha plataforma sea real y no suponga afectaciones en la prestación del servicio de justicia.",null,null,null,null,null,null,null,null,null,null,null,null,null,null,null,null,null,null,null,null,null,null,{"$f":"IFERROR(#REF!,\" \")","v":" "},{"$f":"IFERROR(#REF!,\"\")","v":""},{"$f":"IFERROR(#REF!,\"\")","v":""},"","",{"$f":"IFERROR(#REF!,\"\")","v":""},"",{"$f":"IFERROR(#REF!,\"\")","v":""},{"$f":"IFERROR(#REF!,\"\")","v":""},{"$f":"_xlfn.CONCAT(\"Trimestre 1\",CHAR(10),IFERROR(#REF!,\"\"))","v":"Trimestre 1\n"},{"$f":"_xlfn.CONCAT(\"Trimestre 1\",CHAR(10),IFERROR(#REF!,\"\"))","v":"Trimestre 1\n"},{"$f":"_xlfn.CONCAT(\"Trimestre 1\",CHAR(10),IFERROR(#REF!,\"\"))","v":"Trimestre 1\n"},{"$f":"_xlfn.CONCAT(\"Trimestre 1\",CHAR(10),IFERROR(#REF!,\"\"))","v":"Trimestre 1\n"},{"$f":"_xlfn.CONCAT(\"Trimestre 1\",CHAR(10),IFERROR(#REF!,\"\"))","v":"Trimestre 1\n"}]
[null,null,null,null,null,null,null,null,null,null,null,null,null,null,null,null,null,null,null,null,null,null,null,null,null,{"$f":"IFERROR(#REF!,\" \")","v":" "},{"$f":"IFERROR(#REF!,\"\")","v":""},{"$f":"IFERROR(#REF!,\"\")","v":""},"","",{"$f":"IFERROR(#REF!,\"\")","v":""},"",{"$f":"IFERROR(#REF!,\"\")","v":""},{"$f":"IFERROR(#REF!,\"\")","v":""},{"$f":"_xlfn.CONCAT(\"Trimestre 1\",CHAR(10),IFERROR(#REF!,\"\"))","v":"Trimestre 1\n"},{"$f":"_xlfn.CONCAT(\"Trimestre 1\",CHAR(10),IFERROR(#REF!,\"\"))","v":"Trimestre 1\n"},{"$f":"_xlfn.CONCAT(\"Trimestre 1\",CHAR(10),IFERROR(#REF!,\"\"))","v":"Trimestre 1\n"},{"$f":"_xlfn.CONCAT(\"Trimestre 1\",CHAR(10),IFERROR(#REF!,\"\"))","v":"Trimestre 1\n"},{"$f":"_xlfn.CONCAT(\"Trimestre 1\",CHAR(10),IFERROR(#REF!,\"\"))","v":"Trimestre 1\n"}]
[null,null,null,null,null,null,null,null,null,null,null,null,null,null,null,null,null,null,null,null,null,null,null,null,null,{"$f":"IFERROR(#REF!,\" \")","v":" "},{"$f":"IFERROR(#REF!,\"\")","v":""},{"$f":"IFERROR(#REF!,\"\")","v":""},"","",{"$f":"IFERROR(#REF!,\"\")","v":""},"",{"$f":"IFERROR(#REF!,\"\")","v":""},{"$f":"IFERROR(#REF!,\"\")","v":""},{"$f":"_xlfn.CONCAT(\"Trimestre 1\",CHAR(10),IFERROR(#REF!,\"\"))","v":"Trimestre 1\n"},{"$f":"_xlfn.CONCAT(\"Trimestre 1\",CHAR(10),IFERROR(#REF!,\"\"))","v":"Trimestre 1\n"},{"$f":"_xlfn.CONCAT(\"Trimestre 1\",CHAR(10),IFERROR(#REF!,\"\"))","v":"Trimestre 1\n"},{"$f":"_xlfn.CONCAT(\"Trimestre 1\",CHAR(10),IFERROR(#REF!,\"\"))","v":"Trimestre 1\n"},{"$f":"_xlfn.CONCAT(\"Trimestre 1\",CHAR(10),IFERROR(#REF!,\"\"))","v":"Trimestre 1\n"}]
[null,null,null,null,null,null,null,null,null,null,null,null,null,null,null,null,null,null,null,null,null,null,null,null,null,{"$f":"IFERROR(#REF!,\" \")","v":" "},{"$f":"IFERROR(#REF!,\"\")","v":""},{"$f":"IFERROR(#REF!,\"\")","v":""},"","",{"$f":"IFERROR(#REF!,\"\")","v":""},"",{"$f":"IFERROR(#REF!,\"\")","v":""},{"$f":"IFERROR(#REF!,\"\")","v":""},{"$f":"_xlfn.CONCAT(\"Trimestre 1\",CHAR(10),IFERROR(#REF!,\"\"))","v":"Trimestre 1\n"},{"$f":"_xlfn.CONCAT(\"Trimestre 1\",CHAR(10),IFERROR(#REF!,\"\"))","v":"Trimestre 1\n"},{"$f":"_xlfn.CONCAT(\"Trimestre 1\",CHAR(10),IFERROR(#REF!,\"\"))","v":"Trimestre 1\n"},{"$f":"_xlfn.CONCAT(\"Trimestre 1\",CHAR(10),IFERROR(#REF!,\"\"))","v":"Trimestre 1\n"},{"$f":"_xlfn.CONCAT(\"Trimestre 1\",CHAR(10),IFERROR(#REF!,\"\"))","v":"Trimestre 1\n"}]
[null,null,null,null,null,null,null,null,null,null,null,null,null,null,null,null,null,null,null,null,null,null,null,null,null,{"$f":"IFERROR(#REF!,\" \")","v":" "},{"$f":"IFERROR(#REF!,\"\")","v":""},{"$f":"IFERROR(#REF!,\"\")","v":""},"","",{"$f":"IFERROR(#REF!,\"\")","v":""},"",{"$f":"IFERROR(#REF!,\"\")","v":""},{"$f":"IFERROR(#REF!,\"\")","v":""},{"$f":"_xlfn.CONCAT(\"Trimestre 1\",CHAR(10),IFERROR(#REF!,\"\"))","v":"Trimestre 1\n"},{"$f":"_xlfn.CONCAT(\"Trimestre 1\",CHAR(10),IFERROR(#REF!,\"\"))","v":"Trimestre 1\n"},{"$f":"_xlfn.CONCAT(\"Trimestre 1\",CHAR(10),IFERROR(#REF!,\"\"))","v":"Trimestre 1\n"},{"$f":"_xlfn.CONCAT(\"Trimestre 1\",CHAR(10),IFERROR(#REF!,\"\"))","v":"Trimestre 1\n"},{"$f":"_xlfn.CONCAT(\"Trimestre 1\",CHAR(10),IFERROR(#REF!,\"\"))","v":"Trimestre 1\n"}]
[null,null,"3. Fortalecer las capacidades institucionales, adecuar el modelo operativo y de servicio, bajo un enfoque de Arquitectura Empresarial y de fortalecimiento del acceso a la justicia.","Implementación del programa de gestión del cambio y las comunicaciones del PETD","# de actividades del objetivo \"aumentar el conocimient o digital y el uso de apropiación de los sistemas\" del programa de gestión del cambio y las comunicaci ones del PETD cumplidas /# de actividades del objetivo \"aumentar el conocimient o digital y el uso de apropiación de los sistemas\" del programa de gestión del cambio y las comunicaci ones del PETD programada s",null,null,null,null,null,null,null,null,null,null,null,null,null,null,null,null,null,null,null,null,{"$f":"IFERROR(#REF!,\" \")","v":" "},{"$f":"IFERROR(#REF!,\"\")","v":""},{"$f":"IFERROR(#REF!,\"\")","v":""},"","",{"$f":"IFERROR(#REF!,\"\")","v":""},"",{"$f":"IFERROR(#REF!,\"\")","v":""},{"$f":"IFERROR(#REF!,\"\")","v":""},{"$f":"_xlfn.CONCAT(\"Trimestre 1\",CHAR(10),IFERROR(#REF!,\"\"))","v":"Trimestre 1\n"},{"$f":"_xlfn.CONCAT(\"Trimestre 1\",CHAR(10),IFERROR(#REF!,\"\"))","v":"Trimestre 1\n"},{"$f":"_xlfn.CONCAT(\"Trimestre 1\",CHAR(10),IFERROR(#REF!,\"\"))","v":"Trimestre 1\n"},{"$f":"_xlfn.CONCAT(\"Trimestre 1\",CHAR(10),IFERROR(#REF!,\"\"))","v":"Trimestre 1\n"},{"$f":"_xlfn.CONCAT(\"Trimestre 1\",CHAR(10),IFERROR(#REF!,\"\"))","v":"Trimestre 1\n"}]
[null,null,null,null,null,null,null,null,null,null,null,null,null,null,null,null,null,null,null,null,null,null,null,null,null,{"$f":"IFERROR(#REF!,\" \")","v":" "},{"$f":"IFERROR(#REF!,\"\")","v":""},{"$f":"IFERROR(#REF!,\"\")","v":""},"","",{"$f":"IFERROR(#REF!,\"\")","v":""},"",{"$f":"IFERROR(#REF!,\"\")","v":""},{"$f":"IFERROR(#REF!,\"\")","v":""},{"$f":"_xlfn.CONCAT(\"Trimestre 1\",CHAR(10),IFERROR(#REF!,\"\"))","v":"Trimestre 1\n"},{"$f":"_xlfn.CONCAT(\"Trimestre 1\",CHAR(10),IFERROR(#REF!,\"\"))","v":"Trimestre 1\n"},{"$f":"_xlfn.CONCAT(\"Trimestre 1\",CHAR(10),IFERROR(#REF!,\"\"))","v":"Trimestre 1\n"},{"$f":"_xlfn.CONCAT(\"Trimestre 1\",CHAR(10),IFERROR(#REF!,\"\"))","v":"Trimestre 1\n"},{"$f":"_xlfn.CONCAT(\"Trimestre 1\",CHAR(10),IFERROR(#REF!,\"\"))","v":"Trimestre 1\n"}]
[null,null,null,null,null,null,null,null,null,null,null,null,null,null,null,null,null,null,null,null,null,null,null,null,null,{"$f":"IFERROR(#REF!,\" \")","v":" "},{"$f":"IFERROR(#REF!,\"\")","v":""},{"$f":"IFERROR(#REF!,\"\")","v":""},"","",{"$f":"IFERROR(#REF!,\"\")","v":""},"",{"$f":"IFERROR(#REF!,\"\")","v":""},{"$f":"IFERROR(#REF!,\"\")","v":""},{"$f":"_xlfn.CONCAT(\"Trimestre 1\",CHAR(10),IFERROR(#REF!,\"\"))","v":"Trimestre 1\n"},{"$f":"_xlfn.CONCAT(\"Trimestre 1\",CHAR(10),IFERROR(#REF!,\"\"))","v":"Trimestre 1\n"},{"$f":"_xlfn.CONCAT(\"Trimestre 1\",CHAR(10),IFERROR(#REF!,\"\"))","v":"Trimestre 1\n"},{"$f":"_xlfn.CONCAT(\"Trimestre 1\",CHAR(10),IFERROR(#REF!,\"\"))","v":"Trimestre 1\n"},{"$f":"_xlfn.CONCAT(\"Trimestre 1\",CHAR(10),IFERROR(#REF!,\"\"))","v":"Trimestre 1\n"}]
[null,null,null,null,null,null,null,null,null,null,null,null,null,null,null,null,null,null,null,null,null,null,null,null,null,{"$f":"IFERROR(#REF!,\" \")","v":" "},{"$f":"IFERROR(#REF!,\"\")","v":""},{"$f":"IFERROR(#REF!,\"\")","v":""},"","",{"$f":"IFERROR(#REF!,\"\")","v":""},"",{"$f":"IFERROR(#REF!,\"\")","v":""},{"$f":"IFERROR(#REF!,\"\")","v":""},{"$f":"_xlfn.CONCAT(\"Trimestre 1\",CHAR(10),IFERROR(#REF!,\"\"))","v":"Trimestre 1\n"},{"$f":"_xlfn.CONCAT(\"Trimestre 1\",CHAR(10),IFERROR(#REF!,\"\"))","v":"Trimestre 1\n"},{"$f":"_xlfn.CONCAT(\"Trimestre 1\",CHAR(10),IFERROR(#REF!,\"\"))","v":"Trimestre 1\n"},{"$f":"_xlfn.CONCAT(\"Trimestre 1\",CHAR(10),IFERROR(#REF!,\"\"))","v":"Trimestre 1\n"},{"$f":"_xlfn.CONCAT(\"Trimestre 1\",CHAR(10),IFERROR(#REF!,\"\"))","v":"Trimestre 1\n"}]
[null,null,null,null,null,null,null,null,null,null,null,null,null,null,null,null,null,null,null,null,null,null,null,null,null,{"$f":"IFERROR(#REF!,\" \")","v":" "},{"$f":"IFERROR(#REF!,\"\")","v":""},{"$f":"IFERROR(#REF!,\"\")","v":""},"","",{"$f":"IFERROR(#REF!,\"\")","v":""},"",{"$f":"IFERROR(#REF!,\"\")","v":""},{"$f":"IFERROR(#REF!,\"\")","v":""},{"$f":"_xlfn.CONCAT(\"Trimestre 1\",CHAR(10),IFERROR(#REF!,\"\"))","v":"Trimestre 1\n"},{"$f":"_xlfn.CONCAT(\"Trimestre 1\",CHAR(10),IFERROR(#REF!,\"\"))","v":"Trimestre 1\n"},{"$f":"_xlfn.CONCAT(\"Trimestre 1\",CHAR(10),IFERROR(#REF!,\"\"))","v":"Trimestre 1\n"},{"$f":"_xlfn.CONCAT(\"Trimestre 1\",CHAR(10),IFERROR(#REF!,\"\"))","v":"Trimestre 1\n"},{"$f":"_xlfn.CONCAT(\"Trimestre 1\",CHAR(10),IFERROR(#REF!,\"\"))","v":"Trimestre 1\n"}]
[null,null,"4.Consolidar la cultura y apropiación de la transformación digital en los servidores y usuarios de los servicios de la Rama Judicial y reducir brechas de acceso y conocimiento, incluyendo la oferta efectiva de información sobre el uso de las nuevas herramientas virtuales implementadas en las diferentes jurisdicciones, con especial énfasis en las zonas del país donde es evidente la brecha digital.","Cobertura de infraestructura y conectividad consolidada","# de sedes con infraestruct ura y conectivida d consolidada s/Número total de sedes",null,null,null,null,null,null,null,null,null,null,null,null,null,null,null,null,null,null,null,null,{"$f":"IFERROR(#REF!,\" \")","v":" "},{"$f":"IFERROR(#REF!,\"\")","v":""},{"$f":"IFERROR(#REF!,\"\")","v":""},"","",{"$f":"IFERROR(#REF!,\"\")","v":""},"",{"$f":"IFERROR(#REF!,\"\")","v":""},{"$f":"IFERROR(#REF!,\"\")","v":""},{"$f":"_xlfn.CONCAT(\"Trimestre 1\",CHAR(10),IFERROR(#REF!,\"\"))","v":"Trimestre 1\n"},{"$f":"_xlfn.CONCAT(\"Trimestre 1\",CHAR(10),IFERROR(#REF!,\"\"))","v":"Trimestre 1\n"},{"$f":"_xlfn.CONCAT(\"Trimestre 1\",CHAR(10),IFERROR(#REF!,\"\"))","v":"Trimestre 1\n"},{"$f":"_xlfn.CONCAT(\"Trimestre 1\",CHAR(10),IFERROR(#REF!,\"\"))","v":"Trimestre 1\n"},{"$f":"_xlfn.CONCAT(\"Trimestre 1\",CHAR(10),IFERROR(#REF!,\"\"))","v":"Trimestre 1\n"}]
[null,null,null,null,null,null,null,null,null,null,null,null,null,null,null,null,null,null,null,null,null,null,null,null,null,{"$f":"IFERROR(#REF!,\" \")","v":" "},{"$f":"IFERROR(#REF!,\"\")","v":""},{"$f":"IFERROR(#REF!,\"\")","v":""},"","",{"$f":"IFERROR(#REF!,\"\")","v":""},"",{"$f":"IFERROR(#REF!,\"\")","v":""},{"$f":"IFERROR(#REF!,\"\")","v":""},{"$f":"_xlfn.CONCAT(\"Trimestre 1\",CHAR(10),IFERROR(#REF!,\"\"))","v":"Trimestre 1\n"},{"$f":"_xlfn.CONCAT(\"Trimestre 1\",CHAR(10),IFERROR(#REF!,\"\"))","v":"Trimestre 1\n"},{"$f":"_xlfn.CONCAT(\"Trimestre 1\",CHAR(10),IFERROR(#REF!,\"\"))","v":"Trimestre 1\n"},{"$f":"_xlfn.CONCAT(\"Trimestre 1\",CHAR(10),IFERROR(#REF!,\"\"))","v":"Trimestre 1\n"},{"$f":"_xlfn.CONCAT(\"Trimestre 1\",CHAR(10),IFERROR(#REF!,\"\"))","v":"Trimestre 1\n"}]
[null,null,null,null,null,null,null,null,null,null,null,null,null,null,null,null,null,null,null,null,null,null,null,null,null,{"$f":"IFERROR(#REF!,\" \")","v":" "},{"$f":"IFERROR(#REF!,\"\")","v":""},{"$f":"IFERROR(#REF!,\"\")","v":""},"","",{"$f":"IFERROR(#REF!,\"\")","v":""},"",{"$f":"IFERROR(#REF!,\"\")","v":""},{"$f":"IFERROR(#REF!,\"\")","v":""},{"$f":"_xlfn.CONCAT(\"Trimestre 1\",CHAR(10),IFERROR(#REF!,\"\"))","v":"Trimestre 1\n"},{"$f":"_xlfn.CONCAT(\"Trimestre 1\",CHAR(10),IFERROR(#REF!,\"\"))","v":"Trimestre 1\n"},{"$f":"_xlfn.CONCAT(\"Trimestre 1\",CHAR(10),IFERROR(#REF!,\"\"))","v":"Trimestre 1\n"},{"$f":"_xlfn.CONCAT(\"Trimestre 1\",CHAR(10),IFERROR(#REF!,\"\"))","v":"Trimestre 1\n"},{"$f":"_xlfn.CONCAT(\"Trimestre 1\",CHAR(10),IFERROR(#REF!,\"\"))","v":"Trimestre 1\n"}]
[null,null,null,null,null,null,null,null,null,null,null,null,null,null,null,null,null,null,null,null,null,null,null,null,null,{"$f":"IFERROR(#REF!,\" \")","v":" "},{"$f":"IFERROR(#REF!,\"\")","v":""},{"$f":"IFERROR(#REF!,\"\")","v":""},"","",{"$f":"IFERROR(#REF!,\"\")","v":""},"",{"$f":"IFERROR(#REF!,\"\")","v":""},{"$f":"IFERROR(#REF!,\"\")","v":""},{"$f":"_xlfn.CONCAT(\"Trimestre 1\",CHAR(10),IFERROR(#REF!,\"\"))","v":"Trimestre 1\n"},{"$f":"_xlfn.CONCAT(\"Trimestre 1\",CHAR(10),IFERROR(#REF!,\"\"))","v":"Trimestre 1\n"},{"$f":"_xlfn.CONCAT(\"Trimestre 1\",CHAR(10),IFERROR(#REF!,\"\"))","v":"Trimestre 1\n"},{"$f":"_xlfn.CONCAT(\"Trimestre 1\",CHAR(10),IFERROR(#REF!,\"\"))","v":"Trimestre 1\n"},{"$f":"_xlfn.CONCAT(\"Trimestre 1\",CHAR(10),IFERROR(#REF!,\"\"))","v":"Trimestre 1\n"}]
[null,null,null,null,null,null,null,null,null,null,null,null,null,null,null,null,null,null,null,null,null,null,null,null,null,{"$f":"IFERROR(#REF!,\" \")","v":" "},{"$f":"IFERROR(#REF!,\"\")","v":""},{"$f":"IFERROR(#REF!,\"\")","v":""},"","",{"$f":"IFERROR(#REF!,\"\")","v":""},"",{"$f":"IFERROR(#REF!,\"\")","v":""},{"$f":"IFERROR(#REF!,\"\")","v":""},{"$f":"_xlfn.CONCAT(\"Trimestre 1\",CHAR(10),IFERROR(#REF!,\"\"))","v":"Trimestre 1\n"},{"$f":"_xlfn.CONCAT(\"Trimestre 1\",CHAR(10),IFERROR(#REF!,\"\"))","v":"Trimestre 1\n"},{"$f":"_xlfn.CONCAT(\"Trimestre 1\",CHAR(10),IFERROR(#REF!,\"\"))","v":"Trimestre 1\n"},{"$f":"_xlfn.CONCAT(\"Trimestre 1\",CHAR(10),IFERROR(#REF!,\"\"))","v":"Trimestre 1\n"},{"$f":"_xlfn.CONCAT(\"Trimestre 1\",CHAR(10),IFERROR(#REF!,\"\"))","v":"Trimestre 1\n"}]
[null,null,"5.Consolidar la infraestructura y los recursos necesarios para la implementación exitosa de la transformación digital, incluyendo la disposición de internet de calidad en el 100% de las sedes en la Rama Judicial y modernizar los servicios tecnológicos de soporte. ","Implementación del programa de gestión del cambio y las comunicaciones del PETD","# de actividades del objetivo \"aumentar el conocimient o digital y el uso de apropiación de los sistemas\" del programa de gestión del cambio y las comunicaci ones del PETD cumplidas /# de actividades del objetivo \"aumentar el conocimient o digital y el uso de apropiación de los sistemas\" del programa de gestión del cambio y las comunicaci ones del PETD programada s",null,null,null,null,null,null,null,null,null,null,null,null,null,null,null,null,null,null,null,null,{"$f":"IFERROR(#REF!,\" \")","v":" "},{"$f":"IFERROR(#REF!,\"\")","v":""},{"$f":"IFERROR(#REF!,\"\")","v":""},"","",{"$f":"IFERROR(#REF!,\"\")","v":""},"",{"$f":"IFERROR(#REF!,\"\")","v":""},{"$f":"IFERROR(#REF!,\"\")","v":""},{"$f":"_xlfn.CONCAT(\"Trimestre 1\",CHAR(10),IFERROR(#REF!,\"\"))","v":"Trimestre 1\n"},{"$f":"_xlfn.CONCAT(\"Trimestre 1\",CHAR(10),IFERROR(#REF!,\"\"))","v":"Trimestre 1\n"},{"$f":"_xlfn.CONCAT(\"Trimestre 1\",CHAR(10),IFERROR(#REF!,\"\"))","v":"Trimestre 1\n"},{"$f":"_xlfn.CONCAT(\"Trimestre 1\",CHAR(10),IFERROR(#REF!,\"\"))","v":"Trimestre 1\n"},{"$f":"_xlfn.CONCAT(\"Trimestre 1\",CHAR(10),IFERROR(#REF!,\"\"))","v":"Trimestre 1\n"}]
[null,null,null,null,null,null,null,null,null,null,null,null,null,null,null,null,null,null,null,null,null,null,null,null,null,{"$f":"IFERROR(#REF!,\" \")","v":" "},{"$f":"IFERROR(#REF!,\"\")","v":""},{"$f":"IFERROR(#REF!,\"\")","v":""},"","",{"$f":"IFERROR(#REF!,\"\")","v":""},"",{"$f":"IFERROR(#REF!,\"\")","v":""},{"$f":"IFERROR(#REF!,\"\")","v":""},{"$f":"_xlfn.CONCAT(\"Trimestre 1\",CHAR(10),IFERROR(#REF!,\"\"))","v":"Trimestre 1\n"},{"$f":"_xlfn.CONCAT(\"Trimestre 1\",CHAR(10),IFERROR(#REF!,\"\"))","v":"Trimestre 1\n"},{"$f":"_xlfn.CONCAT(\"Trimestre 1\",CHAR(10),IFERROR(#REF!,\"\"))","v":"Trimestre 1\n"},{"$f":"_xlfn.CONCAT(\"Trimestre 1\",CHAR(10),IFERROR(#REF!,\"\"))","v":"Trimestre 1\n"},{"$f":"_xlfn.CONCAT(\"Trimestre 1\",CHAR(10),IFERROR(#REF!,\"\"))","v":"Trimestre 1\n"}]
[null,null,null,null,null,null,null,null,null,null,null,null,null,null,null,null,null,null,null,null,null,null,null,null,null,{"$f":"IFERROR(#REF!,\" \")","v":" "},{"$f":"IFERROR(#REF!,\"\")","v":""},{"$f":"IFERROR(#REF!,\"\")","v":""},"","",{"$f":"IFERROR(#REF!,\"\")","v":""},"",{"$f":"IFERROR(#REF!,\"\")","v":""},{"$f":"IFERROR(#REF!,\"\")","v":""},{"$f":"_xlfn.CONCAT(\"Trimestre 1\",CHAR(10),IFERROR(#REF!,\"\"))","v":"Trimestre 1\n"},{"$f":"_xlfn.CONCAT(\"Trimestre 1\",CHAR(10),IFERROR(#REF!,\"\"))","v":"Trimestre 1\n"},{"$f":"_xlfn.CONCAT(\"Trimestre 1\",CHAR(10),IFERROR(#REF!,\"\"))","v":"Trimestre 1\n"},{"$f":"_xlfn.CONCAT(\"Trimestre 1\",CHAR(10),IFERROR(#REF!,\"\"))","v":"Trimestre 1\n"},{"$f":"_xlfn.CONCAT(\"Trimestre 1\",CHAR(10),IFERROR(#REF!,\"\"))","v":"Trimestre 1\n"}]
[null,null,null,null,null,null,null,null,null,null,null,null,null,null,null,null,null,null,null,null,null,null,null,null,null,{"$f":"IFERROR(#REF!,\" \")","v":" "},{"$f":"IFERROR(#REF!,\"\")","v":""},{"$f":"IFERROR(#REF!,\"\")","v":""},"","",{"$f":"IFERROR(#REF!,\"\")","v":""},"",{"$f":"IFERROR(#REF!,\"\")","v":""},{"$f":"IFERROR(#REF!,\"\")","v":""},{"$f":"_xlfn.CONCAT(\"Trimestre 1\",CHAR(10),IFERROR(#REF!,\"\"))","v":"Trimestre 1\n"},{"$f":"_xlfn.CONCAT(\"Trimestre 1\",CHAR(10),IFERROR(#REF!,\"\"))","v":"Trimestre 1\n"},{"$f":"_xlfn.CONCAT(\"Trimestre 1\",CHAR(10),IFERROR(#REF!,\"\"))","v":"Trimestre 1\n"},{"$f":"_xlfn.CONCAT(\"Trimestre 1\",CHAR(10),IFERROR(#REF!,\"\"))","v":"Trimestre 1\n"},{"$f":"_xlfn.CONCAT(\"Trimestre 1\",CHAR(10),IFERROR(#REF!,\"\"))","v":"Trimestre 1\n"}]
[null,null,null,null,null,null,null,null,null,null,null,null,null,null,null,null,null,null,null,null,null,null,null,null,null,{"$f":"IFERROR(#REF!,\" \")","v":" "},{"$f":"IFERROR(#REF!,\"\")","v":""},{"$f":"IFERROR(#REF!,\"\")","v":""},"","",{"$f":"IFERROR(#REF!,\"\")","v":""},"",{"$f":"IFERROR(#REF!,\"\")","v":""},{"$f":"IFERROR(#REF!,\"\")","v":""},{"$f":"_xlfn.CONCAT(\"Trimestre 1\",CHAR(10),IFERROR(#REF!,\"\"))","v":"Trimestre 1\n"},{"$f":"_xlfn.CONCAT(\"Trimestre 1\",CHAR(10),IFERROR(#REF!,\"\"))","v":"Trimestre 1\n"},{"$f":"_xlfn.CONCAT(\"Trimestre 1\",CHAR(10),IFERROR(#REF!,\"\"))","v":"Trimestre 1\n"},{"$f":"_xlfn.CONCAT(\"Trimestre 1\",CHAR(10),IFERROR(#REF!,\"\"))","v":"Trimestre 1\n"},{"$f":"_xlfn.CONCAT(\"Trimestre 1\",CHAR(10),IFERROR(#REF!,\"\"))","v":"Trimestre 1\n"}]
[null,null,"6.Integrar y optimizar los servicios administrativos de la Rama Judicial bajo un enfoque de transformación digital e innovación incluyendo los componentes financiero, administrativo, talento humano, entre otros.",null,null,null,null,null,null,null,null,null,null,null,null,null,null,null,null,null,null,null,null,null,null,{"$f":"IFERROR(#REF!,\" \")","v":" "},{"$f":"IFERROR(#REF!,\"\")","v":""},{"$f":"IFERROR(#REF!,\"\")","v":""},"","",{"$f":"IFERROR(#REF!,\"\")","v":""},"",{"$f":"IFERROR(#REF!,\"\")","v":""},{"$f":"IFERROR(#REF!,\"\")","v":""},{"$f":"_xlfn.CONCAT(\"Trimestre 1\",CHAR(10),IFERROR(#REF!,\"\"))","v":"Trimestre 1\n"},{"$f":"_xlfn.CONCAT(\"Trimestre 1\",CHAR(10),IFERROR(#REF!,\"\"))","v":"Trimestre 1\n"},{"$f":"_xlfn.CONCAT(\"Trimestre 1\",CHAR(10),IFERROR(#REF!,\"\"))","v":"Trimestre 1\n"},{"$f":"_xlfn.CONCAT(\"Trimestre 1\",CHAR(10),IFERROR(#REF!,\"\"))","v":"Trimestre 1\n"},{"$f":"_xlfn.CONCAT(\"Trimestre 1\",CHAR(10),IFERROR(#REF!,\"\"))","v":"Trimestre 1\n"}]
[null,null,null,null,null,null,null,null,null,null,null,null,null,null,null,null,null,null,null,null,null,null,null,null,null,{"$f":"IFERROR(#REF!,\" \")","v":" "},{"$f":"IFERROR(#REF!,\"\")","v":""},{"$f":"IFERROR(#REF!,\"\")","v":""},"","",{"$f":"IFERROR(#REF!,\"\")","v":""},"",{"$f":"IFERROR(#REF!,\"\")","v":""},{"$f":"IFERROR(#REF!,\"\")","v":""},{"$f":"_xlfn.CONCAT(\"Trimestre 1\",CHAR(10),IFERROR(#REF!,\"\"))","v":"Trimestre 1\n"},{"$f":"_xlfn.CONCAT(\"Trimestre 1\",CHAR(10),IFERROR(#REF!,\"\"))","v":"Trimestre 1\n"},{"$f":"_xlfn.CONCAT(\"Trimestre 1\",CHAR(10),IFERROR(#REF!,\"\"))","v":"Trimestre 1\n"},{"$f":"_xlfn.CONCAT(\"Trimestre 1\",CHAR(10),IFERROR(#REF!,\"\"))","v":"Trimestre 1\n"},{"$f":"_xlfn.CONCAT(\"Trimestre 1\",CHAR(10),IFERROR(#REF!,\"\"))","v":"Trimestre 1\n"}]
[null,null,null,null,null,null,null,null,null,null,null,null,null,null,null,null,null,null,null,null,null,null,null,null,null,{"$f":"IFERROR(#REF!,\" \")","v":" "},{"$f":"IFERROR(#REF!,\"\")","v":""},{"$f":"IFERROR(#REF!,\"\")","v":""},"","",{"$f":"IFERROR(#REF!,\"\")","v":""},"",{"$f":"IFERROR(#REF!,\"\")","v":""},{"$f":"IFERROR(#REF!,\"\")","v":""},{"$f":"_xlfn.CONCAT(\"Trimestre 1\",CHAR(10),IFERROR(#REF!,\"\"))","v":"Trimestre 1\n"},{"$f":"_xlfn.CONCAT(\"Trimestre 1\",CHAR(10),IFERROR(#REF!,\"\"))","v":"Trimestre 1\n"},{"$f":"_xlfn.CONCAT(\"Trimestre 1\",CHAR(10),IFERROR(#REF!,\"\"))","v":"Trimestre 1\n"},{"$f":"_xlfn.CONCAT(\"Trimestre 1\",CHAR(10),IFERROR(#REF!,\"\"))","v":"Trimestre 1\n"},{"$f":"_xlfn.CONCAT(\"Trimestre 1\",CHAR(10),IFERROR(#REF!,\"\"))","v":"Trimestre 1\n"}]
[null,null,null,null,null,null,null,null,null,null,null,null,null,null,null,null,null,null,null,null,null,null,null,null,null,{"$f":"IFERROR(#REF!,\" \")","v":" "},{"$f":"IFERROR(#REF!,\"\")","v":""},{"$f":"IFERROR(#REF!,\"\")","v":""},"","",{"$f":"IFERROR(#REF!,\"\")","v":""},"",{"$f":"IFERROR(#REF!,\"\")","v":""},{"$f":"IFERROR(#REF!,\"\")","v":""},{"$f":"_xlfn.CONCAT(\"Trimestre 1\",CHAR(10),IFERROR(#REF!,\"\"))","v":"Trimestre 1\n"},{"$f":"_xlfn.CONCAT(\"Trimestre 1\",CHAR(10),IFERROR(#REF!,\"\"))","v":"Trimestre 1\n"},{"$f":"_xlfn.CONCAT(\"Trimestre 1\",CHAR(10),IFERROR(#REF!,\"\"))","v":"Trimestre 1\n"},{"$f":"_xlfn.CONCAT(\"Trimestre 1\",CHAR(10),IFERROR(#REF!,\"\"))","v":"Trimestre 1\n"},{"$f":"_xlfn.CONCAT(\"Trimestre 1\",CHAR(10),IFERROR(#REF!,\"\"))","v":"Trimestre 1\n"}]
[null,null,null,null,null,null,null,null,null,null,null,null,null,null,null,null,null,null,null,null,null,null,null,null,null,{"$f":"IFERROR(#REF!,\" \")","v":" "},{"$f":"IFERROR(#REF!,\"\")","v":""},{"$f":"IFERROR(#REF!,\"\")","v":""},"","",{"$f":"IFERROR(#REF!,\"\")","v":""},"",{"$f":"IFERROR(#REF!,\"\")","v":""},{"$f":"IFERROR(#REF!,\"\")","v":""},{"$f":"_xlfn.CONCAT(\"Trimestre 1\",CHAR(10),IFERROR(#REF!,\"\"))","v":"Trimestre 1\n"},{"$f":"_xlfn.CONCAT(\"Trimestre 1\",CHAR(10),IFERROR(#REF!,\"\"))","v":"Trimestre 1\n"},{"$f":"_xlfn.CONCAT(\"Trimestre 1\",CHAR(10),IFERROR(#REF!,\"\"))","v":"Trimestre 1\n"},{"$f":"_xlfn.CONCAT(\"Trimestre 1\",CHAR(10),IFERROR(#REF!,\"\"))","v":"Trimestre 1\n"},{"$f":"_xlfn.CONCAT(\"Trimestre 1\",CHAR(10),IFERROR(#REF!,\"\"))","v":"Trimestre 1\n"}]
["3. Confianza pública, transparencia y rendición de cuentas","Confianza pública, transparencia y rendición de cuentas: Aumentar la confianza pública en la justicia a través de la transparencia, la rendición de cuentas y la participación, incluyendo la información de justicia y la producción, gestión y acceso a las fuentes de derecho, el fortalecimiento del sistema de gestión de calidad y medio ambiente (SIGCMA) y el mejoramiento de la calidad y publicidad de la información. ","1. Incrementar la cantidad, la calidad y pertinencia de los datos sobre el funcionamiento del servicio de justicia bajo un modelo de gobierno de datos y un liderazgo unificado. ","Modelo de\ngobierno y calidad de datos implementado","% de implementa ción del modelo de gobierno y calidad de datos","4. Hacer un uso racional de los recursos naturales aplicando los principios y fases de la Economía Circular, para prevenir, mitigar y controlar los impactos ambientales.",null,null,null,null,null,null,null,null,null,null,null,null,null,null,null,null,null,null,null,{"$f":"IFERROR(#REF!,\" \")","v":" "},{"$f":"IFERROR(#REF!,\"\")","v":""},{"$f":"IFERROR(#REF!,\"\")","v":""},"","",{"$f":"IFERROR(#REF!,\"\")","v":""},"",{"$f":"IFERROR(#REF!,\"\")","v":""},{"$f":"IFERROR(#REF!,\"\")","v":""},{"$f":"_xlfn.CONCAT(\"Trimestre 1\",CHAR(10),IFERROR(#REF!,\"\"))","v":"Trimestre 1\n"},{"$f":"_xlfn.CONCAT(\"Trimestre 1\",CHAR(10),IFERROR(#REF!,\"\"))","v":"Trimestre 1\n"},{"$f":"_xlfn.CONCAT(\"Trimestre 1\",CHAR(10),IFERROR(#REF!,\"\"))","v":"Trimestre 1\n"},{"$f":"_xlfn.CONCAT(\"Trimestre 1\",CHAR(10),IFERROR(#REF!,\"\"))","v":"Trimestre 1\n"},{"$f":"_xlfn.CONCAT(\"Trimestre 1\",CHAR(10),IFERROR(#REF!,\"\"))","v":"Trimestre 1\n"}]
[null,null,null,null,null,null,null,null,null,null,null,null,null,null,null,null,null,null,null,null,null,null,null,null,null,{"$f":"IFERROR(#REF!,\" \")","v":" "},{"$f":"IFERROR(#REF!,\"\")","v":""},{"$f":"IFERROR(#REF!,\"\")","v":""},"","",{"$f":"IFERROR(#REF!,\"\")","v":""},"",{"$f":"IFERROR(#REF!,\"\")","v":""},{"$f":"IFERROR(#REF!,\"\")","v":""},{"$f":"_xlfn.CONCAT(\"Trimestre 1\",CHAR(10),IFERROR(#REF!,\"\"))","v":"Trimestre 1\n"},{"$f":"_xlfn.CONCAT(\"Trimestre 1\",CHAR(10),IFERROR(#REF!,\"\"))","v":"Trimestre 1\n"},{"$f":"_xlfn.CONCAT(\"Trimestre 1\",CHAR(10),IFERROR(#REF!,\"\"))","v":"Trimestre 1\n"},{"$f":"_xlfn.CONCAT(\"Trimestre 1\",CHAR(10),IFERROR(#REF!,\"\"))","v":"Trimestre 1\n"},{"$f":"_xlfn.CONCAT(\"Trimestre 1\",CHAR(10),IFERROR(#REF!,\"\"))","v":"Trimestre 1\n"}]
[null,null,null,null,null,null,null,null,null,null,null,null,null,null,null,null,null,null,null,null,null,null,null,null,null,{"$f":"IFERROR(#REF!,\" \")","v":" "},{"$f":"IFERROR(#REF!,\"\")","v":""},{"$f":"IFERROR(#REF!,\"\")","v":""},"","",{"$f":"IFERROR(#REF!,\"\")","v":""},"",{"$f":"IFERROR(#REF!,\"\")","v":""},{"$f":"IFERROR(#REF!,\"\")","v":""},{"$f":"_xlfn.CONCAT(\"Trimestre 1\",CHAR(10),IFERROR(#REF!,\"\"))","v":"Trimestre 1\n"},{"$f":"_xlfn.CONCAT(\"Trimestre 1\",CHAR(10),IFERROR(#REF!,\"\"))","v":"Trimestre 1\n"},{"$f":"_xlfn.CONCAT(\"Trimestre 1\",CHAR(10),IFERROR(#REF!,\"\"))","v":"Trimestre 1\n"},{"$f":"_xlfn.CONCAT(\"Trimestre 1\",CHAR(10),IFERROR(#REF!,\"\"))","v":"Trimestre 1\n"},{"$f":"_xlfn.CONCAT(\"Trimestre 1\",CHAR(10),IFERROR(#REF!,\"\"))","v":"Trimestre 1\n"}]
[null,null,null,null,null,null,null,null,null,null,null,null,null,null,null,null,null,null,null,null,null,null,null,null,null,{"$f":"IFERROR(#REF!,\" \")","v":" "},{"$f":"IFERROR(#REF!,\"\")","v":""},{"$f":"IFERROR(#REF!,\"\")","v":""},"","",{"$f":"IFERROR(#REF!,\"\")","v":""},"",{"$f":"IFERROR(#REF!,\"\")","v":""},{"$f":"IFERROR(#REF!,\"\")","v":""},{"$f":"_xlfn.CONCAT(\"Trimestre 1\",CHAR(10),IFERROR(#REF!,\"\"))","v":"Trimestre 1\n"},{"$f":"_xlfn.CONCAT(\"Trimestre 1\",CHAR(10),IFERROR(#REF!,\"\"))","v":"Trimestre 1\n"},{"$f":"_xlfn.CONCAT(\"Trimestre 1\",CHAR(10),IFERROR(#REF!,\"\"))","v":"Trimestre 1\n"},{"$f":"_xlfn.CONCAT(\"Trimestre 1\",CHAR(10),IFERROR(#REF!,\"\"))","v":"Trimestre 1\n"},{"$f":"_xlfn.CONCAT(\"Trimestre 1\",CHAR(10),IFERROR(#REF!,\"\"))","v":"Trimestre 1\n"}]
[null,null,null,null,null,null,null,null,null,null,null,null,null,null,null,null,null,null,null,null,null,null,null,null,null,{"$f":"IFERROR(#REF!,\" \")","v":" "},{"$f":"IFERROR(#REF!,\"\")","v":""},{"$f":"IFERROR(#REF!,\"\")","v":""},"","",{"$f":"IFERROR(#REF!,\"\")","v":""},"",{"$f":"IFERROR(#REF!,\"\")","v":""},{"$f":"IFERROR(#REF!,\"\")","v":""},{"$f":"_xlfn.CONCAT(\"Trimestre 1\",CHAR(10),IFERROR(#REF!,\"\"))","v":"Trimestre 1\n"},{"$f":"_xlfn.CONCAT(\"Trimestre 1\",CHAR(10),IFERROR(#REF!,\"\"))","v":"Trimestre 1\n"},{"$f":"_xlfn.CONCAT(\"Trimestre 1\",CHAR(10),IFERROR(#REF!,\"\"))","v":"Trimestre 1\n"},{"$f":"_xlfn.CONCAT(\"Trimestre 1\",CHAR(10),IFERROR(#REF!,\"\"))","v":"Trimestre 1\n"},{"$f":"_xlfn.CONCAT(\"Trimestre 1\",CHAR(10),IFERROR(#REF!,\"\"))","v":"Trimestre 1\n"}]
[null,null,"2. Consolidar la administración de la información entendida como todas las acciones rientadas a garantizar el acceso, consulta, uso y conservación de la información de justicia de manera ágil, flexible e inteligente, bajo un enfoque de innovación.","Modelo de producción, acceso, consulta y conservación del conocimiento jurídico","% de implementa ción del modelo de producción, acceso, consulta y conservació n del conocimient o jurídico",null,null,null,null,null,null,null,null,null,null,null,null,null,null,null,null,null,null,null,null,{"$f":"IFERROR(#REF!,\" \")","v":" "},{"$f":"IFERROR(#REF!,\"\")","v":""},{"$f":"IFERROR(#REF!,\"\")","v":""},"","",{"$f":"IFERROR(#REF!,\"\")","v":""},"",{"$f":"IFERROR(#REF!,\"\")","v":""},{"$f":"IFERROR(#REF!,\"\")","v":""},{"$f":"_xlfn.CONCAT(\"Trimestre 1\",CHAR(10),IFERROR(#REF!,\"\"))","v":"Trimestre 1\n"},{"$f":"_xlfn.CONCAT(\"Trimestre 1\",CHAR(10),IFERROR(#REF!,\"\"))","v":"Trimestre 1\n"},{"$f":"_xlfn.CONCAT(\"Trimestre 1\",CHAR(10),IFERROR(#REF!,\"\"))","v":"Trimestre 1\n"},{"$f":"_xlfn.CONCAT(\"Trimestre 1\",CHAR(10),IFERROR(#REF!,\"\"))","v":"Trimestre 1\n"},{"$f":"_xlfn.CONCAT(\"Trimestre 1\",CHAR(10),IFERROR(#REF!,\"\"))","v":"Trimestre 1\n"}]
[null,null,null,null,null,null,null,null,null,null,null,null,null,null,null,null,null,null,null,null,null,null,null,null,null,{"$f":"IFERROR(#REF!,\" \")","v":" "},{"$f":"IFERROR(#REF!,\"\")","v":""},{"$f":"IFERROR(#REF!,\"\")","v":""},"","",{"$f":"IFERROR(#REF!,\"\")","v":""},"",{"$f":"IFERROR(#REF!,\"\")","v":""},{"$f":"IFERROR(#REF!,\"\")","v":""},{"$f":"_xlfn.CONCAT(\"Trimestre 1\",CHAR(10),IFERROR(#REF!,\"\"))","v":"Trimestre 1\n"},{"$f":"_xlfn.CONCAT(\"Trimestre 1\",CHAR(10),IFERROR(#REF!,\"\"))","v":"Trimestre 1\n"},{"$f":"_xlfn.CONCAT(\"Trimestre 1\",CHAR(10),IFERROR(#REF!,\"\"))","v":"Trimestre 1\n"},{"$f":"_xlfn.CONCAT(\"Trimestre 1\",CHAR(10),IFERROR(#REF!,\"\"))","v":"Trimestre 1\n"},{"$f":"_xlfn.CONCAT(\"Trimestre 1\",CHAR(10),IFERROR(#REF!,\"\"))","v":"Trimestre 1\n"}]
[null,null,null,null,null,null,null,null,null,null,null,null,null,null,null,null,null,null,null,null,null,null,null,null,null,{"$f":"IFERROR(#REF!,\" \")","v":" "},{"$f":"IFERROR(#REF!,\"\")","v":""},{"$f":"IFERROR(#REF!,\"\")","v":""},"","",{"$f":"IFERROR(#REF!,\"\")","v":""},"",{"$f":"IFERROR(#REF!,\"\")","v":""},{"$f":"IFERROR(#REF!,\"\")","v":""},{"$f":"_xlfn.CONCAT(\"Trimestre 1\",CHAR(10),IFERROR(#REF!,\"\"))","v":"Trimestre 1\n"},{"$f":"_xlfn.CONCAT(\"Trimestre 1\",CHAR(10),IFERROR(#REF!,\"\"))","v":"Trimestre 1\n"},{"$f":"_xlfn.CONCAT(\"Trimestre 1\",CHAR(10),IFERROR(#REF!,\"\"))","v":"Trimestre 1\n"},{"$f":"_xlfn.CONCAT(\"Trimestre 1\",CHAR(10),IFERROR(#REF!,\"\"))","v":"Trimestre 1\n"},{"$f":"_xlfn.CONCAT(\"Trimestre 1\",CHAR(10),IFERROR(#REF!,\"\"))","v":"Trimestre 1\n"}]
[null,null,null,null,null,null,null,null,null,null,null,null,null,null,null,null,null,null,null,null,null,null,null,null,null,{"$f":"IFERROR(#REF!,\" \")","v":" "},{"$f":"IFERROR(#REF!,\"\")","v":""},{"$f":"IFERROR(#REF!,\"\")","v":""},"","",{"$f":"IFERROR(#REF!,\"\")","v":""},"",{"$f":"IFERROR(#REF!,\"\")","v":""},{"$f":"IFERROR(#REF!,\"\")","v":""},{"$f":"_xlfn.CONCAT(\"Trimestre 1\",CHAR(10),IFERROR(#REF!,\"\"))","v":"Trimestre 1\n"},{"$f":"_xlfn.CONCAT(\"Trimestre 1\",CHAR(10),IFERROR(#REF!,\"\"))","v":"Trimestre 1\n"},{"$f":"_xlfn.CONCAT(\"Trimestre 1\",CHAR(10),IFERROR(#REF!,\"\"))","v":"Trimestre 1\n"},{"$f":"_xlfn.CONCAT(\"Trimestre 1\",CHAR(10),IFERROR(#REF!,\"\"))","v":"Trimestre 1\n"},{"$f":"_xlfn.CONCAT(\"Trimestre 1\",CHAR(10),IFERROR(#REF!,\"\"))","v":"Trimestre 1\n"}]
[null,null,null,null,null,null,null,null,null,null,null,null,null,null,null,null,null,null,null,null,null,null,null,null,null,{"$f":"IFERROR(#REF!,\" \")","v":" "},{"$f":"IFERROR(#REF!,\"\")","v":""},{"$f":"IFERROR(#REF!,\"\")","v":""},"","",{"$f":"IFERROR(#REF!,\"\")","v":""},"",{"$f":"IFERROR(#REF!,\"\")","v":""},{"$f":"IFERROR(#REF!,\"\")","v":""},{"$f":"_xlfn.CONCAT(\"Trimestre 1\",CHAR(10),IFERROR(#REF!,\"\"))","v":"Trimestre 1\n"},{"$f":"_xlfn.CONCAT(\"Trimestre 1\",CHAR(10),IFERROR(#REF!,\"\"))","v":"Trimestre 1\n"},{"$f":"_xlfn.CONCAT(\"Trimestre 1\",CHAR(10),IFERROR(#REF!,\"\"))","v":"Trimestre 1\n"},{"$f":"_xlfn.CONCAT(\"Trimestre 1\",CHAR(10),IFERROR(#REF!,\"\"))","v":"Trimestre 1\n"},{"$f":"_xlfn.CONCAT(\"Trimestre 1\",CHAR(10),IFERROR(#REF!,\"\"))","v":"Trimestre 1\n"}]
[null,null,"3. Fortalecer el Sistema integrado de Gestión de la Rama, orientado a la implementación y certificación de las normas antisoborno.","Certificación del Sistema Integrado de Gestión de la Rama en norma antisoborno","# de dependenci as judiciales y administrati vas certificadas en norma antisoborno /# total de despachos certificados en calidad","1. Gestionar el desarrollo de las competencias, la toma de conciencia , la cultura  organizacional  y el compromiso de los  servidores judiciales, contratistas, practicantes y  judicantes de contribuir a generar valor público en la administración de justicia, en el marco de  cumplimiento de los requisitos  aplicables y el comportamiento ético.\n3. Fomentar la transparencia y la participación generando lineamientos y promoviendo la rendición de cuentas ,la consulta, reporte y planteamiento de inquietudes en relación con las decisiones y aspectos del SIGCMA.",null,null,null,null,null,null,null,null,null,null,null,null,null,null,null,null,null,null,null,{"$f":"IFERROR(#REF!,\" \")","v":" "},{"$f":"IFERROR(#REF!,\"\")","v":""},{"$f":"IFERROR(#REF!,\"\")","v":""},"","",{"$f":"IFERROR(#REF!,\"\")","v":""},{"$f":"IFERROR(P71-AB71,\"\")","v":""},{"$f":"IFERROR(#REF!,\"\")","v":""},{"$f":"IFERROR(#REF!,\"\")","v":""},{"$f":"_xlfn.CONCAT(\"Trimestre 1\",CHAR(10),IFERROR(#REF!,\"\"))","v":"Trimestre 1\n"},{"$f":"_xlfn.CONCAT(\"Trimestre 1\",CHAR(10),IFERROR(#REF!,\"\"))","v":"Trimestre 1\n"},{"$f":"_xlfn.CONCAT(\"Trimestre 1\",CHAR(10),IFERROR(#REF!,\"\"))","v":"Trimestre 1\n"},{"$f":"_xlfn.CONCAT(\"Trimestre 1\",CHAR(10),IFERROR(#REF!,\"\"))","v":"Trimestre 1\n"},{"$f":"_xlfn.CONCAT(\"Trimestre 1\",CHAR(10),IFERROR(#REF!,\"\"))","v":"Trimestre 1\n"}]
[null,null,null,null,null,null,null,null,null,null,null,null,null,null,null,null,null,null,null,null,null,null,null,null,null,{"$f":"IFERROR(#REF!,\" \")","v":" "},{"$f":"IFERROR(#REF!,\"\")","v":""},{"$f":"IFERROR(#REF!,\"\")","v":""},{"$f":"IFERROR(AB72/P72,\"\")","v":""},{"$f":"IFERROR(AA72/Y72,\"\")","v":""},{"$f":"IFERROR(#REF!,\"\")","v":""},"",{"$f":"IFERROR(#REF!,\"\")","v":""},{"$f":"IFERROR(#REF!,\"\")","v":""},{"$f":"_xlfn.CONCAT(\"Trimestre 1\",CHAR(10),IFERROR(#REF!,\"\"))","v":"Trimestre 1\n"},{"$f":"_xlfn.CONCAT(\"Trimestre 1\",CHAR(10),IFERROR(#REF!,\"\"))","v":"Trimestre 1\n"},{"$f":"_xlfn.CONCAT(\"Trimestre 1\",CHAR(10),IFERROR(#REF!,\"\"))","v":"Trimestre 1\n"},{"$f":"_xlfn.CONCAT(\"Trimestre 1\",CHAR(10),IFERROR(#REF!,\"\"))","v":"Trimestre 1\n"},{"$f":"_xlfn.CONCAT(\"Trimestre 1\",CHAR(10),IFERROR(#REF!,\"\"))","v":"Trimestre 1\n"}]
[null,null,null,null,null,null,null,null,null,null,null,null,null,null,null,null,null,null,null,null,null,null,null,null,null,{"$f":"IFERROR(#REF!,\" \")","v":" "},{"$f":"IFERROR(#REF!,\"\")","v":""},{"$f":"IFERROR(#REF!,\"\")","v":""},"","",{"$f":"IFERROR(#REF!,\"\")","v":""},"",{"$f":"IFERROR(#REF!,\"\")","v":""},{"$f":"IFERROR(#REF!,\"\")","v":""},{"$f":"_xlfn.CONCAT(\"Trimestre 1\",CHAR(10),IFERROR(#REF!,\"\"))","v":"Trimestre 1\n"},{"$f":"_xlfn.CONCAT(\"Trimestre 1\",CHAR(10),IFERROR(#REF!,\"\"))","v":"Trimestre 1\n"},{"$f":"_xlfn.CONCAT(\"Trimestre 1\",CHAR(10),IFERROR(#REF!,\"\"))","v":"Trimestre 1\n"},{"$f":"_xlfn.CONCAT(\"Trimestre 1\",CHAR(10),IFERROR(#REF!,\"\"))","v":"Trimestre 1\n"},{"$f":"_xlfn.CONCAT(\"Trimestre 1\",CHAR(10),IFERROR(#REF!,\"\"))","v":"Trimestre 1\n"}]
[null,null,null,null,null,null,null,null,null,null,null,null,null,null,null,null,null,null,null,null,null,null,null,null,null,{"$f":"IFERROR(#REF!,\" \")","v":" "},{"$f":"IFERROR(#REF!,\"\")","v":""},{"$f":"IFERROR(#REF!,\"\")","v":""},"","",{"$f":"IFERROR(#REF!,\"\")","v":""},"",{"$f":"IFERROR(#REF!,\"\")","v":""},{"$f":"IFERROR(#REF!,\"\")","v":""},{"$f":"_xlfn.CONCAT(\"Trimestre 1\",CHAR(10),IFERROR(#REF!,\"\"))","v":"Trimestre 1\n"},{"$f":"_xlfn.CONCAT(\"Trimestre 1\",CHAR(10),IFERROR(#REF!,\"\"))","v":"Trimestre 1\n"},{"$f":"_xlfn.CONCAT(\"Trimestre 1\",CHAR(10),IFERROR(#REF!,\"\"))","v":"Trimestre 1\n"},{"$f":"_xlfn.CONCAT(\"Trimestre 1\",CHAR(10),IFERROR(#REF!,\"\"))","v":"Trimestre 1\n"},{"$f":"_xlfn.CONCAT(\"Trimestre 1\",CHAR(10),IFERROR(#REF!,\"\"))","v":"Trimestre 1\n"}]
[null,null,null,null,null,null,null,null,null,null,null,null,null,null,null,null,null,null,null,null,null,null,null,null,null,{"$f":"IFERROR(#REF!,\" \")","v":" "},{"$f":"IFERROR(#REF!,\"\")","v":""},{"$f":"IFERROR(#REF!,\"\")","v":""},"","",{"$f":"IFERROR(#REF!,\"\")","v":""},"",{"$f":"IFERROR(#REF!,\"\")","v":""},{"$f":"IFERROR(#REF!,\"\")","v":""},{"$f":"_xlfn.CONCAT(\"Trimestre 1\",CHAR(10),IFERROR(#REF!,\"\"))","v":"Trimestre 1\n"},{"$f":"_xlfn.CONCAT(\"Trimestre 1\",CHAR(10),IFERROR(#REF!,\"\"))","v":"Trimestre 1\n"},{"$f":"_xlfn.CONCAT(\"Trimestre 1\",CHAR(10),IFERROR(#REF!,\"\"))","v":"Trimestre 1\n"},{"$f":"_xlfn.CONCAT(\"Trimestre 1\",CHAR(10),IFERROR(#REF!,\"\"))","v":"Trimestre 1\n"},{"$f":"_xlfn.CONCAT(\"Trimestre 1\",CHAR(10),IFERROR(#REF!,\"\"))","v":"Trimestre 1\n"}]
[null,null,"4. Aumentar la confianza, la cercanía y acceso a los servicios de la Rama Judicial a través, entre otros, de una comunicación clara y asertiva con la ciudadanía.","Satisfacción de la ciudadanía con la administración de justicia","% de satisfacción de la ciudadanía alto o muy alto con la administraci ón de justicia","3. Fomentar la transparencia y la participación generando lineamientos y promoviendo la rendición de cuentas ,la consulta, reporte y planteamiento de inquietudes en relación con las decisiones y aspectos del SIGCMA.",null,null,null,null,null,null,null,null,null,null,null,null,null,null,null,null,null,null,null,{"$f":"IFERROR(#REF!,\" \")","v":" "},{"$f":"IFERROR(#REF!,\"\")","v":""},{"$f":"IFERROR(#REF!,\"\")","v":""},"","",{"$f":"IFERROR(#REF!,\"\")","v":""},"",{"$f":"IFERROR(#REF!,\"\")","v":""},{"$f":"IFERROR(#REF!,\"\")","v":""},{"$f":"_xlfn.CONCAT(\"Trimestre 1\",CHAR(10),IFERROR(#REF!,\"\"))","v":"Trimestre 1\n"},{"$f":"_xlfn.CONCAT(\"Trimestre 1\",CHAR(10),IFERROR(#REF!,\"\"))","v":"Trimestre 1\n"},{"$f":"_xlfn.CONCAT(\"Trimestre 1\",CHAR(10),IFERROR(#REF!,\"\"))","v":"Trimestre 1\n"},{"$f":"_xlfn.CONCAT(\"Trimestre 1\",CHAR(10),IFERROR(#REF!,\"\"))","v":"Trimestre 1\n"},{"$f":"_xlfn.CONCAT(\"Trimestre 1\",CHAR(10),IFERROR(#REF!,\"\"))","v":"Trimestre 1\n"}]
[null,null,null,null,null,null,null,null,null,null,null,null,null,null,null,null,null,null,null,null,null,null,null,null,null,{"$f":"IFERROR(#REF!,\" \")","v":" "},{"$f":"IFERROR(#REF!,\"\")","v":""},{"$f":"IFERROR(#REF!,\"\")","v":""},"","",{"$f":"IFERROR(#REF!,\"\")","v":""},"",{"$f":"IFERROR(#REF!,\"\")","v":""},{"$f":"IFERROR(#REF!,\"\")","v":""},{"$f":"_xlfn.CONCAT(\"Trimestre 1\",CHAR(10),IFERROR(#REF!,\"\"))","v":"Trimestre 1\n"},{"$f":"_xlfn.CONCAT(\"Trimestre 1\",CHAR(10),IFERROR(#REF!,\"\"))","v":"Trimestre 1\n"},{"$f":"_xlfn.CONCAT(\"Trimestre 1\",CHAR(10),IFERROR(#REF!,\"\"))","v":"Trimestre 1\n"},{"$f":"_xlfn.CONCAT(\"Trimestre 1\",CHAR(10),IFERROR(#REF!,\"\"))","v":"Trimestre 1\n"},{"$f":"_xlfn.CONCAT(\"Trimestre 1\",CHAR(10),IFERROR(#REF!,\"\"))","v":"Trimestre 1\n"}]
[null,null,null,null,null,null,null,null,null,null,null,null,null,null,null,null,null,null,null,null,null,null,null,null,null,{"$f":"IFERROR(#REF!,\" \")","v":" "},{"$f":"IFERROR(#REF!,\"\")","v":""},{"$f":"IFERROR(#REF!,\"\")","v":""},"","",{"$f":"IFERROR(#REF!,\"\")","v":""},"",{"$f":"IFERROR(#REF!,\"\")","v":""},{"$f":"IFERROR(#REF!,\"\")","v":""},{"$f":"_xlfn.CONCAT(\"Trimestre 1\",CHAR(10),IFERROR(#REF!,\"\"))","v":"Trimestre 1\n"},{"$f":"_xlfn.CONCAT(\"Trimestre 1\",CHAR(10),IFERROR(#REF!,\"\"))","v":"Trimestre 1\n"},{"$f":"_xlfn.CONCAT(\"Trimestre 1\",CHAR(10),IFERROR(#REF!,\"\"))","v":"Trimestre 1\n"},{"$f":"_xlfn.CONCAT(\"Trimestre 1\",CHAR(10),IFERROR(#REF!,\"\"))","v":"Trimestre 1\n"},{"$f":"_xlfn.CONCAT(\"Trimestre 1\",CHAR(10),IFERROR(#REF!,\"\"))","v":"Trimestre 1\n"}]
[null,null,null,null,null,null,null,null,null,null,null,null,null,null,null,null,null,null,null,null,null,null,null,null,null,{"$f":"IFERROR(#REF!,\" \")","v":" "},{"$f":"IFERROR(#REF!,\"\")","v":""},{"$f":"IFERROR(#REF!,\"\")","v":""},"","",{"$f":"IFERROR(#REF!,\"\")","v":""},"",{"$f":"IFERROR(#REF!,\"\")","v":""},{"$f":"IFERROR(#REF!,\"\")","v":""},{"$f":"_xlfn.CONCAT(\"Trimestre 1\",CHAR(10),IFERROR(#REF!,\"\"))","v":"Trimestre 1\n"},{"$f":"_xlfn.CONCAT(\"Trimestre 1\",CHAR(10),IFERROR(#REF!,\"\"))","v":"Trimestre 1\n"},{"$f":"_xlfn.CONCAT(\"Trimestre 1\",CHAR(10),IFERROR(#REF!,\"\"))","v":"Trimestre 1\n"},{"$f":"_xlfn.CONCAT(\"Trimestre 1\",CHAR(10),IFERROR(#REF!,\"\"))","v":"Trimestre 1\n"},{"$f":"_xlfn.CONCAT(\"Trimestre 1\",CHAR(10),IFERROR(#REF!,\"\"))","v":"Trimestre 1\n"}]
[null,null,null,null,null,null,null,null,null,null,null,null,null,null,null,null,null,null,null,null,null,null,null,null,null,{"$f":"IFERROR(#REF!,\" \")","v":" "},{"$f":"IFERROR(#REF!,\"\")","v":""},{"$f":"IFERROR(#REF!,\"\")","v":""},"","",{"$f":"IFERROR(#REF!,\"\")","v":""},"",{"$f":"IFERROR(#REF!,\"\")","v":""},{"$f":"IFERROR(#REF!,\"\")","v":""},{"$f":"_xlfn.CONCAT(\"Trimestre 1\",CHAR(10),IFERROR(#REF!,\"\"))","v":"Trimestre 1\n"},{"$f":"_xlfn.CONCAT(\"Trimestre 1\",CHAR(10),IFERROR(#REF!,\"\"))","v":"Trimestre 1\n"},{"$f":"_xlfn.CONCAT(\"Trimestre 1\",CHAR(10),IFERROR(#REF!,\"\"))","v":"Trimestre 1\n"},{"$f":"_xlfn.CONCAT(\"Trimestre 1\",CHAR(10),IFERROR(#REF!,\"\"))","v":"Trimestre 1\n"},{"$f":"_xlfn.CONCAT(\"Trimestre 1\",CHAR(10),IFERROR(#REF!,\"\"))","v":"Trimestre 1\n"}]
[null,null,"5. Prevenir fenómenos asociados con actos de corrupción en la Rama Judicial y reducir las experiencias de corrupción de usuarios y servidores judiciales.","Cumplimiento del Plan Anticorrupción y de Atención al Ciudadano de la Rama Judicial","# Actividades cumplidas del PAAC/# Actividades programada s del PAAC*100",null,null,null,null,null,null,null,null,null,null,null,null,null,null,null,null,null,null,null,null,{"$f":"IFERROR(#REF!,\" \")","v":" "},{"$f":"IFERROR(#REF!,\"\")","v":""},{"$f":"IFERROR(#REF!,\"\")","v":""},"","",{"$f":"IFERROR(#REF!,\"\")","v":""},"",{"$f":"IFERROR(#REF!,\"\")","v":""},{"$f":"IFERROR(#REF!,\"\")","v":""},{"$f":"_xlfn.CONCAT(\"Trimestre 1\",CHAR(10),IFERROR(#REF!,\"\"))","v":"Trimestre 1\n"},{"$f":"_xlfn.CONCAT(\"Trimestre 1\",CHAR(10),IFERROR(#REF!,\"\"))","v":"Trimestre 1\n"},{"$f":"_xlfn.CONCAT(\"Trimestre 1\",CHAR(10),IFERROR(#REF!,\"\"))","v":"Trimestre 1\n"},{"$f":"_xlfn.CONCAT(\"Trimestre 1\",CHAR(10),IFERROR(#REF!,\"\"))","v":"Trimestre 1\n"},{"$f":"_xlfn.CONCAT(\"Trimestre 1\",CHAR(10),IFERROR(#REF!,\"\"))","v":"Trimestre 1\n"}]
[null,null,null,null,null,null,null,null,null,null,null,null,null,null,null,null,null,null,null,null,null,null,null,null,null,{"$f":"IFERROR(#REF!,\" \")","v":" "},{"$f":"IFERROR(#REF!,\"\")","v":""},{"$f":"IFERROR(#REF!,\"\")","v":""},"","",{"$f":"IFERROR(#REF!,\"\")","v":""},"",{"$f":"IFERROR(#REF!,\"\")","v":""},{"$f":"IFERROR(#REF!,\"\")","v":""},{"$f":"_xlfn.CONCAT(\"Trimestre 1\",CHAR(10),IFERROR(#REF!,\"\"))","v":"Trimestre 1\n"},{"$f":"_xlfn.CONCAT(\"Trimestre 1\",CHAR(10),IFERROR(#REF!,\"\"))","v":"Trimestre 1\n"},{"$f":"_xlfn.CONCAT(\"Trimestre 1\",CHAR(10),IFERROR(#REF!,\"\"))","v":"Trimestre 1\n"},{"$f":"_xlfn.CONCAT(\"Trimestre 1\",CHAR(10),IFERROR(#REF!,\"\"))","v":"Trimestre 1\n"},{"$f":"_xlfn.CONCAT(\"Trimestre 1\",CHAR(10),IFERROR(#REF!,\"\"))","v":"Trimestre 1\n"}]
[null,null,null,null,null,null,null,null,null,null,null,null,null,null,null,null,null,null,null,null,null,null,null,null,null,{"$f":"IFERROR(#REF!,\" \")","v":" "},{"$f":"IFERROR(#REF!,\"\")","v":""},{"$f":"IFERROR(#REF!,\"\")","v":""},"","",{"$f":"IFERROR(#REF!,\"\")","v":""},"",{"$f":"IFERROR(#REF!,\"\")","v":""},{"$f":"IFERROR(#REF!,\"\")","v":""},{"$f":"_xlfn.CONCAT(\"Trimestre 1\",CHAR(10),IFERROR(#REF!,\"\"))","v":"Trimestre 1\n"},{"$f":"_xlfn.CONCAT(\"Trimestre 1\",CHAR(10),IFERROR(#REF!,\"\"))","v":"Trimestre 1\n"},{"$f":"_xlfn.CONCAT(\"Trimestre 1\",CHAR(10),IFERROR(#REF!,\"\"))","v":"Trimestre 1\n"},{"$f":"_xlfn.CONCAT(\"Trimestre 1\",CHAR(10),IFERROR(#REF!,\"\"))","v":"Trimestre 1\n"},{"$f":"_xlfn.CONCAT(\"Trimestre 1\",CHAR(10),IFERROR(#REF!,\"\"))","v":"Trimestre 1\n"}]
[null,null,null,null,null,null,null,null,null,null,null,null,null,null,null,null,null,null,null,null,null,null,null,null,null,{"$f":"IFERROR(#REF!,\" \")","v":" "},{"$f":"IFERROR(#REF!,\"\")","v":""},{"$f":"IFERROR(#REF!,\"\")","v":""},"","",{"$f":"IFERROR(#REF!,\"\")","v":""},"",{"$f":"IFERROR(#REF!,\"\")","v":""},{"$f":"IFERROR(#REF!,\"\")","v":""},{"$f":"_xlfn.CONCAT(\"Trimestre 1\",CHAR(10),IFERROR(#REF!,\"\"))","v":"Trimestre 1\n"},{"$f":"_xlfn.CONCAT(\"Trimestre 1\",CHAR(10),IFERROR(#REF!,\"\"))","v":"Trimestre 1\n"},{"$f":"_xlfn.CONCAT(\"Trimestre 1\",CHAR(10),IFERROR(#REF!,\"\"))","v":"Trimestre 1\n"},{"$f":"_xlfn.CONCAT(\"Trimestre 1\",CHAR(10),IFERROR(#REF!,\"\"))","v":"Trimestre 1\n"},{"$f":"_xlfn.CONCAT(\"Trimestre 1\",CHAR(10),IFERROR(#REF!,\"\"))","v":"Trimestre 1\n"}]
[null,null,null,null,null,null,null,null,null,null,null,null,null,null,null,null,null,null,null,null,null,null,null,null,null,{"$f":"IFERROR(#REF!,\" \")","v":" "},{"$f":"IFERROR(#REF!,\"\")","v":""},{"$f":"IFERROR(#REF!,\"\")","v":""},"","",{"$f":"IFERROR(#REF!,\"\")","v":""},"",{"$f":"IFERROR(#REF!,\"\")","v":""},{"$f":"IFERROR(#REF!,\"\")","v":""},{"$f":"_xlfn.CONCAT(\"Trimestre 1\",CHAR(10),IFERROR(#REF!,\"\"))","v":"Trimestre 1\n"},{"$f":"_xlfn.CONCAT(\"Trimestre 1\",CHAR(10),IFERROR(#REF!,\"\"))","v":"Trimestre 1\n"},{"$f":"_xlfn.CONCAT(\"Trimestre 1\",CHAR(10),IFERROR(#REF!,\"\"))","v":"Trimestre 1\n"},{"$f":"_xlfn.CONCAT(\"Trimestre 1\",CHAR(10),IFERROR(#REF!,\"\"))","v":"Trimestre 1\n"},{"$f":"_xlfn.CONCAT(\"Trimestre 1\",CHAR(10),IFERROR(#REF!,\"\"))","v":"Trimestre 1\n"}]
[null,null,"6. Promover la rendición de cuentas y la colaboración real con la ciudadanía como fundamento para diseñar acciones de mejoramiento del acceso a la justicia.","Estrategias para implementar la colaboración real con la ciudadanía en el marco de la \"justicia abierta\" implementadas","% de implementa ción de las estrategias de colaboració n real con la ciudadanía en el marco de la \"justicia abierta\" definidas para cada anualidad",null,null,null,null,null,null,null,null,null,null,null,null,null,null,null,null,null,null,null,null,{"$f":"IFERROR(#REF!,\" \")","v":" "},{"$f":"IFERROR(#REF!,\"\")","v":""},{"$f":"IFERROR(#REF!,\"\")","v":""},"","",{"$f":"IFERROR(#REF!,\"\")","v":""},"",{"$f":"IFERROR(#REF!,\"\")","v":""},{"$f":"IFERROR(#REF!,\"\")","v":""},{"$f":"_xlfn.CONCAT(\"Trimestre 1\",CHAR(10),IFERROR(#REF!,\"\"))","v":"Trimestre 1\n"},{"$f":"_xlfn.CONCAT(\"Trimestre 1\",CHAR(10),IFERROR(#REF!,\"\"))","v":"Trimestre 1\n"},{"$f":"_xlfn.CONCAT(\"Trimestre 1\",CHAR(10),IFERROR(#REF!,\"\"))","v":"Trimestre 1\n"},{"$f":"_xlfn.CONCAT(\"Trimestre 1\",CHAR(10),IFERROR(#REF!,\"\"))","v":"Trimestre 1\n"},{"$f":"_xlfn.CONCAT(\"Trimestre 1\",CHAR(10),IFERROR(#REF!,\"\"))","v":"Trimestre 1\n"}]
[null,null,null,null,null,null,null,null,null,null,null,null,null,null,null,null,null,null,null,null,null,null,null,null,null,{"$f":"IFERROR(#REF!,\" \")","v":" "},{"$f":"IFERROR(#REF!,\"\")","v":""},{"$f":"IFERROR(#REF!,\"\")","v":""},"","",{"$f":"IFERROR(#REF!,\"\")","v":""},"",{"$f":"IFERROR(#REF!,\"\")","v":""},{"$f":"IFERROR(#REF!,\"\")","v":""},{"$f":"_xlfn.CONCAT(\"Trimestre 1\",CHAR(10),IFERROR(#REF!,\"\"))","v":"Trimestre 1\n"},{"$f":"_xlfn.CONCAT(\"Trimestre 1\",CHAR(10),IFERROR(#REF!,\"\"))","v":"Trimestre 1\n"},{"$f":"_xlfn.CONCAT(\"Trimestre 1\",CHAR(10),IFERROR(#REF!,\"\"))","v":"Trimestre 1\n"},{"$f":"_xlfn.CONCAT(\"Trimestre 1\",CHAR(10),IFERROR(#REF!,\"\"))","v":"Trimestre 1\n"},{"$f":"_xlfn.CONCAT(\"Trimestre 1\",CHAR(10),IFERROR(#REF!,\"\"))","v":"Trimestre 1\n"}]
[null,null,null,null,null,null,null,null,null,null,null,null,null,null,null,null,null,null,null,null,null,null,null,null,null,{"$f":"IFERROR(#REF!,\" \")","v":" "},{"$f":"IFERROR(#REF!,\"\")","v":""},{"$f":"IFERROR(#REF!,\"\")","v":""},"","",{"$f":"IFERROR(#REF!,\"\")","v":""},"",{"$f":"IFERROR(#REF!,\"\")","v":""},{"$f":"IFERROR(#REF!,\"\")","v":""},{"$f":"_xlfn.CONCAT(\"Trimestre 1\",CHAR(10),IFERROR(#REF!,\"\"))","v":"Trimestre 1\n"},{"$f":"_xlfn.CONCAT(\"Trimestre 1\",CHAR(10),IFERROR(#REF!,\"\"))","v":"Trimestre 1\n"},{"$f":"_xlfn.CONCAT(\"Trimestre 1\",CHAR(10),IFERROR(#REF!,\"\"))","v":"Trimestre 1\n"},{"$f":"_xlfn.CONCAT(\"Trimestre 1\",CHAR(10),IFERROR(#REF!,\"\"))","v":"Trimestre 1\n"},{"$f":"_xlfn.CONCAT(\"Trimestre 1\",CHAR(10),IFERROR(#REF!,\"\"))","v":"Trimestre 1\n"}]
[null,null,null,null,null,null,null,null,null,null,null,null,null,null,null,null,null,null,null,null,null,null,null,null,null,{"$f":"IFERROR(#REF!,\" \")","v":" "},{"$f":"IFERROR(#REF!,\"\")","v":""},{"$f":"IFERROR(#REF!,\"\")","v":""},"","",{"$f":"IFERROR(#REF!,\"\")","v":""},"",{"$f":"IFERROR(#REF!,\"\")","v":""},{"$f":"IFERROR(#REF!,\"\")","v":""},{"$f":"_xlfn.CONCAT(\"Trimestre 1\",CHAR(10),IFERROR(#REF!,\"\"))","v":"Trimestre 1\n"},{"$f":"_xlfn.CONCAT(\"Trimestre 1\",CHAR(10),IFERROR(#REF!,\"\"))","v":"Trimestre 1\n"},{"$f":"_xlfn.CONCAT(\"Trimestre 1\",CHAR(10),IFERROR(#REF!,\"\"))","v":"Trimestre 1\n"},{"$f":"_xlfn.CONCAT(\"Trimestre 1\",CHAR(10),IFERROR(#REF!,\"\"))","v":"Trimestre 1\n"},{"$f":"_xlfn.CONCAT(\"Trimestre 1\",CHAR(10),IFERROR(#REF!,\"\"))","v":"Trimestre 1\n"}]
[null,null,null,null,null,null,null,null,null,null,null,null,null,null,null,null,null,null,null,null,null,null,null,null,null,{"$f":"IFERROR(#REF!,\" \")","v":" "},{"$f":"IFERROR(#REF!,\"\")","v":""},{"$f":"IFERROR(#REF!,\"\")","v":""},"","",{"$f":"IFERROR(#REF!,\"\")","v":""},"",{"$f":"IFERROR(#REF!,\"\")","v":""},{"$f":"IFERROR(#REF!,\"\")","v":""},{"$f":"_xlfn.CONCAT(\"Trimestre 1\",CHAR(10),IFERROR(#REF!,\"\"))","v":"Trimestre 1\n"},{"$f":"_xlfn.CONCAT(\"Trimestre 1\",CHAR(10),IFERROR(#REF!,\"\"))","v":"Trimestre 1\n"},{"$f":"_xlfn.CONCAT(\"Trimestre 1\",CHAR(10),IFERROR(#REF!,\"\"))","v":"Trimestre 1\n"},{"$f":"_xlfn.CONCAT(\"Trimestre 1\",CHAR(10),IFERROR(#REF!,\"\"))","v":"Trimestre 1\n"},{"$f":"_xlfn.CONCAT(\"Trimestre 1\",CHAR(10),IFERROR(#REF!,\"\"))","v":"Trimestre 1\n"}]
[null,null,"7. Continuar la consolidación del SIGCMA, a través de los procesos de formación en modelos de gestión, logrando la implementación y ampliación de este en los esquemas certificados de manera gradual, teniendo en cuenta las capacidades de los diferentes despachos judiciales y dependencias de la Rama Judicial y articulando el enfoque de Arquitectura Empresarial para el desarrollo del PETD a través de la gestión del conocimiento para la gestión del cambio propendiendo por una cultura de la calidad, la transparencia, la rendición de cuentas, la anticorrupción y el antisoborno","Procesos de formación en modelos de gestión aplicados","# de servidores judiciales formados en modelos de gestión de las dependenci as judiciales y administrati vas certificadas en SIGCMA que implementa n el PETD / # total de servidores judiciales de las dependenci as judiciales y administrati vas certificadas en SIGCMA que implementa n el PETD","1. Gestionar el desarrollo de las competencias, la toma de conciencia , la cultura  organizacional  y el compromiso de los  servidores judiciales, contratistas, practicantes y  judicantes de contribuir a generar valor público en la administración de justicia, en el marco de  cumplimiento de los requisitos  aplicables y el comportamiento ético.\n4. Hacer un uso racional de los recursos naturales aplicando los principios y fases de la Economía Circular, para prevenir, mitigar y controlar los impactos ambientales.",null,null,null,null,null,null,null,null,null,null,null,null,null,null,null,null,null,null,null,{"$f":"IFERROR(#REF!,\" \")","v":" "},{"$f":"IFERROR(#REF!,\"\")","v":""},{"$f":"IFERROR(#REF!,\"\")","v":""},"","",{"$f":"IFERROR(#REF!,\"\")","v":""},"",{"$f":"IFERROR(#REF!,\"\")","v":""},{"$f":"IFERROR(#REF!,\"\")","v":""},{"$f":"_xlfn.CONCAT(\"Trimestre 1\",CHAR(10),IFERROR(#REF!,\"\"))","v":"Trimestre 1\n"},{"$f":"_xlfn.CONCAT(\"Trimestre 1\",CHAR(10),IFERROR(#REF!,\"\"))","v":"Trimestre 1\n"},{"$f":"_xlfn.CONCAT(\"Trimestre 1\",CHAR(10),IFERROR(#REF!,\"\"))","v":"Trimestre 1\n"},{"$f":"_xlfn.CONCAT(\"Trimestre 1\",CHAR(10),IFERROR(#REF!,\"\"))","v":"Trimestre 1\n"},{"$f":"_xlfn.CONCAT(\"Trimestre 1\",CHAR(10),IFERROR(#REF!,\"\"))","v":"Trimestre 1\n"}]
[null,null,null,null,null,null,null,null,null,null,null,null,null,null,null,null,null,null,null,null,null,null,null,null,null,{"$f":"IFERROR(#REF!,\" \")","v":" "},{"$f":"IFERROR(#REF!,\"\")","v":""},{"$f":"IFERROR(#REF!,\"\")","v":""},"","",{"$f":"IFERROR(#REF!,\"\")","v":""},"",{"$f":"IFERROR(#REF!,\"\")","v":""},{"$f":"IFERROR(#REF!,\"\")","v":""},{"$f":"_xlfn.CONCAT(\"Trimestre 1\",CHAR(10),IFERROR(#REF!,\"\"))","v":"Trimestre 1\n"},{"$f":"_xlfn.CONCAT(\"Trimestre 1\",CHAR(10),IFERROR(#REF!,\"\"))","v":"Trimestre 1\n"},{"$f":"_xlfn.CONCAT(\"Trimestre 1\",CHAR(10),IFERROR(#REF!,\"\"))","v":"Trimestre 1\n"},{"$f":"_xlfn.CONCAT(\"Trimestre 1\",CHAR(10),IFERROR(#REF!,\"\"))","v":"Trimestre 1\n"},{"$f":"_xlfn.CONCAT(\"Trimestre 1\",CHAR(10),IFERROR(#REF!,\"\"))","v":"Trimestre 1\n"}]
[null,null,null,null,null,null,null,null,null,null,null,null,null,null,null,null,null,null,null,null,null,null,null,null,null,{"$f":"IFERROR(#REF!,\" \")","v":" "},{"$f":"IFERROR(#REF!,\"\")","v":""},{"$f":"IFERROR(#REF!,\"\")","v":""},"","",{"$f":"IFERROR(#REF!,\"\")","v":""},"",{"$f":"IFERROR(#REF!,\"\")","v":""},{"$f":"IFERROR(#REF!,\"\")","v":""},{"$f":"_xlfn.CONCAT(\"Trimestre 1\",CHAR(10),IFERROR(#REF!,\"\"))","v":"Trimestre 1\n"},{"$f":"_xlfn.CONCAT(\"Trimestre 1\",CHAR(10),IFERROR(#REF!,\"\"))","v":"Trimestre 1\n"},{"$f":"_xlfn.CONCAT(\"Trimestre 1\",CHAR(10),IFERROR(#REF!,\"\"))","v":"Trimestre 1\n"},{"$f":"_xlfn.CONCAT(\"Trimestre 1\",CHAR(10),IFERROR(#REF!,\"\"))","v":"Trimestre 1\n"},{"$f":"_xlfn.CONCAT(\"Trimestre 1\",CHAR(10),IFERROR(#REF!,\"\"))","v":"Trimestre 1\n"}]
[null,null,null,null,null,null,null,null,null,null,null,null,null,null,null,null,null,null,null,null,null,null,null,null,null,{"$f":"IFERROR(#REF!,\" \")","v":" "},{"$f":"IFERROR(#REF!,\"\")","v":""},{"$f":"IFERROR(#REF!,\"\")","v":""},"","",{"$f":"IFERROR(#REF!,\"\")","v":""},"",{"$f":"IFERROR(#REF!,\"\")","v":""},{"$f":"IFERROR(#REF!,\"\")","v":""},{"$f":"_xlfn.CONCAT(\"Trimestre 1\",CHAR(10),IFERROR(#REF!,\"\"))","v":"Trimestre 1\n"},{"$f":"_xlfn.CONCAT(\"Trimestre 1\",CHAR(10),IFERROR(#REF!,\"\"))","v":"Trimestre 1\n"},{"$f":"_xlfn.CONCAT(\"Trimestre 1\",CHAR(10),IFERROR(#REF!,\"\"))","v":"Trimestre 1\n"},{"$f":"_xlfn.CONCAT(\"Trimestre 1\",CHAR(10),IFERROR(#REF!,\"\"))","v":"Trimestre 1\n"},{"$f":"_xlfn.CONCAT(\"Trimestre 1\",CHAR(10),IFERROR(#REF!,\"\"))","v":"Trimestre 1\n"}]
[null,null,null,null,null,null,null,null,null,null,null,null,null,null,null,null,null,null,null,null,null,null,null,null,null,{"$f":"IFERROR(#REF!,\" \")","v":" "},{"$f":"IFERROR(#REF!,\"\")","v":""},{"$f":"IFERROR(#REF!,\"\")","v":""},"","",{"$f":"IFERROR(#REF!,\"\")","v":""},"",{"$f":"IFERROR(#REF!,\"\")","v":""},{"$f":"IFERROR(#REF!,\"\")","v":""},{"$f":"_xlfn.CONCAT(\"Trimestre 1\",CHAR(10),IFERROR(#REF!,\"\"))","v":"Trimestre 1\n"},{"$f":"_xlfn.CONCAT(\"Trimestre 1\",CHAR(10),IFERROR(#REF!,\"\"))","v":"Trimestre 1\n"},{"$f":"_xlfn.CONCAT(\"Trimestre 1\",CHAR(10),IFERROR(#REF!,\"\"))","v":"Trimestre 1\n"},{"$f":"_xlfn.CONCAT(\"Trimestre 1\",CHAR(10),IFERROR(#REF!,\"\"))","v":"Trimestre 1\n"},{"$f":"_xlfn.CONCAT(\"Trimestre 1\",CHAR(10),IFERROR(#REF!,\"\"))","v":"Trimestre 1\n"}]
["4. Talento Humano","Talento Humano: Fortalecer el talento humano en la Rama Judicial para que sea eficiente, capacitado y realice su labor en ambientes saludables y seguros. Ampliar la cobertura de la carrera judicial y mejorar la oferta de formación, que esté disponible para todos los servidores judiciales e impacte positivamente el servicio de justicia y responda a las necesidades reales del ejercicio de la función judicial.","1. Ampliar la cobertura de la carrera judicial optimizando los procesos de los concursos de méritos y propender por mitigar su litigiosidad.","Cobertura de la carrera judicial diferenciada entre magistrados, jueces y empleados","# de cargos provistos por carrera judicial/# de cargos de carrera judicial","1. Gestionar el desarrollo de las competencias, la toma de conciencia , la cultura  organizacional  y el compromiso de los  servidores judiciales, contratistas, practicantes y  judicantes de contribuir a generar valor público en la administración de justicia, en el marco de  cumplimiento de los requisitos  aplicables y el comportamiento ético.",null,null,null,null,null,null,null,null,null,null,null,null,null,null,null,null,null,null,null,{"$f":"IFERROR(#REF!,\" \")","v":" "},{"$f":"IFERROR(#REF!,\"\")","v":""},{"$f":"IFERROR(#REF!,\"\")","v":""},"","",{"$f":"IFERROR(#REF!,\"\")","v":""},"",{"$f":"IFERROR(#REF!,\"\")","v":""},{"$f":"IFERROR(#REF!,\"\")","v":""},{"$f":"_xlfn.CONCAT(\"Trimestre 1\",CHAR(10),IFERROR(#REF!,\"\"))","v":"Trimestre 1\n"},{"$f":"_xlfn.CONCAT(\"Trimestre 1\",CHAR(10),IFERROR(#REF!,\"\"))","v":"Trimestre 1\n"},{"$f":"_xlfn.CONCAT(\"Trimestre 1\",CHAR(10),IFERROR(#REF!,\"\"))","v":"Trimestre 1\n"},{"$f":"_xlfn.CONCAT(\"Trimestre 1\",CHAR(10),IFERROR(#REF!,\"\"))","v":"Trimestre 1\n"},{"$f":"_xlfn.CONCAT(\"Trimestre 1\",CHAR(10),IFERROR(#REF!,\"\"))","v":"Trimestre 1\n"}]
[null,null,null,null,null,null,null,null,null,null,null,null,null,null,null,null,null,null,null,null,null,null,null,null,null,{"$f":"IFERROR(#REF!,\" \")","v":" "},{"$f":"IFERROR(#REF!,\"\")","v":""},{"$f":"IFERROR(#REF!,\"\")","v":""},"","",{"$f":"IFERROR(#REF!,\"\")","v":""},"",{"$f":"IFERROR(#REF!,\"\")","v":""},{"$f":"IFERROR(#REF!,\"\")","v":""},{"$f":"_xlfn.CONCAT(\"Trimestre 1\",CHAR(10),IFERROR(#REF!,\"\"))","v":"Trimestre 1\n"},{"$f":"_xlfn.CONCAT(\"Trimestre 1\",CHAR(10),IFERROR(#REF!,\"\"))","v":"Trimestre 1\n"},{"$f":"_xlfn.CONCAT(\"Trimestre 1\",CHAR(10),IFERROR(#REF!,\"\"))","v":"Trimestre 1\n"},{"$f":"_xlfn.CONCAT(\"Trimestre 1\",CHAR(10),IFERROR(#REF!,\"\"))","v":"Trimestre 1\n"},{"$f":"_xlfn.CONCAT(\"Trimestre 1\",CHAR(10),IFERROR(#REF!,\"\"))","v":"Trimestre 1\n"}]
[null,null,null,null,null,null,null,null,null,null,null,null,null,null,null,null,null,null,null,null,null,null,null,null,null,{"$f":"IFERROR(#REF!,\" \")","v":" "},{"$f":"IFERROR(#REF!,\"\")","v":""},{"$f":"IFERROR(#REF!,\"\")","v":""},"","",{"$f":"IFERROR(#REF!,\"\")","v":""},"",{"$f":"IFERROR(#REF!,\"\")","v":""},{"$f":"IFERROR(#REF!,\"\")","v":""},{"$f":"_xlfn.CONCAT(\"Trimestre 1\",CHAR(10),IFERROR(#REF!,\"\"))","v":"Trimestre 1\n"},{"$f":"_xlfn.CONCAT(\"Trimestre 1\",CHAR(10),IFERROR(#REF!,\"\"))","v":"Trimestre 1\n"},{"$f":"_xlfn.CONCAT(\"Trimestre 1\",CHAR(10),IFERROR(#REF!,\"\"))","v":"Trimestre 1\n"},{"$f":"_xlfn.CONCAT(\"Trimestre 1\",CHAR(10),IFERROR(#REF!,\"\"))","v":"Trimestre 1\n"},{"$f":"_xlfn.CONCAT(\"Trimestre 1\",CHAR(10),IFERROR(#REF!,\"\"))","v":"Trimestre 1\n"}]
[null,null,null,null,null,null,null,null,null,null,null,null,null,null,null,null,null,null,null,null,null,null,null,null,null,{"$f":"IFERROR(#REF!,\" \")","v":" "},{"$f":"IFERROR(#REF!,\"\")","v":""},{"$f":"IFERROR(#REF!,\"\")","v":""},"","",{"$f":"IFERROR(#REF!,\"\")","v":""},"",{"$f":"IFERROR(#REF!,\"\")","v":""},{"$f":"IFERROR(#REF!,\"\")","v":""},{"$f":"_xlfn.CONCAT(\"Trimestre 1\",CHAR(10),IFERROR(#REF!,\"\"))","v":"Trimestre 1\n"},{"$f":"_xlfn.CONCAT(\"Trimestre 1\",CHAR(10),IFERROR(#REF!,\"\"))","v":"Trimestre 1\n"},{"$f":"_xlfn.CONCAT(\"Trimestre 1\",CHAR(10),IFERROR(#REF!,\"\"))","v":"Trimestre 1\n"},{"$f":"_xlfn.CONCAT(\"Trimestre 1\",CHAR(10),IFERROR(#REF!,\"\"))","v":"Trimestre 1\n"},{"$f":"_xlfn.CONCAT(\"Trimestre 1\",CHAR(10),IFERROR(#REF!,\"\"))","v":"Trimestre 1\n"}]
[null,null,null,null,null,null,null,null,null,null,null,null,null,null,null,null,null,null,null,null,null,null,null,null,null,{"$f":"IFERROR(#REF!,\" \")","v":" "},{"$f":"IFERROR(#REF!,\"\")","v":""},{"$f":"IFERROR(#REF!,\"\")","v":""},"","",{"$f":"IFERROR(#REF!,\"\")","v":""},"",{"$f":"IFERROR(#REF!,\"\")","v":""},{"$f":"IFERROR(#REF!,\"\")","v":""},{"$f":"_xlfn.CONCAT(\"Trimestre 1\",CHAR(10),IFERROR(#REF!,\"\"))","v":"Trimestre 1\n"},{"$f":"_xlfn.CONCAT(\"Trimestre 1\",CHAR(10),IFERROR(#REF!,\"\"))","v":"Trimestre 1\n"},{"$f":"_xlfn.CONCAT(\"Trimestre 1\",CHAR(10),IFERROR(#REF!,\"\"))","v":"Trimestre 1\n"},{"$f":"_xlfn.CONCAT(\"Trimestre 1\",CHAR(10),IFERROR(#REF!,\"\"))","v":"Trimestre 1\n"},{"$f":"_xlfn.CONCAT(\"Trimestre 1\",CHAR(10),IFERROR(#REF!,\"\"))","v":"Trimestre 1\n"}]
[null,null,"2. Impactar la función y servicios que presta la Rama Judicial, a través de una formación integral desde una visión de gestión del conocimiento, relacionada con los problemas de la justicia y los problemas de gestión de quienes administran los recursos de la justicia, y potenciando el uso de medios virtuales.","Cobertura de la formación impartida por la Escuela Judicial en el fortalecimiento de las competencias de los servidores judiciales","# servidores que no han recibido ningún curso de formación en los dos años anteriores al proceso de formación, discriminad o por funcionarios y empleados, municipio y especialida d /# servidores totales, discriminad o por funcionarios y empleados, municipio y especialida d",null,null,null,null,null,null,null,null,null,null,null,null,null,null,null,null,null,null,null,null,{"$f":"IFERROR(#REF!,\" \")","v":" "},{"$f":"IFERROR(#REF!,\"\")","v":""},{"$f":"IFERROR(#REF!,\"\")","v":""},"","",{"$f":"IFERROR(#REF!,\"\")","v":""},"",{"$f":"IFERROR(#REF!,\"\")","v":""},{"$f":"IFERROR(#REF!,\"\")","v":""},{"$f":"_xlfn.CONCAT(\"Trimestre 1\",CHAR(10),IFERROR(#REF!,\"\"))","v":"Trimestre 1\n"},{"$f":"_xlfn.CONCAT(\"Trimestre 1\",CHAR(10),IFERROR(#REF!,\"\"))","v":"Trimestre 1\n"},{"$f":"_xlfn.CONCAT(\"Trimestre 1\",CHAR(10),IFERROR(#REF!,\"\"))","v":"Trimestre 1\n"},{"$f":"_xlfn.CONCAT(\"Trimestre 1\",CHAR(10),IFERROR(#REF!,\"\"))","v":"Trimestre 1\n"},{"$f":"_xlfn.CONCAT(\"Trimestre 1\",CHAR(10),IFERROR(#REF!,\"\"))","v":"Trimestre 1\n"}]
[null,null,null,null,null,null,null,null,null,null,null,null,null,null,null,null,null,null,null,null,null,null,null,null,null,{"$f":"IFERROR(#REF!,\" \")","v":" "},{"$f":"IFERROR(#REF!,\"\")","v":""},{"$f":"IFERROR(#REF!,\"\")","v":""},"","",{"$f":"IFERROR(#REF!,\"\")","v":""},"",{"$f":"IFERROR(#REF!,\"\")","v":""},{"$f":"IFERROR(#REF!,\"\")","v":""},{"$f":"_xlfn.CONCAT(\"Trimestre 1\",CHAR(10),IFERROR(#REF!,\"\"))","v":"Trimestre 1\n"},{"$f":"_xlfn.CONCAT(\"Trimestre 1\",CHAR(10),IFERROR(#REF!,\"\"))","v":"Trimestre 1\n"},{"$f":"_xlfn.CONCAT(\"Trimestre 1\",CHAR(10),IFERROR(#REF!,\"\"))","v":"Trimestre 1\n"},{"$f":"_xlfn.CONCAT(\"Trimestre 1\",CHAR(10),IFERROR(#REF!,\"\"))","v":"Trimestre 1\n"},{"$f":"_xlfn.CONCAT(\"Trimestre 1\",CHAR(10),IFERROR(#REF!,\"\"))","v":"Trimestre 1\n"}]
[null,null,null,null,null,null,null,null,null,null,null,null,null,null,null,null,null,null,null,null,null,null,null,null,null,{"$f":"IFERROR(#REF!,\" \")","v":" "},{"$f":"IFERROR(#REF!,\"\")","v":""},{"$f":"IFERROR(#REF!,\"\")","v":""},"","",{"$f":"IFERROR(#REF!,\"\")","v":""},"",{"$f":"IFERROR(#REF!,\"\")","v":""},{"$f":"IFERROR(#REF!,\"\")","v":""},{"$f":"_xlfn.CONCAT(\"Trimestre 1\",CHAR(10),IFERROR(#REF!,\"\"))","v":"Trimestre 1\n"},{"$f":"_xlfn.CONCAT(\"Trimestre 1\",CHAR(10),IFERROR(#REF!,\"\"))","v":"Trimestre 1\n"},{"$f":"_xlfn.CONCAT(\"Trimestre 1\",CHAR(10),IFERROR(#REF!,\"\"))","v":"Trimestre 1\n"},{"$f":"_xlfn.CONCAT(\"Trimestre 1\",CHAR(10),IFERROR(#REF!,\"\"))","v":"Trimestre 1\n"},{"$f":"_xlfn.CONCAT(\"Trimestre 1\",CHAR(10),IFERROR(#REF!,\"\"))","v":"Trimestre 1\n"}]
[null,null,null,null,null,null,null,null,null,null,null,null,null,null,null,null,null,null,null,null,null,null,null,null,null,{"$f":"IFERROR(#REF!,\" \")","v":" "},{"$f":"IFERROR(#REF!,\"\")","v":""},{"$f":"IFERROR(#REF!,\"\")","v":""},"","",{"$f":"IFERROR(#REF!,\"\")","v":""},"",{"$f":"IFERROR(#REF!,\"\")","v":""},{"$f":"IFERROR(#REF!,\"\")","v":""},{"$f":"_xlfn.CONCAT(\"Trimestre 1\",CHAR(10),IFERROR(#REF!,\"\"))","v":"Trimestre 1\n"},{"$f":"_xlfn.CONCAT(\"Trimestre 1\",CHAR(10),IFERROR(#REF!,\"\"))","v":"Trimestre 1\n"},{"$f":"_xlfn.CONCAT(\"Trimestre 1\",CHAR(10),IFERROR(#REF!,\"\"))","v":"Trimestre 1\n"},{"$f":"_xlfn.CONCAT(\"Trimestre 1\",CHAR(10),IFERROR(#REF!,\"\"))","v":"Trimestre 1\n"},{"$f":"_xlfn.CONCAT(\"Trimestre 1\",CHAR(10),IFERROR(#REF!,\"\"))","v":"Trimestre 1\n"}]
[null,null,null,null,null,null,null,null,null,null,null,null,null,null,null,null,null,null,null,null,null,null,null,null,null,{"$f":"IFERROR(#REF!,\" \")","v":" "},{"$f":"IFERROR(#REF!,\"\")","v":""},{"$f":"IFERROR(#REF!,\"\")","v":""},"","",{"$f":"IFERROR(#REF!,\"\")","v":""},"",{"$f":"IFERROR(#REF!,\"\")","v":""},{"$f":"IFERROR(#REF!,\"\")","v":""},{"$f":"_xlfn.CONCAT(\"Trimestre 1\",CHAR(10),IFERROR(#REF!,\"\"))","v":"Trimestre 1\n"},{"$f":"_xlfn.CONCAT(\"Trimestre 1\",CHAR(10),IFERROR(#REF!,\"\"))","v":"Trimestre 1\n"},{"$f":"_xlfn.CONCAT(\"Trimestre 1\",CHAR(10),IFERROR(#REF!,\"\"))","v":"Trimestre 1\n"},{"$f":"_xlfn.CONCAT(\"Trimestre 1\",CHAR(10),IFERROR(#REF!,\"\"))","v":"Trimestre 1\n"},{"$f":"_xlfn.CONCAT(\"Trimestre 1\",CHAR(10),IFERROR(#REF!,\"\"))","v":"Trimestre 1\n"}]
[null,null,"3. Promover la incorporación de la perspectiva de género y el enfoque diferencial en los fallos judiciales y en la atención a los ciudadanos, la administración de la Rama Judicial, la administración de la carrera judicial y la elaboración de listas para altas Cortes. ","Enfoque diferencial y perspectiva de género en las decisiones judiciales de la Rama Judicial","# de decisiones judiciales postuladas al Concurso de “Reconocim iento a la incorporaci ón del derecho a la igualdad y la no discriminaci ón en las sentencias judiciales” en el año corriente/# de decisiones judiciales postuladas al Concurso de “Reconocim iento a la incorporaci ón del derecho a la igualdad y la no discriminaci ón en las sentencias judiciales” en el año inmediatam ente anterior",null,null,null,null,null,null,null,null,null,null,null,null,null,null,null,null,null,null,null,null,{"$f":"IFERROR(#REF!,\" \")","v":" "},{"$f":"IFERROR(#REF!,\"\")","v":""},{"$f":"IFERROR(#REF!,\"\")","v":""},"","",{"$f":"IFERROR(#REF!,\"\")","v":""},"",{"$f":"IFERROR(#REF!,\"\")","v":""},{"$f":"IFERROR(#REF!,\"\")","v":""},{"$f":"_xlfn.CONCAT(\"Trimestre 1\",CHAR(10),IFERROR(#REF!,\"\"))","v":"Trimestre 1\n"},{"$f":"_xlfn.CONCAT(\"Trimestre 1\",CHAR(10),IFERROR(#REF!,\"\"))","v":"Trimestre 1\n"},{"$f":"_xlfn.CONCAT(\"Trimestre 1\",CHAR(10),IFERROR(#REF!,\"\"))","v":"Trimestre 1\n"},{"$f":"_xlfn.CONCAT(\"Trimestre 1\",CHAR(10),IFERROR(#REF!,\"\"))","v":"Trimestre 1\n"},{"$f":"_xlfn.CONCAT(\"Trimestre 1\",CHAR(10),IFERROR(#REF!,\"\"))","v":"Trimestre 1\n"}]
[null,null,null,null,null,null,null,null,null,null,null,null,null,null,null,null,null,null,null,null,null,null,null,null,null,{"$f":"IFERROR(#REF!,\" \")","v":" "},{"$f":"IFERROR(#REF!,\"\")","v":""},{"$f":"IFERROR(#REF!,\"\")","v":""},"","",{"$f":"IFERROR(#REF!,\"\")","v":""},"",{"$f":"IFERROR(#REF!,\"\")","v":""},{"$f":"IFERROR(#REF!,\"\")","v":""},{"$f":"_xlfn.CONCAT(\"Trimestre 1\",CHAR(10),IFERROR(#REF!,\"\"))","v":"Trimestre 1\n"},{"$f":"_xlfn.CONCAT(\"Trimestre 1\",CHAR(10),IFERROR(#REF!,\"\"))","v":"Trimestre 1\n"},{"$f":"_xlfn.CONCAT(\"Trimestre 1\",CHAR(10),IFERROR(#REF!,\"\"))","v":"Trimestre 1\n"},{"$f":"_xlfn.CONCAT(\"Trimestre 1\",CHAR(10),IFERROR(#REF!,\"\"))","v":"Trimestre 1\n"},{"$f":"_xlfn.CONCAT(\"Trimestre 1\",CHAR(10),IFERROR(#REF!,\"\"))","v":"Trimestre 1\n"}]
[null,null,null,null,null,null,null,null,null,null,null,null,null,null,null,null,null,null,null,null,null,null,null,null,null,{"$f":"IFERROR(#REF!,\" \")","v":" "},{"$f":"IFERROR(#REF!,\"\")","v":""},{"$f":"IFERROR(#REF!,\"\")","v":""},"","",{"$f":"IFERROR(#REF!,\"\")","v":""},"",{"$f":"IFERROR(#REF!,\"\")","v":""},{"$f":"IFERROR(#REF!,\"\")","v":""},{"$f":"_xlfn.CONCAT(\"Trimestre 1\",CHAR(10),IFERROR(#REF!,\"\"))","v":"Trimestre 1\n"},{"$f":"_xlfn.CONCAT(\"Trimestre 1\",CHAR(10),IFERROR(#REF!,\"\"))","v":"Trimestre 1\n"},{"$f":"_xlfn.CONCAT(\"Trimestre 1\",CHAR(10),IFERROR(#REF!,\"\"))","v":"Trimestre 1\n"},{"$f":"_xlfn.CONCAT(\"Trimestre 1\",CHAR(10),IFERROR(#REF!,\"\"))","v":"Trimestre 1\n"},{"$f":"_xlfn.CONCAT(\"Trimestre 1\",CHAR(10),IFERROR(#REF!,\"\"))","v":"Trimestre 1\n"}]
[null,null,null,null,null,null,null,null,null,null,null,null,null,null,null,null,null,null,null,null,null,null,null,null,null,{"$f":"IFERROR(#REF!,\" \")","v":" "},{"$f":"IFERROR(#REF!,\"\")","v":""},{"$f":"IFERROR(#REF!,\"\")","v":""},"","",{"$f":"IFERROR(#REF!,\"\")","v":""},"",{"$f":"IFERROR(#REF!,\"\")","v":""},{"$f":"IFERROR(#REF!,\"\")","v":""},{"$f":"_xlfn.CONCAT(\"Trimestre 1\",CHAR(10),IFERROR(#REF!,\"\"))","v":"Trimestre 1\n"},{"$f":"_xlfn.CONCAT(\"Trimestre 1\",CHAR(10),IFERROR(#REF!,\"\"))","v":"Trimestre 1\n"},{"$f":"_xlfn.CONCAT(\"Trimestre 1\",CHAR(10),IFERROR(#REF!,\"\"))","v":"Trimestre 1\n"},{"$f":"_xlfn.CONCAT(\"Trimestre 1\",CHAR(10),IFERROR(#REF!,\"\"))","v":"Trimestre 1\n"},{"$f":"_xlfn.CONCAT(\"Trimestre 1\",CHAR(10),IFERROR(#REF!,\"\"))","v":"Trimestre 1\n"}]
[null,null,null,null,null,null,null,null,null,null,null,null,null,null,null,null,null,null,null,null,null,null,null,null,null,{"$f":"IFERROR(#REF!,\" \")","v":" "},{"$f":"IFERROR(#REF!,\"\")","v":""},{"$f":"IFERROR(#REF!,\"\")","v":""},"","",{"$f":"IFERROR(#REF!,\"\")","v":""},"",{"$f":"IFERROR(#REF!,\"\")","v":""},{"$f":"IFERROR(#REF!,\"\")","v":""},{"$f":"_xlfn.CONCAT(\"Trimestre 1\",CHAR(10),IFERROR(#REF!,\"\"))","v":"Trimestre 1\n"},{"$f":"_xlfn.CONCAT(\"Trimestre 1\",CHAR(10),IFERROR(#REF!,\"\"))","v":"Trimestre 1\n"},{"$f":"_xlfn.CONCAT(\"Trimestre 1\",CHAR(10),IFERROR(#REF!,\"\"))","v":"Trimestre 1\n"},{"$f":"_xlfn.CONCAT(\"Trimestre 1\",CHAR(10),IFERROR(#REF!,\"\"))","v":"Trimestre 1\n"},{"$f":"_xlfn.CONCAT(\"Trimestre 1\",CHAR(10),IFERROR(#REF!,\"\"))","v":"Trimestre 1\n"}]
[null,null,"4. Desarrollar en los servidores judiciales y demás grupos de valor relevantes las competencias necesarias para la efectividad de la transformación digital de modo que puedan, entre otros, utilizar con solvencia las herramientas digitales dispuestas para sus respectivas funciones. Además, fortalecer y actualizar los conocimientos del personal a cargo de la gestión de proyectos de tecnología.","Cobertura de la formación impartida por la Escuela Judicial en Tecnologías de la Información y las Comunicaciones TIC para la práctica judicial.","# servidores que no han recibido ningún curso de formación en Tecnología s de la Información y las Comunicaci ones TIC en la vigencia del plan sectorial, discriminad o por funcionarios y empleados, municipio y especialida d /# servidores totales, discriminad o por funcionarios y empleados, municipio y especialida d",null,null,null,null,null,null,null,null,null,null,null,null,null,null,null,null,null,null,null,null,{"$f":"IFERROR(#REF!,\" \")","v":" "},{"$f":"IFERROR(#REF!,\"\")","v":""},{"$f":"IFERROR(#REF!,\"\")","v":""},"","",{"$f":"IFERROR(#REF!,\"\")","v":""},"",{"$f":"IFERROR(#REF!,\"\")","v":""},{"$f":"IFERROR(#REF!,\"\")","v":""},{"$f":"_xlfn.CONCAT(\"Trimestre 1\",CHAR(10),IFERROR(#REF!,\"\"))","v":"Trimestre 1\n"},{"$f":"_xlfn.CONCAT(\"Trimestre 1\",CHAR(10),IFERROR(#REF!,\"\"))","v":"Trimestre 1\n"},{"$f":"_xlfn.CONCAT(\"Trimestre 1\",CHAR(10),IFERROR(#REF!,\"\"))","v":"Trimestre 1\n"},{"$f":"_xlfn.CONCAT(\"Trimestre 1\",CHAR(10),IFERROR(#REF!,\"\"))","v":"Trimestre 1\n"},{"$f":"_xlfn.CONCAT(\"Trimestre 1\",CHAR(10),IFERROR(#REF!,\"\"))","v":"Trimestre 1\n"}]
[null,null,null,null,null,null,null,null,null,null,null,null,null,null,null,null,null,null,null,null,null,null,null,null,null,{"$f":"IFERROR(#REF!,\" \")","v":" "},{"$f":"IFERROR(#REF!,\"\")","v":""},{"$f":"IFERROR(#REF!,\"\")","v":""},"","",{"$f":"IFERROR(#REF!,\"\")","v":""},"",{"$f":"IFERROR(#REF!,\"\")","v":""},{"$f":"IFERROR(#REF!,\"\")","v":""},{"$f":"_xlfn.CONCAT(\"Trimestre 1\",CHAR(10),IFERROR(#REF!,\"\"))","v":"Trimestre 1\n"},{"$f":"_xlfn.CONCAT(\"Trimestre 1\",CHAR(10),IFERROR(#REF!,\"\"))","v":"Trimestre 1\n"},{"$f":"_xlfn.CONCAT(\"Trimestre 1\",CHAR(10),IFERROR(#REF!,\"\"))","v":"Trimestre 1\n"},{"$f":"_xlfn.CONCAT(\"Trimestre 1\",CHAR(10),IFERROR(#REF!,\"\"))","v":"Trimestre 1\n"},{"$f":"_xlfn.CONCAT(\"Trimestre 1\",CHAR(10),IFERROR(#REF!,\"\"))","v":"Trimestre 1\n"}]
[null,null,null,null,null,null,null,null,null,null,null,null,null,null,null,null,null,null,null,null,null,null,null,null,null,{"$f":"IFERROR(#REF!,\" \")","v":" "},{"$f":"IFERROR(#REF!,\"\")","v":""},{"$f":"IFERROR(#REF!,\"\")","v":""},"","",{"$f":"IFERROR(#REF!,\"\")","v":""},"",{"$f":"IFERROR(#REF!,\"\")","v":""},{"$f":"IFERROR(#REF!,\"\")","v":""},{"$f":"_xlfn.CONCAT(\"Trimestre 1\",CHAR(10),IFERROR(#REF!,\"\"))","v":"Trimestre 1\n"},{"$f":"_xlfn.CONCAT(\"Trimestre 1\",CHAR(10),IFERROR(#REF!,\"\"))","v":"Trimestre 1\n"},{"$f":"_xlfn.CONCAT(\"Trimestre 1\",CHAR(10),IFERROR(#REF!,\"\"))","v":"Trimestre 1\n"},{"$f":"_xlfn.CONCAT(\"Trimestre 1\",CHAR(10),IFERROR(#REF!,\"\"))","v":"Trimestre 1\n"},{"$f":"_xlfn.CONCAT(\"Trimestre 1\",CHAR(10),IFERROR(#REF!,\"\"))","v":"Trimestre 1\n"}]
[null,null,null,null,null,null,null,null,null,null,null,null,null,null,null,null,null,null,null,null,null,null,null,null,null,{"$f":"IFERROR(#REF!,\" \")","v":" "},{"$f":"IFERROR(#REF!,\"\")","v":""},{"$f":"IFERROR(#REF!,\"\")","v":""},"","",{"$f":"IFERROR(#REF!,\"\")","v":""},"",{"$f":"IFERROR(#REF!,\"\")","v":""},{"$f":"IFERROR(#REF!,\"\")","v":""},{"$f":"_xlfn.CONCAT(\"Trimestre 1\",CHAR(10),IFERROR(#REF!,\"\"))","v":"Trimestre 1\n"},{"$f":"_xlfn.CONCAT(\"Trimestre 1\",CHAR(10),IFERROR(#REF!,\"\"))","v":"Trimestre 1\n"},{"$f":"_xlfn.CONCAT(\"Trimestre 1\",CHAR(10),IFERROR(#REF!,\"\"))","v":"Trimestre 1\n"},{"$f":"_xlfn.CONCAT(\"Trimestre 1\",CHAR(10),IFERROR(#REF!,\"\"))","v":"Trimestre 1\n"},{"$f":"_xlfn.CONCAT(\"Trimestre 1\",CHAR(10),IFERROR(#REF!,\"\"))","v":"Trimestre 1\n"}]
[null,null,null,null,null,null,null,null,null,null,null,null,null,null,null,null,null,null,null,null,null,null,null,null,null,{"$f":"IFERROR(#REF!,\" \")","v":" "},{"$f":"IFERROR(#REF!,\"\")","v":""},{"$f":"IFERROR(#REF!,\"\")","v":""},"","",{"$f":"IFERROR(#REF!,\"\")","v":""},"",{"$f":"IFERROR(#REF!,\"\")","v":""},{"$f":"IFERROR(#REF!,\"\")","v":""},{"$f":"_xlfn.CONCAT(\"Trimestre 1\",CHAR(10),IFERROR(#REF!,\"\"))","v":"Trimestre 1\n"},{"$f":"_xlfn.CONCAT(\"Trimestre 1\",CHAR(10),IFERROR(#REF!,\"\"))","v":"Trimestre 1\n"},{"$f":"_xlfn.CONCAT(\"Trimestre 1\",CHAR(10),IFERROR(#REF!,\"\"))","v":"Trimestre 1\n"},{"$f":"_xlfn.CONCAT(\"Trimestre 1\",CHAR(10),IFERROR(#REF!,\"\"))","v":"Trimestre 1\n"},{"$f":"_xlfn.CONCAT(\"Trimestre 1\",CHAR(10),IFERROR(#REF!,\"\"))","v":"Trimestre 1\n"}]
[null,null,"5. Promover el bienestar de todos los servidores judiciales a través de la implementación de un sistema que contemple los diferentes niveles de estrategias y acciones necesarios para mejorar el clima laboral, la salud física y mental y la calidad del tiempo de descanso.","Satisfacción de los servidores judiciales con el clima laboral","(# respuestas con concepto de bueno o excelente / # total de respuestas) *100","5. Generar espacios de trabajo seguros y saludables que contribuyan a minimizar los  incidentes, accidentes y enfermedades laborales derivados de las condiciones y actos  inseguros y fomentar  el autocuidado, los  estilos de vida y el trabajo saludable en los servidores judiciales, contratistas, judicantes y practicantes.",2701,"na","C-2701-0800-31-0-2701048-02 "," 2018-01100-0844 ","Implementación de estrategias para fortalecer la gestión de los despachos judiciales en la Rama Judicial a Nivel Nacional. ","a)Controlar los factores de riesgo del entorno laboral que afectan la salud de los servidores judiciales e impactan el quehacer judicial, mediante la implementación de acciones de conformidad con la normativa vigente en esta materia y lo establecido en el Sistema de Gestión de Seguridad y Salud en el Trabajo (SGSST) de la entidad, para mejorar la gestión judicial. \nb) Mejorar el clima organizacional a través del apoyo de las estrategias del Plan Nacional de Bienestar Social para la Rama Judicial 2023-2026, que permitan promover el bienestar de los servidores judiciales. ","1. Ejecutar el plan nacional de binestar social."," Con el fin de favorecer un apropiado clima laboral en la Rama Judicial y así contribuir al compromiso institucional y al cumplimiento de los fines de la administración de justicia, se desarrollarán en las Direcciones Seccionales con los recursos asignados y la gestión de alianzas estratégicas, las actividades programadas en el Plan de Nacional de Bienestar Social, atravésdelosprogramasanualesdebienestarsocialvigencia 2023","Contratados con objeto de mejorar el clima laboral",194040624,"Contratos","Producto","2023-02-01","2023-12-31",642,500,"Coordinación SST y Binestar","Resolución 0129 del 25/01/2023",194040624,{"$f":"IFERROR(#REF!,\" \")","v":" "},{"$f":"IFERROR(#REF!,\"\")","v":""},{"$f":"IFERROR(#REF!,\"\")","v":""},"","",{"$f":"IFERROR(#REF!,\"\")","v":""},"",{"$f":"IFERROR(#REF!,\"\")","v":""},{"$f":"IFERROR(#REF!,\"\")","v":""},{"$f":"_xlfn.CONCAT(\"Trimestre 1\",CHAR(10),IFERROR(#REF!,\"\"))","v":"Trimestre 1\n"},{"$f":"_xlfn.CONCAT(\"Trimestre 1\",CHAR(10),IFERROR(#REF!,\"\"))","v":"Trimestre 1\n"},{"$f":"_xlfn.CONCAT(\"Trimestre 1\",CHAR(10),IFERROR(#REF!,\"\"))","v":"Trimestre 1\n"},{"$f":"_xlfn.CONCAT(\"Trimestre 1\",CHAR(10),IFERROR(#REF!,\"\"))","v":"Trimestre 1\n"},{"$f":"_xlfn.CONCAT(\"Trimestre 1\",CHAR(10),IFERROR(#REF!,\"\"))","v":"Trimestre 1\n"}]
[null,null,null,null,null,null,2701,"na","C-2701-0800-31-0-2701048-02 "," 2018-01100-0844 ","Implementación de estrategias para fortalecer la gestión de los despachos judiciales en la Rama Judicial a Nivel Nacional. ","a)Controlar los factores de riesgo del entorno laboral que afectan la salud de los servidores judiciales e impactan el quehacer judicial, mediante la implementación de acciones de conformidad con la normativa vigente en esta materia y lo establecido en el Sistema de Gestión de Seguridad y Salud en el Trabajo (SGSST) de la entidad, para mejorar la gestión judicial. \nb) Mejorar el clima organizacional a través del apoyo de las estrategias del Plan Nacional de Bienestar Social para la Rama Judicial 2023-2026, que permitan promover el bienestar de los servidores judiciales. ","Desarrollar el programa de Seguridad y Salud en el Trabajo con un enfoque de cultura basada en valores, entre otros \n","Con el fin de promover la salud y seguridad de los servidores judiciales, se llevarán a cabo programas de prevención de enfermedades laborales y control de los riesgos cardiovascular, psicosocial y biomecánico, enfocados a poblaciones objeto identificadas en los programas de vigilancia epidemiológica del Sistema de Gestión de Seguridad y Salud en el Trabajo (SG-SST) y para aquellos servidores judiciales se encuentren en un nivel de exposición medio, alto ymuy alto acada factor de riesgo.\nAdicionalmente, se brindará a los servidores, contratistas, proveedores y usuarios de la administración de la justicia un servicio mediante el cual se atenderán las urgencias y emergencias que se lleguen a presentar en las sedes de mayor afluencia de personas en la Rama Judicial a nivel nacional.\n","Contratos con objeto de apoyo al SG-SST",129695986,"Contratos","Producto","2023-02-01","2023-12-31",642,0,"Coordinación SST y Binestar","Resolución 0129 del 25/01/2023",129695986,{"$f":"IFERROR(#REF!,\" \")","v":" "},{"$f":"IFERROR(#REF!,\"\")","v":""},{"$f":"IFERROR(#REF!,\"\")","v":""},"","",{"$f":"IFERROR(#REF!,\"\")","v":""},"",{"$f":"IFERROR(#REF!,\"\")","v":""},{"$f":"IFERROR(#REF!,\"\")","v":""},{"$f":"_xlfn.CONCAT(\"Trimestre 1\",CHAR(10),IFERROR(#REF!,\"\"))","v":"Trimestre 1\n"},{"$f":"_xlfn.CONCAT(\"Trimestre 1\",CHAR(10),IFERROR(#REF!,\"\"))","v":"Trimestre 1\n"},{"$f":"_xlfn.CONCAT(\"Trimestre 1\",CHAR(10),IFERROR(#REF!,\"\"))","v":"Trimestre 1\n"},{"$f":"_xlfn.CONCAT(\"Trimestre 1\",CHAR(10),IFERROR(#REF!,\"\"))","v":"Trimestre 1\n"},{"$f":"_xlfn.CONCAT(\"Trimestre 1\",CHAR(10),IFERROR(#REF!,\"\"))","v":"Trimestre 1\n"}]
[null,null,null,null,null,null,2701,"na","C-2701-0800-31-0-2701048-02 "," 2018-01100-0844 ","Implementación de estrategias para fortalecer la gestión de los despachos judiciales en la Rama Judicial a Nivel Nacional. ","a)Controlar los factores de riesgo del entorno laboral que afectan la salud de los servidores judiciales e impactan el quehacer judicial, mediante la implementación de acciones de conformidad con la normativa vigente en esta materia y lo establecido en el Sistema de Gestión de Seguridad y Salud en el Trabajo (SGSST) de la entidad, para mejorar la gestión judicial. \nb) Mejorar el clima organizacional a través del apoyo de las estrategias del Plan Nacional de Bienestar Social para la Rama Judicial 2023-2026, que permitan promover el bienestar de los servidores judiciales. ","Fortalecer la capacidad técnico-administrativa del SG-SST para avanzar en el cumplimientodelosrequisitosyprocedimientosdeley","Con elobjeto deapoyarel cumplimientodelos estándaresmínimos del SistemadeGestión de Seguridad y Salud en el Trabajo (SG-SST) de la Rama Judicial, establecido en la Resolución 0312 de 2019, expedida por el Ministerio del Trabajo y ayudar en la ejecución de los programas anuales de bienestar social en el Nivel Central, en las seccionales y en las coordinaciones administrativas, se contará con 30 especialistas en Seguridad y Salud en el Trabajo.","Contratos con objeto de apoyo al SG-SST",51800000,"Contratos","Producto","2023-02-01","2023-12-31",642,0,"Coordinación SST y Binestar","Resolución 0129 del 25/01/2023",51800000,{"$f":"IFERROR(#REF!,\" \")","v":" "},{"$f":"IFERROR(#REF!,\"\")","v":""},{"$f":"IFERROR(#REF!,\"\")","v":""},"","",{"$f":"IFERROR(#REF!,\"\")","v":""},"",{"$f":"IFERROR(#REF!,\"\")","v":""},{"$f":"IFERROR(#REF!,\"\")","v":""},{"$f":"_xlfn.CONCAT(\"Trimestre 1\",CHAR(10),IFERROR(#REF!,\"\"))","v":"Trimestre 1\n"},{"$f":"_xlfn.CONCAT(\"Trimestre 1\",CHAR(10),IFERROR(#REF!,\"\"))","v":"Trimestre 1\n"},{"$f":"_xlfn.CONCAT(\"Trimestre 1\",CHAR(10),IFERROR(#REF!,\"\"))","v":"Trimestre 1\n"},{"$f":"_xlfn.CONCAT(\"Trimestre 1\",CHAR(10),IFERROR(#REF!,\"\"))","v":"Trimestre 1\n"},{"$f":"_xlfn.CONCAT(\"Trimestre 1\",CHAR(10),IFERROR(#REF!,\"\"))","v":"Trimestre 1\n"}]
[null,null,null,null,null,null,null,null,null,null,null,null,null,null,null,null,null,null,null,null,null,null,null,null,null,{"$f":"IFERROR(#REF!,\" \")","v":" "},{"$f":"IFERROR(#REF!,\"\")","v":""},{"$f":"IFERROR(#REF!,\"\")","v":""},"","",{"$f":"IFERROR(#REF!,\"\")","v":""},"",{"$f":"IFERROR(#REF!,\"\")","v":""},{"$f":"IFERROR(#REF!,\"\")","v":""},{"$f":"_xlfn.CONCAT(\"Trimestre 1\",CHAR(10),IFERROR(#REF!,\"\"))","v":"Trimestre 1\n"},{"$f":"_xlfn.CONCAT(\"Trimestre 1\",CHAR(10),IFERROR(#REF!,\"\"))","v":"Trimestre 1\n"},{"$f":"_xlfn.CONCAT(\"Trimestre 1\",CHAR(10),IFERROR(#REF!,\"\"))","v":"Trimestre 1\n"},{"$f":"_xlfn.CONCAT(\"Trimestre 1\",CHAR(10),IFERROR(#REF!,\"\"))","v":"Trimestre 1\n"},{"$f":"_xlfn.CONCAT(\"Trimestre 1\",CHAR(10),IFERROR(#REF!,\"\"))","v":"Trimestre 1\n"}]
[null,null,null,null,null,null,null,null,null,null,null,null,null,null,null,null,null,null,null,null,null,null,null,null,null,{"$f":"IFERROR(#REF!,\" \")","v":" "},{"$f":"IFERROR(#REF!,\"\")","v":""},{"$f":"IFERROR(#REF!,\"\")","v":""},"","",{"$f":"IFERROR(#REF!,\"\")","v":""},"",{"$f":"IFERROR(#REF!,\"\")","v":""},{"$f":"IFERROR(#REF!,\"\")","v":""},{"$f":"_xlfn.CONCAT(\"Trimestre 1\",CHAR(10),IFERROR(#REF!,\"\"))","v":"Trimestre 1\n"},{"$f":"_xlfn.CONCAT(\"Trimestre 1\",CHAR(10),IFERROR(#REF!,\"\"))","v":"Trimestre 1\n"},{"$f":"_xlfn.CONCAT(\"Trimestre 1\",CHAR(10),IFERROR(#REF!,\"\"))","v":"Trimestre 1\n"},{"$f":"_xlfn.CONCAT(\"Trimestre 1\",CHAR(10),IFERROR(#REF!,\"\"))","v":"Trimestre 1\n"},{"$f":"_xlfn.CONCAT(\"Trimestre 1\",CHAR(10),IFERROR(#REF!,\"\"))","v":"Trimestre 1\n"}]
["5. Gobernanza, planeación estratégica y capacidad de toma de decisiones","Gobernanza, planeación estratégica y capacidad de toma de decisiones: Fortalecer la gobernanza, la planeación estratégica y la capacidad de toma de decisiones de la Rama Judicial con base en la evidencia empírica y la articulación efectiva con las demás entidades, para que la perspectiva de género y el enfoque diferencial sean transversales en el presente plan. ","1. Implementar un nuevo modelo integrado para la planeación estratégica, el seguimiento y la medición del desempeño institucional.","Modelo integrado para la planeación estratégica, seguimiento y medición del desempeño institucional implementado","% de implementa ción del modelo integrado","2. Asegurar  el cumplimiento de los objetivos institucionales, la normatividad aplicable,  la mejora del SIGCMA y la satisfacción de los usuarios, revisando de  forma continua y sistemática la planificación de la gestión y fortaleciendo la administración de riesgos y sus controles.",null,null,null,null,null,null,null,null,null,null,null,null,null,null,null,null,null,null,null,{"$f":"IFERROR(#REF!,\" \")","v":" "},{"$f":"IFERROR(#REF!,\"\")","v":""},{"$f":"IFERROR(#REF!,\"\")","v":""},"","",{"$f":"IFERROR(#REF!,\"\")","v":""},"",{"$f":"IFERROR(#REF!,\"\")","v":""},{"$f":"IFERROR(#REF!,\"\")","v":""},{"$f":"_xlfn.CONCAT(\"Trimestre 1\",CHAR(10),IFERROR(#REF!,\"\"))","v":"Trimestre 1\n"},{"$f":"_xlfn.CONCAT(\"Trimestre 1\",CHAR(10),IFERROR(#REF!,\"\"))","v":"Trimestre 1\n"},{"$f":"_xlfn.CONCAT(\"Trimestre 1\",CHAR(10),IFERROR(#REF!,\"\"))","v":"Trimestre 1\n"},{"$f":"_xlfn.CONCAT(\"Trimestre 1\",CHAR(10),IFERROR(#REF!,\"\"))","v":"Trimestre 1\n"},{"$f":"_xlfn.CONCAT(\"Trimestre 1\",CHAR(10),IFERROR(#REF!,\"\"))","v":"Trimestre 1\n"}]
[null,null,null,null,null,null,null,null,null,null,null,null,null,null,null,null,null,null,null,null,null,null,null,null,null,{"$f":"IFERROR(#REF!,\" \")","v":" "},{"$f":"IFERROR(#REF!,\"\")","v":""},{"$f":"IFERROR(#REF!,\"\")","v":""},"","",{"$f":"IFERROR(#REF!,\"\")","v":""},"",{"$f":"IFERROR(#REF!,\"\")","v":""},{"$f":"IFERROR(#REF!,\"\")","v":""},{"$f":"_xlfn.CONCAT(\"Trimestre 1\",CHAR(10),IFERROR(#REF!,\"\"))","v":"Trimestre 1\n"},{"$f":"_xlfn.CONCAT(\"Trimestre 1\",CHAR(10),IFERROR(#REF!,\"\"))","v":"Trimestre 1\n"},{"$f":"_xlfn.CONCAT(\"Trimestre 1\",CHAR(10),IFERROR(#REF!,\"\"))","v":"Trimestre 1\n"},{"$f":"_xlfn.CONCAT(\"Trimestre 1\",CHAR(10),IFERROR(#REF!,\"\"))","v":"Trimestre 1\n"},{"$f":"_xlfn.CONCAT(\"Trimestre 1\",CHAR(10),IFERROR(#REF!,\"\"))","v":"Trimestre 1\n"}]
[null,null,null,null,null,null,null,null,null,null,null,null,null,null,null,null,null,null,null,null,null,null,null,null,null,{"$f":"IFERROR(#REF!,\" \")","v":" "},{"$f":"IFERROR(#REF!,\"\")","v":""},{"$f":"IFERROR(#REF!,\"\")","v":""},"","",{"$f":"IFERROR(#REF!,\"\")","v":""},"",{"$f":"IFERROR(#REF!,\"\")","v":""},{"$f":"IFERROR(#REF!,\"\")","v":""},{"$f":"_xlfn.CONCAT(\"Trimestre 1\",CHAR(10),IFERROR(#REF!,\"\"))","v":"Trimestre 1\n"},{"$f":"_xlfn.CONCAT(\"Trimestre 1\",CHAR(10),IFERROR(#REF!,\"\"))","v":"Trimestre 1\n"},{"$f":"_xlfn.CONCAT(\"Trimestre 1\",CHAR(10),IFERROR(#REF!,\"\"))","v":"Trimestre 1\n"},{"$f":"_xlfn.CONCAT(\"Trimestre 1\",CHAR(10),IFERROR(#REF!,\"\"))","v":"Trimestre 1\n"},{"$f":"_xlfn.CONCAT(\"Trimestre 1\",CHAR(10),IFERROR(#REF!,\"\"))","v":"Trimestre 1\n"}]
[null,null,null,null,null,null,null,null,null,null,null,null,null,null,null,null,null,null,null,null,null,null,null,null,null,{"$f":"IFERROR(#REF!,\" \")","v":" "},{"$f":"IFERROR(#REF!,\"\")","v":""},{"$f":"IFERROR(#REF!,\"\")","v":""},"","",{"$f":"IFERROR(#REF!,\"\")","v":""},"",{"$f":"IFERROR(#REF!,\"\")","v":""},{"$f":"IFERROR(#REF!,\"\")","v":""},{"$f":"_xlfn.CONCAT(\"Trimestre 1\",CHAR(10),IFERROR(#REF!,\"\"))","v":"Trimestre 1\n"},{"$f":"_xlfn.CONCAT(\"Trimestre 1\",CHAR(10),IFERROR(#REF!,\"\"))","v":"Trimestre 1\n"},{"$f":"_xlfn.CONCAT(\"Trimestre 1\",CHAR(10),IFERROR(#REF!,\"\"))","v":"Trimestre 1\n"},{"$f":"_xlfn.CONCAT(\"Trimestre 1\",CHAR(10),IFERROR(#REF!,\"\"))","v":"Trimestre 1\n"},{"$f":"_xlfn.CONCAT(\"Trimestre 1\",CHAR(10),IFERROR(#REF!,\"\"))","v":"Trimestre 1\n"}]
[null,null,null,null,null,null,null,null,null,null,null,null,null,null,null,null,null,null,null,null,null,null,null,null,null,{"$f":"IFERROR(#REF!,\" \")","v":" "},{"$f":"IFERROR(#REF!,\"\")","v":""},{"$f":"IFERROR(#REF!,\"\")","v":""},"","",{"$f":"IFERROR(#REF!,\"\")","v":""},"",{"$f":"IFERROR(#REF!,\"\")","v":""},{"$f":"IFERROR(#REF!,\"\")","v":""},{"$f":"_xlfn.CONCAT(\"Trimestre 1\",CHAR(10),IFERROR(#REF!,\"\"))","v":"Trimestre 1\n"},{"$f":"_xlfn.CONCAT(\"Trimestre 1\",CHAR(10),IFERROR(#REF!,\"\"))","v":"Trimestre 1\n"},{"$f":"_xlfn.CONCAT(\"Trimestre 1\",CHAR(10),IFERROR(#REF!,\"\"))","v":"Trimestre 1\n"},{"$f":"_xlfn.CONCAT(\"Trimestre 1\",CHAR(10),IFERROR(#REF!,\"\"))","v":"Trimestre 1\n"},{"$f":"_xlfn.CONCAT(\"Trimestre 1\",CHAR(10),IFERROR(#REF!,\"\"))","v":"Trimestre 1\n"}]
[null,null,"2. Definir e implementar el modelo optimizado de formulación, seguimiento y evaluación de la política pública judicial.",null,null,null,null,null,null,null,null,null,null,null,null,null,null,null,null,null,null,null,null,null,null,{"$f":"IFERROR(#REF!,\" \")","v":" "},{"$f":"IFERROR(#REF!,\"\")","v":""},{"$f":"IFERROR(#REF!,\"\")","v":""},"","",{"$f":"IFERROR(#REF!,\"\")","v":""},"",{"$f":"IFERROR(#REF!,\"\")","v":""},{"$f":"IFERROR(#REF!,\"\")","v":""},{"$f":"_xlfn.CONCAT(\"Trimestre 1\",CHAR(10),IFERROR(#REF!,\"\"))","v":"Trimestre 1\n"},{"$f":"_xlfn.CONCAT(\"Trimestre 1\",CHAR(10),IFERROR(#REF!,\"\"))","v":"Trimestre 1\n"},{"$f":"_xlfn.CONCAT(\"Trimestre 1\",CHAR(10),IFERROR(#REF!,\"\"))","v":"Trimestre 1\n"},{"$f":"_xlfn.CONCAT(\"Trimestre 1\",CHAR(10),IFERROR(#REF!,\"\"))","v":"Trimestre 1\n"},{"$f":"_xlfn.CONCAT(\"Trimestre 1\",CHAR(10),IFERROR(#REF!,\"\"))","v":"Trimestre 1\n"}]
[null,null,null,null,null,null,null,null,null,null,null,null,null,null,null,null,null,null,null,null,null,null,null,null,null,{"$f":"IFERROR(#REF!,\" \")","v":" "},{"$f":"IFERROR(#REF!,\"\")","v":""},{"$f":"IFERROR(#REF!,\"\")","v":""},"","",{"$f":"IFERROR(#REF!,\"\")","v":""},"",{"$f":"IFERROR(#REF!,\"\")","v":""},{"$f":"IFERROR(#REF!,\"\")","v":""},{"$f":"_xlfn.CONCAT(\"Trimestre 1\",CHAR(10),IFERROR(#REF!,\"\"))","v":"Trimestre 1\n"},{"$f":"_xlfn.CONCAT(\"Trimestre 1\",CHAR(10),IFERROR(#REF!,\"\"))","v":"Trimestre 1\n"},{"$f":"_xlfn.CONCAT(\"Trimestre 1\",CHAR(10),IFERROR(#REF!,\"\"))","v":"Trimestre 1\n"},{"$f":"_xlfn.CONCAT(\"Trimestre 1\",CHAR(10),IFERROR(#REF!,\"\"))","v":"Trimestre 1\n"},{"$f":"_xlfn.CONCAT(\"Trimestre 1\",CHAR(10),IFERROR(#REF!,\"\"))","v":"Trimestre 1\n"}]
[null,null,null,null,null,null,null,null,null,null,null,null,null,null,null,null,null,null,null,null,null,null,null,null,null,{"$f":"IFERROR(#REF!,\" \")","v":" "},{"$f":"IFERROR(#REF!,\"\")","v":""},{"$f":"IFERROR(#REF!,\"\")","v":""},"","",{"$f":"IFERROR(#REF!,\"\")","v":""},"",{"$f":"IFERROR(#REF!,\"\")","v":""},{"$f":"IFERROR(#REF!,\"\")","v":""},{"$f":"_xlfn.CONCAT(\"Trimestre 1\",CHAR(10),IFERROR(#REF!,\"\"))","v":"Trimestre 1\n"},{"$f":"_xlfn.CONCAT(\"Trimestre 1\",CHAR(10),IFERROR(#REF!,\"\"))","v":"Trimestre 1\n"},{"$f":"_xlfn.CONCAT(\"Trimestre 1\",CHAR(10),IFERROR(#REF!,\"\"))","v":"Trimestre 1\n"},{"$f":"_xlfn.CONCAT(\"Trimestre 1\",CHAR(10),IFERROR(#REF!,\"\"))","v":"Trimestre 1\n"},{"$f":"_xlfn.CONCAT(\"Trimestre 1\",CHAR(10),IFERROR(#REF!,\"\"))","v":"Trimestre 1\n"}]
[null,null,null,null,null,null,null,null,null,null,null,null,null,null,null,null,null,null,null,null,null,null,null,null,null,{"$f":"IFERROR(#REF!,\" \")","v":" "},{"$f":"IFERROR(#REF!,\"\")","v":""},{"$f":"IFERROR(#REF!,\"\")","v":""},"","",{"$f":"IFERROR(#REF!,\"\")","v":""},"",{"$f":"IFERROR(#REF!,\"\")","v":""},{"$f":"IFERROR(#REF!,\"\")","v":""},{"$f":"_xlfn.CONCAT(\"Trimestre 1\",CHAR(10),IFERROR(#REF!,\"\"))","v":"Trimestre 1\n"},{"$f":"_xlfn.CONCAT(\"Trimestre 1\",CHAR(10),IFERROR(#REF!,\"\"))","v":"Trimestre 1\n"},{"$f":"_xlfn.CONCAT(\"Trimestre 1\",CHAR(10),IFERROR(#REF!,\"\"))","v":"Trimestre 1\n"},{"$f":"_xlfn.CONCAT(\"Trimestre 1\",CHAR(10),IFERROR(#REF!,\"\"))","v":"Trimestre 1\n"},{"$f":"_xlfn.CONCAT(\"Trimestre 1\",CHAR(10),IFERROR(#REF!,\"\"))","v":"Trimestre 1\n"}]
[null,null,null,null,null,null,null,null,null,null,null,null,null,null,null,null,null,null,null,null,null,null,null,null,null,{"$f":"IFERROR(#REF!,\" \")","v":" "},{"$f":"IFERROR(#REF!,\"\")","v":""},{"$f":"IFERROR(#REF!,\"\")","v":""},"","",{"$f":"IFERROR(#REF!,\"\")","v":""},"",{"$f":"IFERROR(#REF!,\"\")","v":""},{"$f":"IFERROR(#REF!,\"\")","v":""},{"$f":"_xlfn.CONCAT(\"Trimestre 1\",CHAR(10),IFERROR(#REF!,\"\"))","v":"Trimestre 1\n"},{"$f":"_xlfn.CONCAT(\"Trimestre 1\",CHAR(10),IFERROR(#REF!,\"\"))","v":"Trimestre 1\n"},{"$f":"_xlfn.CONCAT(\"Trimestre 1\",CHAR(10),IFERROR(#REF!,\"\"))","v":"Trimestre 1\n"},{"$f":"_xlfn.CONCAT(\"Trimestre 1\",CHAR(10),IFERROR(#REF!,\"\"))","v":"Trimestre 1\n"},{"$f":"_xlfn.CONCAT(\"Trimestre 1\",CHAR(10),IFERROR(#REF!,\"\"))","v":"Trimestre 1\n"}]

{"sheet":"JURISDICCIONAL","index":6,"n_rows":29,"n_cols":16,"rows_kept":29,"cut":false,"hidden":true,"merged":[[27,0,28,0],[27,1,28,1],[27,3,28,3],[15,0,21,0],[15,1,21,1],[15,3,21,3],[22,0,26,0],[22,1,26,1],[22,3,26,3],[2,14,2,15],[4,0,8,0],[4,1,8,1],[4,3,8,3],[9,0,14,0],[9,1,14,1],[9,3,14,3],[1,2,1,13],[2,0,3,0],[2,1,3,1],[2,2,3,2],[2,3,3,3],[2,4,3,4],[2,5,2,7],[2,8,2,10],[2,11,3,11],[2,12,2,13]]}
[]
[null,null,"CONSEJO SUPERIOR DE LA JUDICATURA \nUNIDADES MISIONALES DEL CONSEJO SUPERIOR DE LA JUDICATURA - \nDIRECCIÓN EJECUTIVA DE ADMINISTRACIÓN JUDICIAL -UNIDADES MISIONALES DE LA DEAJ\nDIRECCIONES SECCIONALES DE ADMINISTRACIÓN JUDICIAL "]
["No. ","OBJETIVOS ESTRATEGICOS PLAN SECTORIAL DE DESARROLLO 2023-2026","OBJETIVOS ESPECIFICOS PLAN SECTORIAL DE DESARROLLO 2023-2026","OBJETIVOS DEL SIGCMA","DESCRIPCIÓN DE LA ACTIVIDAD (INVERSIÓN O DE GESTIÓN) ","MAPA DE PROCESO DEL SIGCMA (RELACIONE  EL PROCESO ESTRATÉGICO, MISIONAL, APOYO y EVALUACIÓN - MEJORA)",null,null,"MEDICIÓN DE LA GESTIÓN ",null,null,"RESPONSABLE POR PROYECTO O ACTIVIDAD","FECHA DEL PROYECTO/ACTIVIDAD",null,"ANÁLISIS DE RESULTADOS"]
[null,null,null,null,null,"NOMBRE DEL PROCESO","CENTRAL","SECCIONAL","ENTREGABLE","INDICADOR","DESCRIBIR EL INDICADOR",null,"INICIO \nDÍA/MES/AÑO","FIN\nDÍA/MES/AÑO","CUMPLIMIENTO DEL OBJETIVO (ACUMULADO DE LOS 4 TRIMESTRES)"," ANÁLISIS RESULTADO\nFINAL - ACUMULADO"]
[1,"Acceso a Infraestructura Física"," 1. Ampliar el acceso a justicia para atender las necesidades jurídicas de los \nciudadanos con un enfoque diferencial, de una manera pronta, reduciendo las \ninequidades y las brechas territoriales de acceso.","\n2. Asegurar  el cumplimiento de los objetivos institucionales, la normatividad aplicable,  la mejora del SIGCMA y la satisfacción de los usuarios, revisando de  forma continua y sistemática la planificación de la gestión y fortaleciendo la administración de riesgos y sus controles. (1,2,3 y 5)\n\n4. Hacer un uso racional de los recursos naturales aplicando los principios y fases de la Economía Circular, para prevenir, mitigar y controlar los impactos ambientales. (4)\n\n"]
[null,null,"2. Mejorar los tiempos de respuesta de la Rama Judicial y reducir el inventario de \nprocesos, identificando los retos internos y promoviendo tanto acciones articuladas\nespecíficas para abordarlos como estrategias coordinadas para enfrentar las \nbarreras que dependen de otras entidades."]
[null,null,"3. Coadyuvar en la garantía de la idoneidad en el ejercicio de la profesión jurídica de acuerdo con lo establecido en la Ley 1905 de 2018"]
[null,null,"4. Avanzar en la disposición de una infraestructura óptima para el acceso a la justicia en la Rama Judicial de modo que se fortalezca la presencia territorial, teniendo en cuenta las posibilidades que ofrece la transformación digital y las necesidades que se derivan de ella, y considerando tanto las necesidades de los usuarios como las de los servidores judiciales."]
[null,null,"5. Impulsar el uso de mecanismos alternativos para la solución de conflictos y la \nampliación de la justicia restaurativa y terapéutica y el robustecimiento de las alternativas al encarcelamiento"]
[2,"Servicios digitales y de tecnología, innovación y análisis de la información","1. Ampliar el acceso a la justicia a través de la consolidación del uso de los servicios \ndigitales que conforman el sistema único integrado de gestión judicial en todos los \ndespachos judiciales y dependencias de apoyo y, específicamente, incluyendo el \ndespliegue e implementación del Expediente Judicial Electrónico en todas las \njurisdicciones y especialidades.","6. Proteger, preservar y administrar los activos de información  implementando acciones  para gestionar de forma adecuada los incidentes  , proteger los datos personales y adoptar mecanismos  de ciberseguridad y aseguramiento de la  continuidad del negocio (1, 2, 3, 4, 5 y 6)"]
[null,null,"2. Integrar y hacer compatibles todos los aplicativos de transición con SIUGJ, para que la migración de los expedientes judiciales a dicha plataforma sea real y no suponga afectaciones en la prestación del servicio de justicia."]
[null,null,"\n3. Fortalecer las capacidades institucionales, adecuar el modelo operativo y de \nservicio, bajo un enfoque de Arquitectura Empresarial y de fortalecimiento del \nacceso a la justicia."]
[null,null,"\n4.Consolidar la cultura y apropiación de la transformación digital en los servidores y \nusuarios de los servicios de la Rama Judicial y reducir brechas de acceso y conocimiento, incluyendo la oferta efectiva de información sobre el uso de las nuevas herramientas virtuales implementadas en las diferentes jurisdicciones, con especial énfasis en las zonas del país donde es evidente la brecha digital."]
[null,null,"\n5.Consolidar la infraestructura y los recursos necesarios para la implementación exitosa de la transformación digital, incluyendo la disposición de internet de calidad en el 100% de las sedes en la Rama Judicial y modernizar los servicios tecnológicos de soporte. "]
[null,null,"\n6.Integrar y optimizar los servicios administrativos de la Rama Judicial bajo un enfoque de transformación digital e innovación incluyendo los componentes financiero, administrativo, talento humano, entre otros"]
[3,"Confianza pública, transparencia y rendición de cuentas","1. Incrementar la cantidad, la calidad y pertinencia de los datos sobre el funcionamiento del servicio de justicia bajo un modelo de gobierno de datos y un liderazgo unificado. \n","1. Gestionar el desarrollo de las competencias, la toma de conciencia , la cultura  organizacional  y el compromiso de los  servidores judiciales, contratistas, practicantes y  judicantes de contribuir a generar valor público en la administración de justicia, en el marco de  cumplimiento de los requisitos  aplicables y el comportamiento ético. (3 y 7)\n\n3. Fomentar la transparencia y la participación generando lineamientos y promoviendo la rendición de cuentas ,la consulta, reporte y planteamiento de inquietudes en relación con las decisiones y aspectos del SIGCMA. (3, 4, 5 y 6)\n\n4. Hacer un uso racional de los recursos naturales aplicando los principios y fases de la Economía Circular, para prevenir, mitigar y controlar los impactos ambientales. (1 y 7)\n"]
[null,null,"2. Consolidar la administración de la información entendida como todas las acciones \norientadas a garantizar el acceso, consulta, uso y conservación de la información \nde justicia de manera ágil, flexible e inteligente, bajo un enfoque de innovación."]
[null,null,"3. Fortalecer el Sistema integrado de Gestión de la Rama, orientado a la implementación y certificación de las normas antisoborno."]
[null,null,"4. Aumentar la confianza, la cercanía y acceso a los servicios de la Rama Judicial a \ntravés, entre otros, de una comunicación clara y asertiva con la ciudadanía."]
[null,null,"5. Prevenir fenómenos asociados con actos de corrupción en la Rama Judicial y \nreducir las experiencias de corrupción de usuarios y servidores judiciales."]
[null,null,"6. Promover la rendición de cuentas y la colaboración real con la ciudadanía como \nfundamento para diseñar acciones de mejoramiento del acceso a la justicia."]
[null,null,"7. Continuar la consolidación del SIGCMA, a través de los procesos de formación en \nmodelos de gestión, logrando la implementación y ampliación de este en los esquemas certificados de manera gradual, teniendo en cuenta las capacidades de los diferentes despachos judiciales y dependencias de la Rama Judicial y articulando el enfoque de Arquitectura Empresarial para el desarrollo del PETD a través de la gestión del conocimiento para la gestión del cambio propendiendo por una cultura de la calidad, la transparencia, la rendición de cuentas, la anticorrupción y el antisoborno"]
[4,"Talento Humano","1. Ampliar la cobertura de la carrera judicial optimizando los procesos de los concursos de méritos y propender por mitigar su litigiosidad.","1. Gestionar el desarrollo de las competencias, la toma de conciencia , la cultura  organizacional  y el compromiso de los  servidores judiciales, contratistas, practicantes y  judicantes de contribuir a generar valor público en la administración de justicia, en el marco de  cumplimiento de los requisitos  aplicables y el comportamiento ético. (1, 2, 3 y 4)\n\n5. Generar espacios de trabajo seguros y saludables que contribuyan a minimizar los  incidentes, accidentes y enfermedades laborales derivados de las condiciones y actos  inseguros y fomentar  el autocuidado, los  estilos de vida y el trabajo saludable en los servidores judiciales, contratistas, judicantes y practicantes. (5)\n"]
[null,null,"2. Impactar la función y servicios que presta la Rama Judicial, a través de una\nformación integral desde una visión de gestión del conocimiento, relacionada con \nlos problemas de la justicia y los problemas de gestión de quienes administran los \nrecursos de la justicia, y potenciando el uso de medios virtuales."]
[null,null,"3. Promover la incorporación de la perspectiva de género y el enfoque diferencial en \nlos fallos judiciales y en la atención a los ciudadanos, la administración de la Rama \nJudicial, la administración de la carrera judicial y la elaboración de listas para altas \nCortes. "]
[null,null,"4. Desarrollar en los servidores judiciales y demás grupos de valor relevantes las \ncompetencias necesarias para la efectividad de la transformación digital de modo \nque puedan, entre otros, utilizar con solvencia las herramientas digitales dispuestas \npara sus respectivas funciones. Además, fortalecer y actualizar los conocimientos \ndel personal a cargo de la gestión de proyectos de tecnología."]
[null,null,"5. Promover el bienestar de todos los servidores judiciales a través de la implementación de un sistema que contemple los diferentes niveles de estrategias y acciones necesarios para mejorar el clima laboral, la salud física y mental y la calidad del tiempo de descanso."]
[5,"Gobernanza, planeación estratégica y capacidad de toma de decisiones","1. Implementar un nuevo modelo integrado para la planeación estratégica, el \nseguimiento y la medición del desempeño institucional.","\n2. Asegurar  el cumplimiento de los objetivos institucionales, la normatividad aplicable,  la mejora del SIGCMA y la satisfacción de los usuarios, revisando de  forma continua y sistemática la planificación de la gestión y fortaleciendo la administración de riesgos y sus controles. (1 y 2)"]
[null,null,"2. Definir e implementar el modelo optimizado de formulación, seguimiento y \nevaluación de la política pública judicial."]